Workbook

Sheet Results
A1: Results
B3: Project Results - Cashflow - 15yr Project Term
B5: Metric | D5: Result
B6: Capital Investment | D6: =Cashflows!V25 -> -266419.5324
B8: Operations
B9: Total Revenue | D9: =Cashflows!V38 -> 12725960.66
B10: Total Expenses | D10: =Cashflows!V71 -> -10803312.84
B11: Net Income | D11: =D9+D10 -> 1922647.815
B13: Project IRR (Unlevered) | D13: =Cashflows!D122 -> 0.2226273839
B15: Net Financing Cashflows | D15: =Cashflows!V113 -> -140913.3868
B17: Net Project Cashflow | D17: =D15+D11+D6 -> 1515314.896
B18: NPV of Net Cashflow @ discount rate of | C18: 0.2 | D18: =NPV(C18,Cashflows!G116:U116)+Cashflows!F116 -> 193277.1224
B20: Equity Investment | D20: =-Cashflows!V79 -> -50000
B21: Net Cashflow to Equity | D21: =Cashflows!V124 -> 1465314.896
B22: Levered IRR to Equity | D22: =Cashflows!D126 -> 0.3620646963

Sheet General Assumptions
A1: =C6&" Inputs and Parameters" -> Inputs and Parameters
B3: General Assumptions | F3: Operating Expenses | J3: Sources and Uses | O3: Busines Infrastructure
B5: Project Description | D5: Input Value | F5: Equipment Costs | H5: Input Value | J5: Pre-Operations: | L5: $ Amt | Q5: Equipment Cost | R5: Equip Cost | S5: O&M Expense | T5: O&M
B6: Name | D6: Project LPG | F6: Cylinder | J6: Sources | P6: Type | Q6: (per unit installed) | R6: Inflation | S6: (per unit/yr) | T6: Inflation
B7: Description | D7: Country Y LPG Project | F7: Cost per acquisition | G7: $ | H7: 12 | J7: Equity Investment | L7: =investment_amount_A -> 50000 | M7: =IF((SUM(L14:L27)-L7)<0,"check","OK") -> OK | P7: Storage | Q7: 5000 | R7: 0.015 | S7: 2500 | T7: 0.015
B8: Participant | D8: Company X | F8: estimated life | G8: yrs | H8: 10 | J8: Term Loan | L8: =MAX(L29-(L7+L9),0) -> 38000 | P8: Refueling Stations | Q8: 7500 | R8: 0.0125 | S8: 1250 | T8: 0.0125
F9: % replaced per year | G9: % | H9: 0.05 | J9: Line of Credit | L9: =L47 -> 321865.4906 | P9: Transportation | Q9: 9000 | R9: 0.025 | S9: 3000 | T9: 0.025
B10: Customer Acquisition | D10: Input Value | F10: Burner | J10: TOTAL | L10: =SUM(L7:L9) -> 409865.4906 | P10: Misc. Infrastructure | Q10: 2500 | R10: 0.01 | S10: 500 | T10: 0.01
D11: # of Customers Added | F11: Cost per acquisition | G11: $ | H11: 2
B12: 1 | D12: 400 | F12: estimated life | G12: yrs | H12: 10 | J12: Uses
B13: =B12+1 -> 2 | D13: 400 | F13: % replaced per year | G13: % | H13: 0.05 | J13: LPG Infrastructure, Upfront CapEx | O13: Detailed User Input Table
B14: =B13+1 -> 3 | D14: 600 | J14: =P16 -> Storage | L14: =P17*Q7 -> 10000
B15: 4 | D15: 500 | F15: Fuel Pricing | H15: Input Value | J15: =Q16 -> Refueling Stations | L15: =Q17*Q8 -> 15000 | P15: # of Installations
B16: 5 | D16: 500 | F16: Type of Fuel | H16: LPG | J16: =R16 -> Transportation | L16: =R17*Q9 -> 18000 | O16: Year | P16: Storage | Q16: Refueling Stations | R16: Transportation | S16: Misc. Infrastructure
B17: 6 | D17: 500 | F17: Cost | G17: $/kg | H17: 1 | J17: =S16 -> Misc. Infrastructure | L17: =S17*Q10 -> 5000 | O17: 0 | P17: 2 | Q17: 2 | R17: 2 | S17: 2
B18: 7 | D18: 400 | F18: Customer Usage | G18: per mo | H18: 12 | J18: Office (capitalized portion) | L18: =D35 -> 7000 | O18: 1 | P18: 2 | Q18: 2 | R18: 2 | S18: 0
B19: 8 | D19: 400 | J19: Office Equip | L19: 3500 | O19: =O18+1 -> 2 | P19: 0 | Q19: 0 | R19: 0 | S19: 0
B20: 9 | D20: 300 | F20: Growth Rates | H20: Input Value | J20: Licences | L20: 12000 | O20: =O19+1 -> 3 | P20: 0 | Q20: 1 | R20: 0 | S20: 2
B21: 10 | D21: 0 | F21: Cylinder | G21: % | H21: 0.02 | J21: Legal | L21: 5000 | O21: 4 | P21: 0 | Q21: 1 | R21: 2 | S21: 0
B22: 11 | D22: 0 | F22: Burner | G22: % | H22: 0.02 | J22: Accounting | L22: 2500 | O22: 5 | P22: 1 | Q22: 1 | R22: 0 | S22: 0
B23: 12 | D23: 0 | F23: Fuel Pricing | G23: % | H23: 0.005 | J23: Other (corporate start up) | L23: 10000 | O23: 6 | P23: 0 | Q23: 0 | R23: 0 | S23: 0
B24: 13 | D24: 0 | J24: ADD | L24: 0 | O24: 7 | P24: 0 | Q24: 0 | R24: 0 | S24: 0
B25: 14 | D25: 0 | F25: Operating Revenue | J25: ADD | L25: 0 | O25: 8 | P25: 1 | Q25: 1 | R25: 1 | S25: 0
B26: 15 | D26: 0 | J26: ADD | L26: 0 | O26: 9 | P26: 0 | Q26: 1 | R26: 0 | S26: 1
F27: Customer Pricing | H27: Input Value | J27: ADD | L27: 0 | O27: 10 | P27: 0 | Q27: 0 | R27: 0
B28: Ongoing General Expenses | D28: Input Value | F28: Cylinder | J28: Capital Reserve (line of credit) | L28: =L47 -> 321865.4906 | O28: 11 | P28: 1 | Q28: 2 | R28: 0 | S28: 0
F29: Upfront Fee | G29: $/per customer | H29: 5 | J29: TOTAL | L29: =SUM(L13:L28) -> 409865.4906 | O29: 12 | P29: 0 | Q29: 0 | R29: 0 | S29: 0
B30: Administation | F30: Service Fee | G30: $/per mo | H30: 1 | O30: 13 | P30: 0 | Q30: 0 | R30: 0 | S30: 0
B31: Insurance | C31: $ | D31: 7500 | F31: Growth Rate | G31: % | H31: 0.03 | J31: financing gap check (should be zero) | L31: =L10-L29 -> 0 | O31: 14 | P31: 0 | Q31: 1 | R31: 1 | S31: 1
B32: Legal | C32: $ | D32: 5000 | O32: 15 | P32: 0 | Q32: 0 | R32: 0 | S32: 0
B33: Accounting | C33: $ | D33: 3000 | F33: Burner
B34: Marketing | C34: $ | D34: 15500 | F34: Upfront Fee | G34: $/per customer | H34: 4
B35: Office Lease | C35: $ | D35: 7000 | F35: Service Fee | G35: $/per mo | H35: 1 | J35: Equity Investment | L35: Input Value
B36: Misc. | C36: $ | D36: =SUM(D29:D34)*0.1 -> 3100 | F36: Growth Rate | G36: % | H36: 0.03 | J36: Equity Investment | O36: Personnel
B37: Growth Rate | C37: % | D37: 0.03 | J37: Amount | K37: $ | L37: 50000
F38: Fuel Sales Price | G38: % of fuel cost | H38: 1.75 | P38: Position | R38: Employment Period | T38: Compensation
J39: Debt | L39: Input Value | O39: Line | P39: Name | Q39: Type | R39: Start (Yr) | S39: End (Yr.) | T39: Initial Salary | U39: Ann. Salary Increase | V39: Gross Up
J40: Term Loan
J41: Amount | K41: $ | L41: =L8 -> 38000 | O41: 1 | P41: Chief Executive Officer | Q41: Senior Management | R41: 1 | S41: 15 | T41: 20000 | U41: 0.025 | V41: 0.25
J42: Term | K42: yr | L42: 5 | O42: 2 | P42: Chief Financial Officer | Q42: Senior Management | R42: 2 | S42: 15 | T42: 18000 | U42: 0.025 | V42: 0.25
J43: Interest Rate | K43: % | L43: 0.08 | O43: 3 | P43: Refueling Station Attendant | Q43: Infrastructure Staff | R43: 1 | S43: 15 | T43: 12000 | U43: 0.01 | V43: 0.25
J44: Principal Amortization | L44: Mortgage | O44: 4 | P44: Refueling Station Manager | Q44: Management | R44: 3 | S44: 15 | T44: 15000 | U44: 0.01 | V44: 0.25
O45: 5
J46: Line of Credit | O46: 6
J47: Maximum Credit Amount | K47: $ | L47: =-MIN(Cashflows!E89:U89) -> 321865.4906 | O47: 7
J48: Term | K48: yrs | L48: revolving | O48: 8
J49: Interest on Undrawn Amount | K49: % | L49: 0.015 | O49: 9
J50: Interest on Cumulative Drawdown | K50: % | L50: 0.07 | O50: 10
O51: 11
O52: 12
O53: 13
O54: 14
O55: 15
O56: 16
O57: 17
O58: 18
O59: 19
O60: 20

Sheet Infrastructure Table (hidden)
A1: ='General Assumptions'!D6&" Infrastructure Planning Table" -> Project LPG Infrastructure Planning Table
A25: Detailed Assumptions
A26: size of operation | B26: 1000 | C26: 1500 | D26: 2000
B27: Small | C27: Medium | D27: Large
A28: Upfront Costs
A29: Storage | B29: 7500 | C29: 10000 | D29: =C29*1.3 -> 13000
A30: Refueling Stations | B30: 6000 | C30: 8000 | D30: =C30*1.3 -> 10400
A31: Transportation | B31: 3750 | C31: 5000 | D31: =C31*1.3 -> 6500
A32: Misc. | B32: 1875 | C32: 2500 | D32: =C32*1.3 -> 3250
A34: Ongoing O&M Costs
A35: Storage | B35: 3000 | C35: =B35*1.25 -> 3750 | D35: =C35*1.3 -> 4875
A36: Refueling Stations | B36: 2500 | C36: =B36*1.25 -> 3125 | D36: =C36*1.3 -> 4062.5
A37: Transportation | B37: 4000 | C37: =B37*1.25 -> 5000 | D37: =C37*1.3 -> 6500
A38: Misc. | B38: 1000 | C38: =B38*1.25 -> 1250 | D38: =C38*1.3 -> 1625
A40: Ongoing O&M Growth Rate
A41: Storage | B41: 0.01 | C41: =B41 -> 0.01 | D41: 0.01
A42: Refueling Stations | B42: 0.02 | C42: 0.02 | D42: 0.02
A43: Transportation | B43: 0.015 | C43: 0.015 | D43: 0.015
A44: Misc. | B44: 0.01 | C44: 0.01 | D44: 0.01
A47: Detailed Installation Table
B49: Year
B50: 1 | C50: =B50+1 -> 2 | D50: 3 | E50: 4 | F50: 5 | G50: 6 | H50: 7 | I50: 8 | J50: 9 | K50: 10 | L50: 11 | M50: 12 | N50: 13 | O50: 14 | P50: 15
A53: Storage | B53: 1 | C53: 0 | D53: 0 | E53: 0 | F53: 0 | G53: 0 | H53: 0 | I53: 0 | J53: 0 | K53: 0 | L53: 0 | M53: 0 | N53: 0 | O53: 0 | P53: 0
A54: Refueling Stations | B54: 0 | C54: 0 | D54: 0 | E54: 0 | F54: 0 | G54: 0 | H54: 0 | I54: 1 | J54: 0 | K54: 0 | L54: 0 | M54: 0 | N54: 0 | O54: 0 | P54: 1
A55: Transportation | B55: 0 | C55: 0 | D55: 0 | E55: 0 | F55: 1 | G55: 0 | H55: 0 | I55: 0 | J55: 0 | K55: 0 | L55: 0 | M55: 0 | N55: 1 | O55: 0 | P55: 0
A56: Refueling Stations
A57: Misc. | B57: 1 | C57: 0 | D57: 0 | E57: 0 | F57: 0 | G57: 0 | H57: 0 | I57: 0 | J57: 0 | K57: 0 | L57: 0 | M57: 0 | N57: 0 | O57: 0 | P57: 0
A58: Medium | B58: 0 | C58: 0 | D58: 0 | E58: 0 | F58: 0 | G58: 0 | H58: 0 | I58: 0 | J58: 0 | K58: 0 | L58: 1 | M58: 0 | N58: 0 | O58: 0 | P58: 0
A59: Large | B59: 0 | C59: 0 | D59: 1 | E59: 0 | F59: 0 | G59: 1 | H59: 0 | I59: 0 | J59: 0 | K59: 0 | L59: 0 | M59: 0 | N59: 0 | O59: 0 | P59: 1
A60: Transportation
A61: Small | B61: 0 | C61: 0 | D61: 0 | E61: 0 | F61: 0 | G61: 0 | H61: 0 | I61: 0 | J61: 0 | K61: 0 | L61: 0 | M61: 0 | N61: 0 | O61: 1 | P61: 0
A62: Medium | B62: 0 | C62: 0 | D62: 0 | E62: 1 | F62: 0 | G62: 0 | H62: 0 | I62: 0 | J62: 0 | K62: 0 | L62: 0 | M62: 0 | N62: 0 | O62: 0 | P62: 0
A63: Large | B63: 1 | C63: 0 | D63: 0 | E63: 0 | F63: 0 | G63: 0 | H63: 0 | I63: 0 | J63: 1 | K63: 0 | L63: 0 | M63: 0 | N63: 0 | O63: 0 | P63: 0
A64: Misc.
A65: Small | B65: 0 | C65: 0 | D65: 0 | E65: 1 | F65: 0 | G65: 0 | H65: 0 | I65: 0 | J65: 0 | K65: 0 | L65: 0 | M65: 0 | N65: 0 | O65: 0 | P65: 0
A66: Medium | B66: 0 | C66: 0 | D66: 0 | E66: 0 | F66: 0 | G66: 0 | H66: 0 | I66: 0 | J66: 1 | K66: 0 | L66: 0 | M66: 0 | N66: 0 | O66: 0 | P66: 0
A67: Large | B67: 1 | C67: 0 | D67: 0 | E67: 0 | F67: 0 | G67: 0 | H67: 0 | I67: 0 | J67: 0 | K67: 0 | L67: 0 | M67: 0 | N67: 0 | O67: 1 | P67: 0

Sheet Cashflow (hidden)
A1: ='General Assumptions'!D7 -> Country Y LPG Project
A2: Summary of Revenue and Expenditures
A3: Annual Calculation
A4: All numbers based on USD
E5: Year
A6: Line | D6: 0 | E6: =D6+1 -> 1 | F6: =E6+1 -> 2 | G6: 3 | H6: 4 | I6: 5 | J6: 6 | K6: 7 | L6: 8 | M6: 9 | N6: 10 | O6: 11 | P6: 12 | Q6: 13 | R6: 14 | S6: 15 | T6: Total
A8: 1 | B8: INVESTMENT
A9: =A8+1 -> 2 | B9: Sources
A10: 3 | B10: Equity
A11: 4 | B11: Investment A | D11: =investment_switch_A*((investment_year_A=D$6)*investment_amount_A) ->  | T11: =SUM(D11:S11) -> 
A12: 5 | B12: Investment B | D12: =investment_switch_B*((investment_year_B=D$6)*investment_amount_B) -> 
A13: 6 | B13: Investment C | D13: =investment_switch_C*((investment_year_C=D$6)*investment_amount_C) -> 
A14: 7 | B14: Investment D | D14: =investment_switch_D*((investment_year_D=D$6)*investment_amount_D) -> 
A15: 8 | B15: Investment E | D15: =investment_switch_E*((investment_year_E=D$6)*investment_amount_E) -> 
A16: 9 | B16: sub-total | D16: =SUM(D11:D15) -> 
A17: 10
A18: 11 | B18: Debt
A19: 12 | B19: Loan A | D19: =loan_switch_A*((loan_year_A=D$6)*loan_amount_A) -> 
A20: 13 | B20: Loan B | D20: =loan_switch_B*((loan_year_B=D$6)*loan_amount_B) -> 
A21: 14 | B21: Loan C | D21: =loan_switch_C*((loan_year_C=D$6)*loan_amount_C) -> 
A22: 15 | B22: Loan D | D22: =loan_switch_D*((loan_year_D=D$6)*loan_amount_D) -> 
A23: 16 | B23: Loan E | D23: =loan_switch_E*((loan_year_E=D$6)*loan_amount_E) -> 
A24: 17 | B24: sub-total | D24: =SUM(D19:D23) ->  | E24: =SUM(E19:E23) ->  | F24: =SUM(F19:F23) -> 
A25: 18 | T25: 0
A26: 19 | B26: Total Sources | D26: =D24+D16 ->  | E26: =E24+E16 ->  | F26: =F24+F16 -> 
A27: 20 | T27: 0
A28: 21 | B28: Uses
A29: 22 | B29: ='General Assumptions'!J18 -> Office (capitalized portion) | D29: =-'General Assumptions'!L18*IF(D$6=0,1,0) -> -7000 | T29: =SUM(D29:S29) -> -7000
A30: 23 | B30: ='General Assumptions'!J14 -> Storage | D30: =-'General Assumptions'!L14*IF(D$6=0,1,0) -> -10000 | E30: =-Calculations!D34 -> -10000 | F30: =-Calculations!E34 -> 0 | G30: =-Calculations!F34 -> 0 | H30: =-Calculations!G34 -> 0 | I30: =-Calculations!H34 -> -5306.817753 | J30: =-Calculations!I34 -> 0 | K30: =-Calculations!J34 -> 0 | L30: =-Calculations!K34 -> -5549.224565 | M30: =-Calculations!L34 -> 0 | N30: =-Calculations!M34 -> 0 | O30: =-Calculations!N34 -> -5802.704125 | P30: =-Calculations!O34 -> 0 | Q30: =-Calculations!P34 -> 0 | R30: =-Calculations!Q34 -> 0 | S30: =-Calculations!R34 -> 0 | T30: -36658.74644
A31: 24 | B31: ='General Assumptions'!J15 -> Refueling Stations | D31: =-'General Assumptions'!L15*IF(D$6=0,1,0) -> -15000 | E31: =-Calculations!D35 -> -15000 | F31: =-Calculations!E35 -> 0 | G31: =-Calculations!F35 -> -7688.671875 | H31: =-Calculations!G35 -> -7784.780273 | I31: =-Calculations!H35 -> -7882.090027 | J31: =-Calculations!I35 -> 0 | K31: =-Calculations!J35 -> 0 | L31: =-Calculations!K35 -> -8181.378527 | M31: =-Calculations!L35 -> -8283.645759 | N31: =-Calculations!M35 -> 0 | O31: =-Calculations!N35 -> -16984.06244 | P31: =-Calculations!O35 -> 0 | Q31: =-Calculations!P35 -> 0 | R31: =-Calculations!Q35 -> -8814.479619 | S31: =-Calculations!R35 -> 0 | T31: -95619.10853
A32: 25 | B32: ='General Assumptions'!J16 -> Transportation | D32: =-'General Assumptions'!L16*IF(D$6=0,1,0) -> -18000 | E32: =-Calculations!D36 -> -18000 | F32: =-Calculations!E36 -> 0 | G32: =-Calculations!F36 -> 0 | H32: =-Calculations!G36 -> -19384.03125 | I32: =-Calculations!H36 -> 0 | J32: =-Calculations!I36 -> 0 | K32: =-Calculations!J36 -> 0 | L32: =-Calculations!K36 -> -10698.17178 | M32: =-Calculations!L36 -> 0 | N32: =-Calculations!M36 -> 0 | O32: =-Calculations!N36 -> 0 | P32: =-Calculations!O36 -> 0 | Q32: =-Calculations!P36 -> 0 | R32: =-Calculations!Q36 -> -12406.5994 | S32: =-Calculations!R36 -> 0 | T32: -78488.80244
A33: 26 | B33: ='General Assumptions'!J17 -> Misc. Infrastructure | D33: =-'General Assumptions'!L17*IF(D$6=0,1,0) -> -5000 | E33: =-Calculations!D37 -> 0 | F33: =-Calculations!E37 -> 0 | G33: =-Calculations!F37 -> -5100.5 | H33: =-Calculations!G37 -> 0 | I33: =-Calculations!H37 -> 0 | J33: =-Calculations!I37 -> 0 | K33: =-Calculations!J37 -> 0 | L33: =-Calculations!K37 -> 0 | M33: =-Calculations!L37 -> -2707.141764 | N33: =-Calculations!M37 -> 0 | O33: =-Calculations!N37 -> 0 | P33: =-Calculations!O37 -> 0 | Q33: =-Calculations!P37 -> 0 | R33: =-Calculations!Q37 -> -2845.233201 | S33: =-Calculations!R37 -> 0 | T33: -15652.87497
A34: 27 | B34: ='General Assumptions'!J19 -> Office Equip | D34: =-'General Assumptions'!L19*IF(D$6=0,1,0) -> -3500 | E34: 0 | F34: 0 | G34: 0 | H34: 0 | I34: 0 | J34: 0 | K34: 0 | L34: 0 | M34: 0 | N34: 0 | O34: 0 | P34: 0 | Q34: 0 | R34: 0 | S34: 0 | T34: -3500
A35: 28 | B35: ='General Assumptions'!J20 -> Licences | D35: =-'General Assumptions'!L20*IF(D$6=0,1,0) -> -12000 | E35: 0 | F35: 0 | G35: 0 | H35: 0 | I35: 0 | J35: 0 | K35: 0 | L35: 0 | M35: 0 | N35: 0 | O35: 0 | P35: 0 | Q35: 0 | R35: 0 | S35: 0 | T35: -12000
A36: 29 | B36: ='General Assumptions'!J21 -> Legal | D36: =-'General Assumptions'!L21*IF(D$6=0,1,0) -> -5000 | E36: 0 | F36: 0 | G36: 0 | H36: 0 | I36: 0 | J36: 0 | K36: 0 | L36: 0 | M36: 0 | N36: 0 | O36: 0 | P36: 0 | Q36: 0 | R36: 0 | S36: 0 | T36: -5000
A37: 30 | B37: ='General Assumptions'!J22 -> Accounting | D37: =-'General Assumptions'!L22*IF(D$6=0,1,0) -> -2500 | E37: 0 | F37: 0 | G37: 0 | H37: 0 | I37: 0 | J37: 0 | K37: 0 | L37: 0 | M37: 0 | N37: 0 | O37: 0 | P37: 0 | Q37: 0 | R37: 0 | S37: 0 | T37: -2500
A38: 31 | B38: ='General Assumptions'!J23 -> Other (corporate start up) | D38: =-'General Assumptions'!L23*IF(D$6=0,1,0) -> -10000 | E38: 0 | F38: 0 | G38: 0 | H38: 0 | I38: 0 | J38: 0 | K38: 0 | L38: 0 | M38: 0 | N38: 0 | O38: 0 | P38: 0 | Q38: 0 | R38: 0 | S38: 0 | T38: -10000
A39: 32
A40: 33 | B40: Total Uses | D40: =SUM(D29:D38) -> -88000 | E40: -43000 | F40: 0 | G40: -12789.17188 | H40: -27168.81152 | I40: -13188.90778 | J40: 0 | K40: 0 | L40: -24428.77487 | M40: -10990.78752 | N40: 0 | O40: -22786.76657 | P40: 0 | Q40: 0 | R40: -24066.31222 | S40: 0 | T40: =SUM(D40:S40) -> -266419.5324
A41: 34
A42: 35 | B42: TOTAL - Sources less Uses | D42: =D40+D26 -> 
A43: 36
A44: 37
A45: 38 | B45: OPERATIONS
A46: 39 | B46: Revenue
A47: 40 | B47: Fuel Sales | E47: =Calculations!D8*fuel_costs_acquisition_monthly*(fuel_usage_monthly*12)*'General Assumptions'!$H$38 -> 100800 | F47: =Calculations!E8*fuel_costs_acquisition_monthly*(fuel_usage_monthly*12)*'General Assumptions'!$H$38 -> 201600 | G47: =Calculations!F8*fuel_costs_acquisition_monthly*(fuel_usage_monthly*12)*'General Assumptions'!$H$38 -> 352800 | H47: =Calculations!G8*fuel_costs_acquisition_monthly*(fuel_usage_monthly*12)*'General Assumptions'!$H$38 -> 478800 | I47: =Calculations!H8*fuel_costs_acquisition_monthly*(fuel_usage_monthly*12)*'General Assumptions'!$H$38 -> 604800 | J47: =Calculations!I8*fuel_costs_acquisition_monthly*(fuel_usage_monthly*12)*'General Assumptions'!$H$38 -> 730800 | K47: =Calculations!J8*fuel_costs_acquisition_monthly*(fuel_usage_monthly*12)*'General Assumptions'!$H$38 -> 831600 | L47: =Calculations!K8*fuel_costs_acquisition_monthly*(fuel_usage_monthly*12)*'General Assumptions'!$H$38 -> 932400 | M47: =Calculations!L8*fuel_costs_acquisition_monthly*(fuel_usage_monthly*12)*'General Assumptions'!$H$38 -> 1008000 | N47: =Calculations!M8*fuel_costs_acquisition_monthly*(fuel_usage_monthly*12)*'General Assumptions'!$H$38 -> 1008000 | O47: =Calculations!N8*fuel_costs_acquisition_monthly*(fuel_usage_monthly*12)*'General Assumptions'!$H$38 -> 1008000 | P47: =Calculations!O8*fuel_costs_acquisition_monthly*(fuel_usage_monthly*12)*'General Assumptions'!$H$38 -> 1008000 | Q47: =Calculations!P8*fuel_costs_acquisition_monthly*(fuel_usage_monthly*12)*'General Assumptions'!$H$38 -> 1008000 | R47: =Calculations!Q8*fuel_costs_acquisition_monthly*(fuel_usage_monthly*12)*'General Assumptions'!$H$38 -> 1008000 | S47: =Calculations!R8*fuel_costs_acquisition_monthly*(fuel_usage_monthly*12)*'General Assumptions'!$H$38 -> 1008000 | T47: =SUM(E47:S47) -> 11289600
A48: 41 | B48: Cylinder Membership | T48: =SUM(E48:S48) -> 0
A49: 42 | B49: Upfront Fee | E49: =Calculations!D11*'General Assumptions'!$H$29*((1+growth_rate_cylinder_pricing)^(E$6-$E$6)) -> 2000 | F49: =Calculations!E11*'General Assumptions'!$H$29*((1+growth_rate_cylinder_pricing)^(F$6-$E$6)) -> 2060 | G49: =Calculations!F11*'General Assumptions'!$H$29*((1+growth_rate_cylinder_pricing)^(G$6-$E$6)) -> 3182.7 | H49: =Calculations!G11*'General Assumptions'!$H$29*((1+growth_rate_cylinder_pricing)^(H$6-$E$6)) -> 2731.8175 | I49: =Calculations!H11*'General Assumptions'!$H$29*((1+growth_rate_cylinder_pricing)^(I$6-$E$6)) -> 2813.772025 | J49: =Calculations!I11*'General Assumptions'!$H$29*((1+growth_rate_cylinder_pricing)^(J$6-$E$6)) -> 2898.185186 | K49: =Calculations!J11*'General Assumptions'!$H$29*((1+growth_rate_cylinder_pricing)^(K$6-$E$6)) -> 2388.104593 | L49: =Calculations!K11*'General Assumptions'!$H$29*((1+growth_rate_cylinder_pricing)^(L$6-$E$6)) -> 2459.747731 | M49: =Calculations!L11*'General Assumptions'!$H$29*((1+growth_rate_cylinder_pricing)^(M$6-$E$6)) -> 1900.155122 | N49: =Calculations!M11*'General Assumptions'!$H$29*((1+growth_rate_cylinder_pricing)^(N$6-$E$6)) -> 0 | O49: =Calculations!N11*'General Assumptions'!$H$29*((1+growth_rate_cylinder_pricing)^(O$6-$E$6)) -> 0 | P49: =Calculations!O11*'General Assumptions'!$H$29*((1+growth_rate_cylinder_pricing)^(P$6-$E$6)) -> 0 | Q49: =Calculations!P11*'General Assumptions'!$H$29*((1+growth_rate_cylinder_pricing)^(Q$6-$E$6)) -> 0 | R49: =Calculations!Q11*'General Assumptions'!$H$29*((1+growth_rate_cylinder_pricing)^(R$6-$E$6)) -> 0 | S49: =Calculations!R11*'General Assumptions'!$H$29*((1+growth_rate_cylinder_pricing)^(S$6-$E$6)) -> 0 | T49: 22434.48216
A50: 43 | B50: Annual Fees | E50: =(Calculations!D$8*'General Assumptions'!$H$30*12)*((1+growth_rate_cylinder_pricing)^(E$6-$E$6)) -> 4800 | F50: =(Calculations!E$8*'General Assumptions'!$H$30*12)*((1+growth_rate_cylinder_pricing)^(F$6-$E$6)) -> 9888 | G50: =(Calculations!F$8*'General Assumptions'!$H$30*12)*((1+growth_rate_cylinder_pricing)^(G$6-$E$6)) -> 17823.12 | H50: =(Calculations!G$8*'General Assumptions'!$H$30*12)*((1+growth_rate_cylinder_pricing)^(H$6-$E$6)) -> 24914.1756 | I50: =(Calculations!H$8*'General Assumptions'!$H$30*12)*((1+growth_rate_cylinder_pricing)^(I$6-$E$6)) -> 32414.65373 | J50: =(Calculations!I$8*'General Assumptions'!$H$30*12)*((1+growth_rate_cylinder_pricing)^(J$6-$E$6)) -> 40342.73779 | K50: =(Calculations!J$8*'General Assumptions'!$H$30*12)*((1+growth_rate_cylinder_pricing)^(K$6-$E$6)) -> 47284.47094 | L50: =(Calculations!K$8*'General Assumptions'!$H$30*12)*((1+growth_rate_cylinder_pricing)^(L$6-$E$6)) -> 54606.39962 | M50: =(Calculations!L$8*'General Assumptions'!$H$30*12)*((1+growth_rate_cylinder_pricing)^(M$6-$E$6)) -> 60804.96391 | N50: =(Calculations!M$8*'General Assumptions'!$H$30*12)*((1+growth_rate_cylinder_pricing)^(N$6-$E$6)) -> 62629.11282 | O50: =(Calculations!N$8*'General Assumptions'!$H$30*12)*((1+growth_rate_cylinder_pricing)^(O$6-$E$6)) -> 64507.98621 | P50: =(Calculations!O$8*'General Assumptions'!$H$30*12)*((1+growth_rate_cylinder_pricing)^(P$6-$E$6)) -> 66443.22579 | Q50: =(Calculations!P$8*'General Assumptions'!$H$30*12)*((1+growth_rate_cylinder_pricing)^(Q$6-$E$6)) -> 68436.52257 | R50: =(Calculations!Q$8*'General Assumptions'!$H$30*12)*((1+growth_rate_cylinder_pricing)^(R$6-$E$6)) -> 70489.61825 | S50: =(Calculations!R$8*'General Assumptions'!$H$30*12)*((1+growth_rate_cylinder_pricing)^(S$6-$E$6)) -> 72604.30679 | T50: 697989.294
A51: 44 | B51: Burner Membership
A52: 45 | B52: Upfront Fee | E52: =Calculations!D17*'General Assumptions'!$H$34*((1+growth_rate_burner_pricing)^(E$6-$E$6)) -> 1600 | F52: =Calculations!E17*'General Assumptions'!$H$34*((1+growth_rate_burner_pricing)^(F$6-$E$6)) -> 1648 | G52: =Calculations!F17*'General Assumptions'!$H$34*((1+growth_rate_burner_pricing)^(G$6-$E$6)) -> 2546.16 | H52: =Calculations!G17*'General Assumptions'!$H$34*((1+growth_rate_burner_pricing)^(H$6-$E$6)) -> 2185.454 | I52: =Calculations!H17*'General Assumptions'!$H$34*((1+growth_rate_burner_pricing)^(I$6-$E$6)) -> 2251.01762 | J52: =Calculations!I17*'General Assumptions'!$H$34*((1+growth_rate_burner_pricing)^(J$6-$E$6)) -> 2318.548149 | K52: =Calculations!J17*'General Assumptions'!$H$34*((1+growth_rate_burner_pricing)^(K$6-$E$6)) -> 1910.483674 | L52: =Calculations!K17*'General Assumptions'!$H$34*((1+growth_rate_burner_pricing)^(L$6-$E$6)) -> 1967.798185 | M52: =Calculations!L17*'General Assumptions'!$H$34*((1+growth_rate_burner_pricing)^(M$6-$E$6)) -> 1520.124098 | N52: =Calculations!M17*'General Assumptions'!$H$34*((1+growth_rate_burner_pricing)^(N$6-$E$6)) -> 0 | O52: =Calculations!N17*'General Assumptions'!$H$34*((1+growth_rate_burner_pricing)^(O$6-$E$6)) -> 0 | P52: =Calculations!O17*'General Assumptions'!$H$34*((1+growth_rate_burner_pricing)^(P$6-$E$6)) -> 0 | Q52: =Calculations!P17*'General Assumptions'!$H$34*((1+growth_rate_burner_pricing)^(Q$6-$E$6)) -> 0 | R52: =Calculations!Q17*'General Assumptions'!$H$34*((1+growth_rate_burner_pricing)^(R$6-$E$6)) -> 0 | S52: =Calculations!R17*'General Assumptions'!$H$34*((1+growth_rate_burner_pricing)^(S$6-$E$6)) -> 0 | T52: 17947.58573
A53: 46 | B53: Annual Fees | E53: =(Calculations!D$8*'General Assumptions'!$H$35*12)*((1+growth_rate_burner_pricing)^(E$6-$E$6)) -> 4800 | F53: =(Calculations!E$8*'General Assumptions'!$H$35*12)*((1+growth_rate_burner_pricing)^(F$6-$E$6)) -> 9888 | G53: =(Calculations!F$8*'General Assumptions'!$H$35*12)*((1+growth_rate_burner_pricing)^(G$6-$E$6)) -> 17823.12 | H53: =(Calculations!G$8*'General Assumptions'!$H$35*12)*((1+growth_rate_burner_pricing)^(H$6-$E$6)) -> 24914.1756 | I53: =(Calculations!H$8*'General Assumptions'!$H$35*12)*((1+growth_rate_burner_pricing)^(I$6-$E$6)) -> 32414.65373 | J53: =(Calculations!I$8*'General Assumptions'!$H$35*12)*((1+growth_rate_burner_pricing)^(J$6-$E$6)) -> 40342.73779 | K53: =(Calculations!J$8*'General Assumptions'!$H$35*12)*((1+growth_rate_burner_pricing)^(K$6-$E$6)) -> 47284.47094 | L53: =(Calculations!K$8*'General Assumptions'!$H$35*12)*((1+growth_rate_burner_pricing)^(L$6-$E$6)) -> 54606.39962 | M53: =(Calculations!L$8*'General Assumptions'!$H$35*12)*((1+growth_rate_burner_pricing)^(M$6-$E$6)) -> 60804.96391 | N53: =(Calculations!M$8*'General Assumptions'!$H$35*12)*((1+growth_rate_burner_pricing)^(N$6-$E$6)) -> 62629.11282 | O53: =(Calculations!N$8*'General Assumptions'!$H$35*12)*((1+growth_rate_burner_pricing)^(O$6-$E$6)) -> 64507.98621 | P53: =(Calculations!O$8*'General Assumptions'!$H$35*12)*((1+growth_rate_burner_pricing)^(P$6-$E$6)) -> 66443.22579 | Q53: =(Calculations!P$8*'General Assumptions'!$H$35*12)*((1+growth_rate_burner_pricing)^(Q$6-$E$6)) -> 68436.52257 | R53: =(Calculations!Q$8*'General Assumptions'!$H$35*12)*((1+growth_rate_burner_pricing)^(R$6-$E$6)) -> 70489.61825 | S53: =(Calculations!R$8*'General Assumptions'!$H$35*12)*((1+growth_rate_burner_pricing)^(S$6-$E$6)) -> 72604.30679 | T53: 697989.294
A54: 47 | B54: Other | E54: 0 | F54: 0 | G54: 0 | H54: 0 | I54: 0 | J54: 0 | K54: 0 | L54: 0 | M54: 0 | N54: 0 | O54: 0 | P54: 0 | Q54: 0 | R54: 0 | S54: 0 | T54: 0
A55: 48 | B55: TOTAL REVENUE | E55: =SUM(E47:E54) -> 114000 | F55: =SUM(F47:F54) -> 225084 | G55: 394175.1 | H55: 533545.6227 | I55: 674694.0971 | J55: 816702.2089 | K55: 930467.5302 | L55: 1046040.345 | M55: 1133030.207 | N55: 1133258.226 | O55: 1137015.972 | P55: 1140886.452 | Q55: 1144873.045 | R55: 1148979.236 | S55: 1153208.614 | T55: 12725960.66
A56: 49
A57: 50 | B57: Expenses
A58: 51 | B58: Cost of Goods Sold (COGS)
A59: 52 | B59: Fuel Purchase | E59: =-Calculations!D8*(fuel_costs_acquisition_monthly*((1+growth_rate_fuelprice)^(E$6-$E$6)))*(fuel_usage_monthly*12) -> -57600 | F59: =-Calculations!E8*(fuel_costs_acquisition_monthly*((1+growth_rate_fuelprice)^(F$6-$E$6)))*(fuel_usage_monthly*12) -> -115776 | G59: =-Calculations!F8*(fuel_costs_acquisition_monthly*((1+growth_rate_fuelprice)^(G$6-$E$6)))*(fuel_usage_monthly*12) -> -203621.04 | H59: =-Calculations!G8*(fuel_costs_acquisition_monthly*((1+growth_rate_fuelprice)^(H$6-$E$6)))*(fuel_usage_monthly*12) -> -277724.5542 | I59: =-Calculations!H8*(fuel_costs_acquisition_monthly*((1+growth_rate_fuelprice)^(I$6-$E$6)))*(fuel_usage_monthly*12) -> -352564.013 | J59: =-Calculations!I8*(fuel_costs_acquisition_monthly*((1+growth_rate_fuelprice)^(J$6-$E$6)))*(fuel_usage_monthly*12) -> -428144.9233 | K59: =-Calculations!J8*(fuel_costs_acquisition_monthly*((1+growth_rate_fuelprice)^(K$6-$E$6)))*(fuel_usage_monthly*12) -> -489635.3925 | L59: =-Calculations!K8*(fuel_costs_acquisition_monthly*((1+growth_rate_fuelprice)^(L$6-$E$6)))*(fuel_usage_monthly*12) -> -551730.0627 | M59: =-Calculations!L8*(fuel_costs_acquisition_monthly*((1+growth_rate_fuelprice)^(M$6-$E$6)))*(fuel_usage_monthly*12) -> -599447.2573 | N59: =-Calculations!M8*(fuel_costs_acquisition_monthly*((1+growth_rate_fuelprice)^(N$6-$E$6)))*(fuel_usage_monthly*12) -> -602444.4936 | O59: =-Calculations!N8*(fuel_costs_acquisition_monthly*((1+growth_rate_fuelprice)^(O$6-$E$6)))*(fuel_usage_monthly*12) -> -605456.7161 | P59: =-Calculations!O8*(fuel_costs_acquisition_monthly*((1+growth_rate_fuelprice)^(P$6-$E$6)))*(fuel_usage_monthly*12) -> -608483.9996 | Q59: =-Calculations!P8*(fuel_costs_acquisition_monthly*((1+growth_rate_fuelprice)^(Q$6-$E$6)))*(fuel_usage_monthly*12) -> -611526.4196 | R59: =-Calculations!Q8*(fuel_costs_acquisition_monthly*((1+growth_rate_fuelprice)^(R$6-$E$6)))*(fuel_usage_monthly*12) -> -614584.0517 | S59: =-Calculations!R8*(fuel_costs_acquisition_monthly*((1+growth_rate_fuelprice)^(S$6-$E$6)))*(fuel_usage_monthly*12) -> -617656.972 | T59: =SUM(E59:S59) -> -6736395.896
A60: 53 | B60: Cylinders
A61: 54 | B61: New | E61: =-Calculations!D11*(cylinder_cost*((1+growth_rate_cylinder_pricing)^(E$6-$E$6))) -> -4800 | F61: =-Calculations!E11*(cylinder_cost*((1+growth_rate_cylinder_pricing)^(F$6-$E$6))) -> -4944 | G61: =-Calculations!F11*(cylinder_cost*((1+growth_rate_cylinder_pricing)^(G$6-$E$6))) -> -7638.48 | H61: =-Calculations!G11*(cylinder_cost*((1+growth_rate_cylinder_pricing)^(H$6-$E$6))) -> -6556.362 | I61: =-Calculations!H11*(cylinder_cost*((1+growth_rate_cylinder_pricing)^(I$6-$E$6))) -> -6753.05286 | J61: =-Calculations!I11*(cylinder_cost*((1+growth_rate_cylinder_pricing)^(J$6-$E$6))) -> -6955.644446 | K61: =-Calculations!J11*(cylinder_cost*((1+growth_rate_cylinder_pricing)^(K$6-$E$6))) -> -5731.451023 | L61: =-Calculations!K11*(cylinder_cost*((1+growth_rate_cylinder_pricing)^(L$6-$E$6))) -> -5903.394554 | M61: =-Calculations!L11*(cylinder_cost*((1+growth_rate_cylinder_pricing)^(M$6-$E$6))) -> -4560.372293 | N61: =-Calculations!M11*(cylinder_cost*((1+growth_rate_cylinder_pricing)^(N$6-$E$6))) -> 0 | O61: =-Calculations!N11*(cylinder_cost*((1+growth_rate_cylinder_pricing)^(O$6-$E$6))) -> 0 | P61: =-Calculations!O11*(cylinder_cost*((1+growth_rate_cylinder_pricing)^(P$6-$E$6))) -> 0 | Q61: =-Calculations!P11*(cylinder_cost*((1+growth_rate_cylinder_pricing)^(Q$6-$E$6))) -> 0 | R61: =-Calculations!Q11*(cylinder_cost*((1+growth_rate_cylinder_pricing)^(R$6-$E$6))) -> 0 | S61: =-Calculations!R11*(cylinder_cost*((1+growth_rate_cylinder_pricing)^(S$6-$E$6))) -> 0 | T61: =SUM(E61:S61) -> -53842.75718
A62: 55 | B62: Reserve | E62: =-Calculations!D12*(cylinder_cost*((1+growth_rate_cylinder_pricing)^(E$6-$E$6))) -> 0 | F62: =-Calculations!E12*(cylinder_cost*((1+growth_rate_cylinder_pricing)^(F$6-$E$6))) -> -247.2 | G62: =-Calculations!F12*(cylinder_cost*((1+growth_rate_cylinder_pricing)^(G$6-$E$6))) -> -509.232 | H62: =-Calculations!G12*(cylinder_cost*((1+growth_rate_cylinder_pricing)^(H$6-$E$6))) -> -917.89068 | I62: =-Calculations!H12*(cylinder_cost*((1+growth_rate_cylinder_pricing)^(I$6-$E$6))) -> -1283.080043 | J62: =-Calculations!I12*(cylinder_cost*((1+growth_rate_cylinder_pricing)^(J$6-$E$6))) -> -1669.354667 | K62: =-Calculations!J12*(cylinder_cost*((1+growth_rate_cylinder_pricing)^(K$6-$E$6))) -> -2077.650996 | L62: =-Calculations!K12*(cylinder_cost*((1+growth_rate_cylinder_pricing)^(L$6-$E$6))) -> -2435.150254 | M62: =-Calculations!L12*(cylinder_cost*((1+growth_rate_cylinder_pricing)^(M$6-$E$6))) -> -2812.229581 | N62: =-Calculations!M12*(cylinder_cost*((1+growth_rate_cylinder_pricing)^(N$6-$E$6))) -> -3131.455641 | O62: =-Calculations!N12*(cylinder_cost*((1+growth_rate_cylinder_pricing)^(O$6-$E$6))) -> -3225.39931 | P62: =-Calculations!O12*(cylinder_cost*((1+growth_rate_cylinder_pricing)^(P$6-$E$6))) -> -3322.16129 | Q62: =-Calculations!P12*(cylinder_cost*((1+growth_rate_cylinder_pricing)^(Q$6-$E$6))) -> -3421.826128 | R62: =-Calculations!Q12*(cylinder_cost*((1+growth_rate_cylinder_pricing)^(R$6-$E$6))) -> -3524.480912 | S62: =-Calculations!R12*(cylinder_cost*((1+growth_rate_cylinder_pricing)^(S$6-$E$6))) -> -3630.21534 | T62: =SUM(E62:S62) -> -32207.32684
A63: 56 | B63: Replacement | E63: =-Calculations!D13*(cylinder_cost*((1+growth_rate_cylinder_pricing)^(E$6-$E$6))) -> 0 | F63: =-Calculations!E13*(cylinder_cost*((1+growth_rate_cylinder_pricing)^(F$6-$E$6))) -> 0 | G63: =-Calculations!F13*(cylinder_cost*((1+growth_rate_cylinder_pricing)^(G$6-$E$6))) -> 0 | H63: =-Calculations!G13*(cylinder_cost*((1+growth_rate_cylinder_pricing)^(H$6-$E$6))) -> 0 | I63: =-Calculations!H13*(cylinder_cost*((1+growth_rate_cylinder_pricing)^(I$6-$E$6))) -> 0 | J63: =-Calculations!I13*(cylinder_cost*((1+growth_rate_cylinder_pricing)^(J$6-$E$6))) -> 0 | K63: =-Calculations!J13*(cylinder_cost*((1+growth_rate_cylinder_pricing)^(K$6-$E$6))) -> 0 | L63: =-Calculations!K13*(cylinder_cost*((1+growth_rate_cylinder_pricing)^(L$6-$E$6))) -> 0 | M63: =-Calculations!L13*(cylinder_cost*((1+growth_rate_cylinder_pricing)^(M$6-$E$6))) -> 0 | N63: =-Calculations!M13*(cylinder_cost*((1+growth_rate_cylinder_pricing)^(N$6-$E$6))) -> 0 | O63: =-Calculations!N13*(cylinder_cost*((1+growth_rate_cylinder_pricing)^(O$6-$E$6))) -> -3225.39931 | P63: =-Calculations!O13*(cylinder_cost*((1+growth_rate_cylinder_pricing)^(P$6-$E$6))) -> -3322.16129 | Q63: =-Calculations!P13*(cylinder_cost*((1+growth_rate_cylinder_pricing)^(Q$6-$E$6))) -> -5132.739193 | R63: =-Calculations!Q13*(cylinder_cost*((1+growth_rate_cylinder_pricing)^(R$6-$E$6))) -> -4405.60114 | S63: =-Calculations!R13*(cylinder_cost*((1+growth_rate_cylinder_pricing)^(S$6-$E$6))) -> -4537.769175 | T63: -20623.67011
A64: 57 | B64: sub-total | E64: =SUM(E61:E63) -> -4800 | F64: =SUM(F61:F63) -> -5191.2 | G64: -8147.712 | H64: -7474.25268 | I64: -8036.132903 | J64: -8624.999113 | K64: -7809.102019 | L64: -8338.544808 | M64: -7372.601874 | N64: -3131.455641 | O64: -6450.798621 | P64: -6644.322579 | Q64: -8554.565321 | R64: -7930.082053 | S64: -8167.984514 | T64: -106673.7541
A65: 58 | B65: Burners and ancillary equipment
A66: 59 | B66: New | E66: =-Calculations!D17*(burner_acquisition_cost*((1+growth_rate_burner)^(E$6-$E$6))) -> -800 | F66: =-Calculations!E17*(burner_acquisition_cost*((1+growth_rate_burner)^(F$6-$E$6))) -> -816 | G66: =-Calculations!F17*(burner_acquisition_cost*((1+growth_rate_burner)^(G$6-$E$6))) -> -1248.48 | H66: =-Calculations!G17*(burner_acquisition_cost*((1+growth_rate_burner)^(H$6-$E$6))) -> -1061.208 | I66: =-Calculations!H17*(burner_acquisition_cost*((1+growth_rate_burner)^(I$6-$E$6))) -> -1082.43216 | J66: =-Calculations!I17*(burner_acquisition_cost*((1+growth_rate_burner)^(J$6-$E$6))) -> -1104.080803 | K66: =-Calculations!J17*(burner_acquisition_cost*((1+growth_rate_burner)^(K$6-$E$6))) -> -900.9299354 | L66: =-Calculations!K17*(burner_acquisition_cost*((1+growth_rate_burner)^(L$6-$E$6))) -> -918.9485341 | M66: =-Calculations!L17*(burner_acquisition_cost*((1+growth_rate_burner)^(M$6-$E$6))) -> -702.9956286 | N66: =-Calculations!M17*(burner_acquisition_cost*((1+growth_rate_burner)^(N$6-$E$6))) -> 0 | O66: =-Calculations!N17*(burner_acquisition_cost*((1+growth_rate_burner)^(O$6-$E$6))) -> 0 | P66: =-Calculations!O17*(burner_acquisition_cost*((1+growth_rate_burner)^(P$6-$E$6))) -> 0 | Q66: =-Calculations!P17*(burner_acquisition_cost*((1+growth_rate_burner)^(Q$6-$E$6))) -> 0 | R66: =-Calculations!Q17*(burner_acquisition_cost*((1+growth_rate_burner)^(R$6-$E$6))) -> 0 | S66: =-Calculations!R17*(burner_acquisition_cost*((1+growth_rate_burner)^(S$6-$E$6))) -> 0 | T66: =SUM(E66:S66) -> -8635.075061
A67: 60 | B67: Reserve | E67: =-Calculations!D18*(burner_acquisition_cost*((1+growth_rate_burner)^(E$6-$E$6))) -> 0 | F67: =-Calculations!E18*(burner_acquisition_cost*((1+growth_rate_burner)^(F$6-$E$6))) -> -40.8 | G67: =-Calculations!F18*(burner_acquisition_cost*((1+growth_rate_burner)^(G$6-$E$6))) -> -83.232 | H67: =-Calculations!G18*(burner_acquisition_cost*((1+growth_rate_burner)^(H$6-$E$6))) -> -148.56912 | I67: =-Calculations!H18*(burner_acquisition_cost*((1+growth_rate_burner)^(I$6-$E$6))) -> -205.6621104 | J67: =-Calculations!I18*(burner_acquisition_cost*((1+growth_rate_burner)^(J$6-$E$6))) -> -264.9793928 | K67: =-Calculations!J18*(burner_acquisition_cost*((1+growth_rate_burner)^(K$6-$E$6))) -> -326.5871016 | L67: =-Calculations!K18*(burner_acquisition_cost*((1+growth_rate_burner)^(L$6-$E$6))) -> -379.0662703 | M67: =-Calculations!L18*(burner_acquisition_cost*((1+growth_rate_burner)^(M$6-$E$6))) -> -433.513971 | N67: =-Calculations!M18*(burner_acquisition_cost*((1+growth_rate_burner)^(N$6-$E$6))) -> -478.0370274 | O67: =-Calculations!N18*(burner_acquisition_cost*((1+growth_rate_burner)^(O$6-$E$6))) -> -487.597768 | P67: =-Calculations!O18*(burner_acquisition_cost*((1+growth_rate_burner)^(P$6-$E$6))) -> -497.3497234 | Q67: =-Calculations!P18*(burner_acquisition_cost*((1+growth_rate_burner)^(Q$6-$E$6))) -> -507.2967178 | R67: =-Calculations!Q18*(burner_acquisition_cost*((1+growth_rate_burner)^(R$6-$E$6))) -> -517.4426522 | S67: =-Calculations!R18*(burner_acquisition_cost*((1+growth_rate_burner)^(S$6-$E$6))) -> -527.7915052 | T67: =SUM(E67:S67) -> -4897.92536
A68: 61 | B68: Replacement | E68: =-Calculations!D19*(burner_acquisition_cost*((1+growth_rate_burner)^(E$6-$E$6))) -> 0 | F68: =-Calculations!E19*(burner_acquisition_cost*((1+growth_rate_burner)^(F$6-$E$6))) -> 0 | G68: =-Calculations!F19*(burner_acquisition_cost*((1+growth_rate_burner)^(G$6-$E$6))) -> 0 | H68: =-Calculations!G19*(burner_acquisition_cost*((1+growth_rate_burner)^(H$6-$E$6))) -> 0 | I68: =-Calculations!H19*(burner_acquisition_cost*((1+growth_rate_burner)^(I$6-$E$6))) -> 0 | J68: =-Calculations!I19*(burner_acquisition_cost*((1+growth_rate_burner)^(J$6-$E$6))) -> 0 | K68: =-Calculations!J19*(burner_acquisition_cost*((1+growth_rate_burner)^(K$6-$E$6))) -> 0 | L68: =-Calculations!K19*(burner_acquisition_cost*((1+growth_rate_burner)^(L$6-$E$6))) -> 0 | M68: =-Calculations!L19*(burner_acquisition_cost*((1+growth_rate_burner)^(M$6-$E$6))) -> 0 | N68: =-Calculations!M19*(burner_acquisition_cost*((1+growth_rate_burner)^(N$6-$E$6))) -> 0 | O68: =-Calculations!N19*(burner_acquisition_cost*((1+growth_rate_burner)^(O$6-$E$6))) -> -487.597768 | P68: =-Calculations!O19*(burner_acquisition_cost*((1+growth_rate_burner)^(P$6-$E$6))) -> -497.3497234 | Q68: =-Calculations!P19*(burner_acquisition_cost*((1+growth_rate_burner)^(Q$6-$E$6))) -> -760.9450767 | R68: =-Calculations!Q19*(burner_acquisition_cost*((1+growth_rate_burner)^(R$6-$E$6))) -> -646.8033152 | S68: =-Calculations!R19*(burner_acquisition_cost*((1+growth_rate_burner)^(S$6-$E$6))) -> -659.7393815 | T68: -3052.435265
A69: 62 | B69: sub-total | E69: =SUM(E66:E68) -> -800 | F69: =SUM(F66:F68) -> -856.8 | G69: -1331.712 | H69: -1209.77712 | I69: -1288.09427 | J69: -1369.060196 | K69: -1227.517037 | L69: -1298.014804 | M69: -1136.5096 | N69: -478.0370274 | O69: -975.195536 | P69: -994.6994467 | Q69: -1268.241795 | R69: -1164.245967 | S69: -1187.530887 | T69: -16585.43569
A70: =A69+1 -> 63 | B70: Total COGS | E70: =E69+E64+E59 -> -63200 | F70: -121824 | G70: -213100.464 | H70: -286408.584 | I70: -361888.2402 | J70: -438138.9826 | K70: -498672.0115 | L70: -561366.6223 | M70: -607956.3688 | N70: -606053.9863 | O70: -612882.7102 | P70: -616123.0217 | Q70: -621349.2267 | R70: -623678.3798 | S70: -627012.4874 | T70: =SUM(E70:S70) -> -6859655.085
A71: =A70+1 -> 64 | B71: Operations
A72: 65 | B72: Personnel | E72: =-SUM(Calculations!D$50:D$69) -> -40000 | F72: =-SUM(Calculations!E$50:E$69) -> -63275 | G72: =-SUM(Calculations!F$50:F$69) -> -83379.625 | H72: =-SUM(Calculations!G$50:G$69) -> -84953.34312 | I72: =-SUM(Calculations!H$50:H$69) -> -86561.29648 | J72: =-SUM(Calculations!I$50:I$69) -> -88204.28986 | K72: =-SUM(Calculations!J$50:J$69) -> -89883.14769 | L72: =-SUM(Calculations!K$50:K$69) -> -91598.71447 | M72: =-SUM(Calculations!L$50:L$69) -> -93351.8553 | N72: =-SUM(Calculations!M$50:M$69) -> -95143.45638 | O72: =-SUM(Calculations!N$50:N$69) -> -96974.42554 | P72: =-SUM(Calculations!O$50:O$69) -> -98845.69275 | Q72: =-SUM(Calculations!P$50:P$69) -> -100758.2107 | R72: =-SUM(Calculations!Q$50:Q$69) -> -102712.9554 | S72: =-SUM(Calculations!R$50:R$69) -> -104710.9265 | T72: =SUM(E72:S72) -> -1320352.939
A73: =A72+1 -> 66 | B73: Administation
A74: 67 | B74: Insurance | E74: =-'General Assumptions'!$D$31*(1+growth_rate_opex)^D$6 -> -7500 | F74: =-'General Assumptions'!$D$31*(1+growth_rate_opex)^E$6 -> -7725 | G74: =-'General Assumptions'!$D$31*(1+growth_rate_opex)^F$6 -> -7956.75 | H74: =-'General Assumptions'!$D$31*(1+growth_rate_opex)^G$6 -> -8195.4525 | I74: =-'General Assumptions'!$D$31*(1+growth_rate_opex)^H$6 -> -8441.316075 | J74: =-'General Assumptions'!$D$31*(1+growth_rate_opex)^I$6 -> -8694.555557 | K74: =-'General Assumptions'!$D$31*(1+growth_rate_opex)^J$6 -> -8955.392224 | L74: =-'General Assumptions'!$D$31*(1+growth_rate_opex)^K$6 -> -9224.053991 | M74: =-'General Assumptions'!$D$31*(1+growth_rate_opex)^L$6 -> -9500.77561 | N74: =-'General Assumptions'!$D$31*(1+growth_rate_opex)^M$6 -> -9785.798879 | O74: =-'General Assumptions'!$D$31*(1+growth_rate_opex)^N$6 -> -10079.37285 | P74: =-'General Assumptions'!$D$31*(1+growth_rate_opex)^O$6 -> -10381.75403 | Q74: =-'General Assumptions'!$D$31*(1+growth_rate_opex)^P$6 -> -10693.20665 | R74: =-'General Assumptions'!$D$31*(1+growth_rate_opex)^Q$6 -> -11014.00285 | S74: =-'General Assumptions'!$D$31*(1+growth_rate_opex)^R$6 -> -11344.42294 | T74: -139491.8542
A75: 68 | B75: Legal | E75: =-'General Assumptions'!$D$32*(1+growth_rate_opex)^D$6 -> -5000 | F75: =-'General Assumptions'!$D$32*(1+growth_rate_opex)^E$6 -> -5150 | G75: =-'General Assumptions'!$D$32*(1+growth_rate_opex)^F$6 -> -5304.5 | H75: =-'General Assumptions'!$D$32*(1+growth_rate_opex)^G$6 -> -5463.635 | I75: =-'General Assumptions'!$D$32*(1+growth_rate_opex)^H$6 -> -5627.54405 | J75: =-'General Assumptions'!$D$32*(1+growth_rate_opex)^I$6 -> -5796.370371 | K75: =-'General Assumptions'!$D$32*(1+growth_rate_opex)^J$6 -> -5970.261483 | L75: =-'General Assumptions'!$D$32*(1+growth_rate_opex)^K$6 -> -6149.369327 | M75: =-'General Assumptions'!$D$32*(1+growth_rate_opex)^L$6 -> -6333.850407 | N75: =-'General Assumptions'!$D$32*(1+growth_rate_opex)^M$6 -> -6523.865919 | O75: =-'General Assumptions'!$D$32*(1+growth_rate_opex)^N$6 -> -6719.581897 | P75: =-'General Assumptions'!$D$32*(1+growth_rate_opex)^O$6 -> -6921.169354 | Q75: =-'General Assumptions'!$D$32*(1+growth_rate_opex)^P$6 -> -7128.804434 | R75: =-'General Assumptions'!$D$32*(1+growth_rate_opex)^Q$6 -> -7342.668567 | S75: =-'General Assumptions'!$D$32*(1+growth_rate_opex)^R$6 -> -7562.948624 | T75: -92994.56943
A76: 69 | B76: Taxes | E76: =-'General Assumptions'!$D$33*(1+growth_rate_opex)^D$6 -> -3000 | F76: =-'General Assumptions'!$D$33*(1+growth_rate_opex)^E$6 -> -3090 | G76: =-'General Assumptions'!$D$33*(1+growth_rate_opex)^F$6 -> -3182.7 | H76: =-'General Assumptions'!$D$33*(1+growth_rate_opex)^G$6 -> -3278.181 | I76: =-'General Assumptions'!$D$33*(1+growth_rate_opex)^H$6 -> -3376.52643 | J76: =-'General Assumptions'!$D$33*(1+growth_rate_opex)^I$6 -> -3477.822223 | K76: =-'General Assumptions'!$D$33*(1+growth_rate_opex)^J$6 -> -3582.15689 | L76: =-'General Assumptions'!$D$33*(1+growth_rate_opex)^K$6 -> -3689.621596 | M76: =-'General Assumptions'!$D$33*(1+growth_rate_opex)^L$6 -> -3800.310244 | N76: =-'General Assumptions'!$D$33*(1+growth_rate_opex)^M$6 -> -3914.319551 | O76: =-'General Assumptions'!$D$33*(1+growth_rate_opex)^N$6 -> -4031.749138 | P76: =-'General Assumptions'!$D$33*(1+growth_rate_opex)^O$6 -> -4152.701612 | Q76: =-'General Assumptions'!$D$33*(1+growth_rate_opex)^P$6 -> -4277.282661 | R76: =-'General Assumptions'!$D$33*(1+growth_rate_opex)^Q$6 -> -4405.60114 | S76: =-'General Assumptions'!$D$33*(1+growth_rate_opex)^R$6 -> -4537.769175 | T76: -55796.74166
A77: 70 | B77: Marketing | E77: =-'General Assumptions'!$D$34*(1+growth_rate_opex)^D$6 -> -15500 | F77: =-'General Assumptions'!$D$34*(1+growth_rate_opex)^E$6 -> -15965 | G77: =-'General Assumptions'!$D$34*(1+growth_rate_opex)^F$6 -> -16443.95 | H77: =-'General Assumptions'!$D$34*(1+growth_rate_opex)^G$6 -> -16937.2685 | I77: =-'General Assumptions'!$D$34*(1+growth_rate_opex)^H$6 -> -17445.38655 | J77: =-'General Assumptions'!$D$34*(1+growth_rate_opex)^I$6 -> -17968.74815 | K77: =-'General Assumptions'!$D$34*(1+growth_rate_opex)^J$6 -> -18507.8106 | L77: =-'General Assumptions'!$D$34*(1+growth_rate_opex)^K$6 -> -19063.04491 | M77: =-'General Assumptions'!$D$34*(1+growth_rate_opex)^L$6 -> -19634.93626 | N77: =-'General Assumptions'!$D$34*(1+growth_rate_opex)^M$6 -> -20223.98435 | O77: =-'General Assumptions'!$D$34*(1+growth_rate_opex)^N$6 -> -20830.70388 | P77: =-'General Assumptions'!$D$34*(1+growth_rate_opex)^O$6 -> -21455.625 | Q77: =-'General Assumptions'!$D$34*(1+growth_rate_opex)^P$6 -> -22099.29375 | R77: =-'General Assumptions'!$D$34*(1+growth_rate_opex)^Q$6 -> -22762.27256 | S77: =-'General Assumptions'!$D$34*(1+growth_rate_opex)^R$6 -> -23445.14074 | T77: -288283.1652
A78: 71 | B78: Misc. | E78: =-'General Assumptions'!$D$36*(1+growth_rate_opex)^D$6 -> -3100 | F78: =-'General Assumptions'!$D$36*(1+growth_rate_opex)^E$6 -> -3193 | G78: =-'General Assumptions'!$D$36*(1+growth_rate_opex)^F$6 -> -3288.79 | H78: =-'General Assumptions'!$D$36*(1+growth_rate_opex)^G$6 -> -3387.4537 | I78: =-'General Assumptions'!$D$36*(1+growth_rate_opex)^H$6 -> -3489.077311 | J78: =-'General Assumptions'!$D$36*(1+growth_rate_opex)^I$6 -> -3593.74963 | K78: =-'General Assumptions'!$D$36*(1+growth_rate_opex)^J$6 -> -3701.562119 | L78: =-'General Assumptions'!$D$36*(1+growth_rate_opex)^K$6 -> -3812.608983 | M78: =-'General Assumptions'!$D$36*(1+growth_rate_opex)^L$6 -> -3926.987252 | N78: =-'General Assumptions'!$D$36*(1+growth_rate_opex)^M$6 -> -4044.79687 | O78: =-'General Assumptions'!$D$36*(1+growth_rate_opex)^N$6 -> -4166.140776 | P78: =-'General Assumptions'!$D$36*(1+growth_rate_opex)^O$6 -> -4291.124999 | Q78: =-'General Assumptions'!$D$36*(1+growth_rate_opex)^P$6 -> -4419.858749 | R78: =-'General Assumptions'!$D$36*(1+growth_rate_opex)^Q$6 -> -4552.454512 | S78: =-'General Assumptions'!$D$36*(1+growth_rate_opex)^R$6 -> -4689.028147 | T78: -57656.63305
A79: 72 | B79: Sub-Total | E79: =SUM(E71:E78) -> -74100 | F79: -98398 | G79: -119556.315 | H79: -122215.3338 | I79: -124941.1469 | J79: -127735.5358 | K79: -130600.331 | L79: -133537.4133 | M79: -136548.7151 | N79: -139636.222 | O79: -142801.9741 | P79: -146048.0677 | Q79: -149376.657 | R79: -152789.955 | S79: -156290.2362 | T79: -1954575.903
A80: 73 | B80: Infrastructure O&M
A81: 74 | B81: =Calculations!B28 -> Storage | E81: =-Calculations!D40 -> -5000 | F81: =-Calculations!E40 -> -5075 | G81: =-Calculations!F40 -> -5151.125 | H81: =-Calculations!G40 -> -5228.391875 | I81: =-Calculations!H40 -> -7960.22663 | J81: =-Calculations!I40 -> -8079.630029 | K81: =-Calculations!J40 -> -8200.82448 | L81: =-Calculations!K40 -> -11098.44913 | M81: =-Calculations!L40 -> -11264.92587 | N81: =-Calculations!M40 -> -11433.89975 | O81: =-Calculations!N40 -> -14506.76031 | P81: =-Calculations!O40 -> -14724.36172 | Q81: =-Calculations!P40 -> -14945.22714 | R81: =-Calculations!Q40 -> -15169.40555 | S81: =-Calculations!R40 -> -15396.94663 | T81: =SUM(E81:S81) -> -153235.1741
A82: 75 | B82: =Calculations!B29 -> Refueling Stations | E82: =-Calculations!D41 -> -2500 | F82: =-Calculations!E41 -> -2531.25 | G82: =-Calculations!F41 -> -3844.335938 | H82: =-Calculations!G41 -> -5189.853516 | I82: =-Calculations!H41 -> -6568.408356 | J82: =-Calculations!I41 -> -6650.51346 | K82: =-Calculations!J41 -> -6733.644878 | L82: =-Calculations!K41 -> -8181.378527 | M82: =-Calculations!L41 -> -9664.253385 | N82: =-Calculations!M41 -> -9785.056553 | O82: =-Calculations!N41 -> -12738.04683 | P82: =-Calculations!O41 -> -12897.27242 | Q82: =-Calculations!P41 -> -13058.48832 | R82: =-Calculations!Q41 -> -14690.79936 | S82: =-Calculations!R41 -> -14874.43436 | T82: =SUM(E82:S82) -> -129907.7359
A83: 76 | B83: =Calculations!B30 -> Transportation | E83: =-Calculations!D42 -> -6000 | F83: =-Calculations!E42 -> -6150 | G83: =-Calculations!F42 -> -6303.75 | H83: =-Calculations!G42 -> -12922.6875 | I83: =-Calculations!H42 -> -13245.75469 | J83: =-Calculations!I42 -> -13576.89855 | K83: =-Calculations!J42 -> -13916.32102 | L83: =-Calculations!K42 -> -17830.28631 | M83: =-Calculations!L42 -> -18276.04346 | N83: =-Calculations!M42 -> -18732.94455 | O83: =-Calculations!N42 -> -19201.26816 | P83: =-Calculations!O42 -> -19681.29987 | Q83: =-Calculations!P42 -> -20173.33236 | R83: =-Calculations!Q42 -> -24813.19881 | S83: =-Calculations!R42 -> -25433.52878 | T83: =SUM(E83:S83) -> -236257.3141
A84: 77 | B84: =Calculations!B31 -> Misc. | E84: =-Calculations!D43 -> 0 | F84: =-Calculations!E43 -> 0 | G84: =-Calculations!F43 -> -1020.1 | H84: =-Calculations!G43 -> -1030.301 | I84: =-Calculations!H43 -> -1040.60401 | J84: =-Calculations!I43 -> -1051.01005 | K84: =-Calculations!J43 -> -1061.520151 | L84: =-Calculations!K43 -> -1072.135352 | M84: =-Calculations!L43 -> -1624.285058 | N84: =-Calculations!M43 -> -1640.527909 | O84: =-Calculations!N43 -> -1656.933188 | P84: =-Calculations!O43 -> -1673.50252 | Q84: =-Calculations!P43 -> -1690.237545 | R84: =-Calculations!Q43 -> -2276.186561 | S84: =-Calculations!R43 -> -2298.948426 | T84: =SUM(E84:S84) -> -19136.29177
A85: 78 | B85: Sub-Total | E85: =SUM(E81:E84) -> -13500 | F85: =SUM(F81:F84) -> -13756.25 | G85: -16319.31094 | H85: -24371.23389 | I85: -28814.99368 | J85: -29358.05209 | K85: -29912.31053 | L85: -38182.24931 | M85: -40829.50777 | N85: -41592.42876 | O85: -48103.0085 | P85: -48976.43652 | Q85: -49867.28538 | R85: -56949.59028 | S85: -58003.85819 | T85: =SUM(E85:S85) -> -538536.5159
A86: 79
A87: 80 | B87: TOTAL EXPENSES | E87: =E85+E79+E72+E70 -> -190800 | F87: =F85+F79+F72+F70 -> -297253.25 | G87: -432355.7149 | H87: -517948.4948 | I87: -602205.6772 | J87: -683436.8604 | K87: -749067.8007 | L87: -824684.9994 | M87: -878686.4469 | N87: -882426.0934 | O87: -900762.1183 | P87: -909993.2187 | Q87: -921351.3798 | R87: -936130.8804 | S87: -946017.5083 | T87: =SUM(E87:S87) -> -10673120.44
A88: 81
A89: =A101+1 -> 91 | B89: Operations + Ongoing CapEx Cash Flow Gap
A90: =A89+1 -> 92 | B90: Annual | E90: =E87+E55+E40 -> -119800 | F90: =F87+F55+F40 -> -72169.25 | G90: -50969.78681 | H90: -11571.68366 | I90: 59299.51207 | J90: 133265.3485 | K90: 181399.7294 | L90: 196926.5709 | M90: 243352.9726 | N90: 250832.1323 | O90: 213467.0875 | P90: 230893.2329 | Q90: 223521.6653 | R90: 188782.0439 | S90: 207191.1053 | T90: =SUM(E90:S90) -> 1874420.68
A91: =A90+1 -> 93 | B91: Cumulative | E91: =D91+E90 -> -119800 | F91: =E91+F90 -> -191969.25 | G91: =F91+G90 -> -242939.0368 | H91: =G91+H90 -> -254510.7205 | I91: =H91+I90 -> -195211.2084 | J91: =I91+J90 -> -61945.85987 | K91: 119453.8695 | L91: 316380.4405 | M91: 559733.413 | N91: 810565.5453 | O91: 1024032.633 | P91: 1254925.866 | Q91: 1478447.531 | R91: 1667229.575 | S91: 1874420.68
A93: =A88+1 -> 82 | B93: FINANCING
A94: =A93+1 -> 83 | B94: Debt Service
A95: 84 | B95: Loan A | E95: =-INDEX(debt_service_table_loan_A,E$6,3) -> -9517.345274 | F95: -9517.345274 | G95: -9517.345274 | H95: -9517.345274 | I95: -9517.345274 | J95: 0 | K95: 0 | L95: 0 | M95: 0 | N95: 0 | O95: 0 | P95: 0 | Q95: 0 | R95: 0 | S95: 0 | T95: =SUM(E95:S95) -> -47586.72637
A96: 85 | B96: Loan B | E96: =-INDEX(debt_service_table_loan_B,E$6,3) -> 0 | F96: 0 | G96: 0 | H96: 0 | I96: 0 | J96: 0 | K96: 0 | L96: 0 | M96: 0 | N96: 0 | O96: 0 | P96: 0 | Q96: 0 | R96: 0 | S96: 0 | T96: 0
A97: 86 | B97: Loan C | E97: =-INDEX(debt_service_table_loan_C,E$6,3) -> 
A98: 87 | B98: Loan D | E98: =-INDEX(debt_service_table_loan_D,E$6,3) -> 
A99: 88 | B99: Loan E | E99: =-INDEX(debt_service_table_loan_E,E$6,3) -> 
A100: 89 | B100: TOTAL FINANCING | E100: =SUM(E95:E99) ->  | F100: =SUM(F95:F99) -> 
A101: 90
A105: =A91+1 -> 94
A106: 95
A107: 96

Sheet Cashflows
B1: ='General Assumptions'!D7 -> Country Y LPG Project
B2: Statement of Cashflows
B3: Annual Calculation
B4: All numbers based on USD
G5: Year
A6: Line | F6: 0 | G6: =F6+1 -> 1 | H6: =G6+1 -> 2 | I6: 3 | J6: 4 | K6: 5 | L6: 6 | M6: 7 | N6: 8 | O6: 9 | P6: 10 | Q6: 11 | R6: 12 | S6: 13 | T6: 14 | U6: 15 | V6: Total
A8: 1 | B8: INVESTMENT
C9: CapEx
A10: =#REF!+1 ->  | C10: ='General Assumptions'!J18 -> Office (capitalized portion) | F10: =-'General Assumptions'!L18*IF(F$6=0,1,0) -> -7000 | V10: =SUM(F10:U10) -> -7000
A11: =A10+1 ->  | C11: ='General Assumptions'!J14 -> Storage | F11: =-'General Assumptions'!L14*IF(F$6=0,1,0) -> -10000 | G11: =-Calculations!D34 -> -10000 | H11: =-Calculations!E34 -> 0 | I11: =-Calculations!F34 -> 0 | J11: =-Calculations!G34 -> 0 | K11: =-Calculations!H34 -> -5306.817753 | L11: =-Calculations!I34 -> 0 | M11: =-Calculations!J34 -> 0 | N11: =-Calculations!K34 -> -5549.224565 | O11: =-Calculations!L34 -> 0 | P11: =-Calculations!M34 -> 0 | Q11: =-Calculations!N34 -> -5802.704125 | R11: =-Calculations!O34 -> 0 | S11: =-Calculations!P34 -> 0 | T11: =-Calculations!Q34 -> 0 | U11: =-Calculations!R34 -> 0 | V11: -36658.74644
C12: ='General Assumptions'!J15 -> Refueling Stations | F12: =-'General Assumptions'!L15*IF(F$6=0,1,0) -> -15000 | G12: =-Calculations!D35 -> -15000 | H12: =-Calculations!E35 -> 0 | I12: =-Calculations!F35 -> -7688.671875 | J12: =-Calculations!G35 -> -7784.780273 | K12: =-Calculations!H35 -> -7882.090027 | L12: =-Calculations!I35 -> 0 | M12: =-Calculations!J35 -> 0 | N12: =-Calculations!K35 -> -8181.378527 | O12: =-Calculations!L35 -> -8283.645759 | P12: =-Calculations!M35 -> 0 | Q12: =-Calculations!N35 -> -16984.06244 | R12: =-Calculations!O35 -> 0 | S12: =-Calculations!P35 -> 0 | T12: =-Calculations!Q35 -> -8814.479619 | U12: =-Calculations!R35 -> 0 | V12: -95619.10853
C13: ='General Assumptions'!J16 -> Transportation | F13: =-'General Assumptions'!L16*IF(F$6=0,1,0) -> -18000 | G13: =-Calculations!D36 -> -18000 | H13: =-Calculations!E36 -> 0 | I13: =-Calculations!F36 -> 0 | J13: =-Calculations!G36 -> -19384.03125 | K13: =-Calculations!H36 -> 0 | L13: =-Calculations!I36 -> 0 | M13: =-Calculations!J36 -> 0 | N13: =-Calculations!K36 -> -10698.17178 | O13: =-Calculations!L36 -> 0 | P13: =-Calculations!M36 -> 0 | Q13: =-Calculations!N36 -> 0 | R13: =-Calculations!O36 -> 0 | S13: =-Calculations!P36 -> 0 | T13: =-Calculations!Q36 -> -12406.5994 | U13: =-Calculations!R36 -> 0 | V13: -78488.80244
C14: ='General Assumptions'!J17 -> Misc. Infrastructure | F14: =-'General Assumptions'!L17*IF(F$6=0,1,0) -> -5000 | G14: =-Calculations!D37 -> 0 | H14: =-Calculations!E37 -> 0 | I14: =-Calculations!F37 -> -5100.5 | J14: =-Calculations!G37 -> 0 | K14: =-Calculations!H37 -> 0 | L14: =-Calculations!I37 -> 0 | M14: =-Calculations!J37 -> 0 | N14: =-Calculations!K37 -> 0 | O14: =-Calculations!L37 -> -2707.141764 | P14: =-Calculations!M37 -> 0 | Q14: =-Calculations!N37 -> 0 | R14: =-Calculations!O37 -> 0 | S14: =-Calculations!P37 -> 0 | T14: =-Calculations!Q37 -> -2845.233201 | U14: =-Calculations!R37 -> 0 | V14: -15652.87497
C15: ='General Assumptions'!J19 -> Office Equip | F15: =-'General Assumptions'!$L19*IF(F$6=0,1,0) -> -3500 | G15: =-'General Assumptions'!$L19*IF(G$6=0,1,0) -> 0 | H15: =-'General Assumptions'!$L19*IF(H$6=0,1,0) -> 0 | I15: =-'General Assumptions'!$L19*IF(I$6=0,1,0) -> 0 | J15: =-'General Assumptions'!$L19*IF(J$6=0,1,0) -> 0 | K15: =-'General Assumptions'!$L19*IF(K$6=0,1,0) -> 0 | L15: =-'General Assumptions'!$L19*IF(L$6=0,1,0) -> 0 | M15: =-'General Assumptions'!$L19*IF(M$6=0,1,0) -> 0 | N15: =-'General Assumptions'!$L19*IF(N$6=0,1,0) -> 0 | O15: =-'General Assumptions'!$L19*IF(O$6=0,1,0) -> 0 | P15: =-'General Assumptions'!$L19*IF(P$6=0,1,0) -> 0 | Q15: =-'General Assumptions'!$L19*IF(Q$6=0,1,0) -> 0 | R15: =-'General Assumptions'!$L19*IF(R$6=0,1,0) -> 0 | S15: =-'General Assumptions'!$L19*IF(S$6=0,1,0) -> 0 | T15: =-'General Assumptions'!$L19*IF(T$6=0,1,0) -> 0 | U15: =-'General Assumptions'!$L19*IF(U$6=0,1,0) -> 0 | V15: -3500
C16: ='General Assumptions'!J20 -> Licences | F16: =-'General Assumptions'!$L20*IF(F$6=0,1,0) -> -12000 | G16: =-'General Assumptions'!$L20*IF(G$6=0,1,0) -> 0 | H16: =-'General Assumptions'!$L20*IF(H$6=0,1,0) -> 0 | I16: =-'General Assumptions'!$L20*IF(I$6=0,1,0) -> 0 | J16: =-'General Assumptions'!$L20*IF(J$6=0,1,0) -> 0 | K16: =-'General Assumptions'!$L20*IF(K$6=0,1,0) -> 0 | L16: =-'General Assumptions'!$L20*IF(L$6=0,1,0) -> 0 | M16: =-'General Assumptions'!$L20*IF(M$6=0,1,0) -> 0 | N16: =-'General Assumptions'!$L20*IF(N$6=0,1,0) -> 0 | O16: =-'General Assumptions'!$L20*IF(O$6=0,1,0) -> 0 | P16: =-'General Assumptions'!$L20*IF(P$6=0,1,0) -> 0 | Q16: =-'General Assumptions'!$L20*IF(Q$6=0,1,0) -> 0 | R16: =-'General Assumptions'!$L20*IF(R$6=0,1,0) -> 0 | S16: =-'General Assumptions'!$L20*IF(S$6=0,1,0) -> 0 | T16: =-'General Assumptions'!$L20*IF(T$6=0,1,0) -> 0 | U16: =-'General Assumptions'!$L20*IF(U$6=0,1,0) -> 0 | V16: -12000
C17: ='General Assumptions'!J21 -> Legal | F17: =-'General Assumptions'!$L21*IF(F$6=0,1,0) -> -5000 | G17: =-'General Assumptions'!$L21*IF(G$6=0,1,0) -> 0 | H17: =-'General Assumptions'!$L21*IF(H$6=0,1,0) -> 0 | I17: =-'General Assumptions'!$L21*IF(I$6=0,1,0) -> 0 | J17: =-'General Assumptions'!$L21*IF(J$6=0,1,0) -> 0 | K17: =-'General Assumptions'!$L21*IF(K$6=0,1,0) -> 0 | L17: =-'General Assumptions'!$L21*IF(L$6=0,1,0) -> 0 | M17: =-'General Assumptions'!$L21*IF(M$6=0,1,0) -> 0 | N17: =-'General Assumptions'!$L21*IF(N$6=0,1,0) -> 0 | O17: =-'General Assumptions'!$L21*IF(O$6=0,1,0) -> 0 | P17: =-'General Assumptions'!$L21*IF(P$6=0,1,0) -> 0 | Q17: =-'General Assumptions'!$L21*IF(Q$6=0,1,0) -> 0 | R17: =-'General Assumptions'!$L21*IF(R$6=0,1,0) -> 0 | S17: =-'General Assumptions'!$L21*IF(S$6=0,1,0) -> 0 | T17: =-'General Assumptions'!$L21*IF(T$6=0,1,0) -> 0 | U17: =-'General Assumptions'!$L21*IF(U$6=0,1,0) -> 0 | V17: -5000
C18: ='General Assumptions'!J22 -> Accounting | F18: =-'General Assumptions'!$L22*IF(F$6=0,1,0) -> -2500 | G18: =-'General Assumptions'!$L22*IF(G$6=0,1,0) -> 0 | H18: =-'General Assumptions'!$L22*IF(H$6=0,1,0) -> 0 | I18: =-'General Assumptions'!$L22*IF(I$6=0,1,0) -> 0 | J18: =-'General Assumptions'!$L22*IF(J$6=0,1,0) -> 0 | K18: =-'General Assumptions'!$L22*IF(K$6=0,1,0) -> 0 | L18: =-'General Assumptions'!$L22*IF(L$6=0,1,0) -> 0 | M18: =-'General Assumptions'!$L22*IF(M$6=0,1,0) -> 0 | N18: =-'General Assumptions'!$L22*IF(N$6=0,1,0) -> 0 | O18: =-'General Assumptions'!$L22*IF(O$6=0,1,0) -> 0 | P18: =-'General Assumptions'!$L22*IF(P$6=0,1,0) -> 0 | Q18: =-'General Assumptions'!$L22*IF(Q$6=0,1,0) -> 0 | R18: =-'General Assumptions'!$L22*IF(R$6=0,1,0) -> 0 | S18: =-'General Assumptions'!$L22*IF(S$6=0,1,0) -> 0 | T18: =-'General Assumptions'!$L22*IF(T$6=0,1,0) -> 0 | U18: =-'General Assumptions'!$L22*IF(U$6=0,1,0) -> 0 | V18: -2500
A19: =A18+1 ->  | C19: ='General Assumptions'!J23 -> Other (corporate start up) | F19: =-'General Assumptions'!$L23*IF(F$6=0,1,0) -> -10000 | G19: =-'General Assumptions'!$L23*IF(G$6=0,1,0) -> 0 | H19: =-'General Assumptions'!$L23*IF(H$6=0,1,0) -> 0 | I19: =-'General Assumptions'!$L23*IF(I$6=0,1,0) -> 0 | J19: =-'General Assumptions'!$L23*IF(J$6=0,1,0) -> 0 | K19: =-'General Assumptions'!$L23*IF(K$6=0,1,0) -> 0 | L19: =-'General Assumptions'!$L23*IF(L$6=0,1,0) -> 0 | M19: =-'General Assumptions'!$L23*IF(M$6=0,1,0) -> 0 | N19: =-'General Assumptions'!$L23*IF(N$6=0,1,0) -> 0 | O19: =-'General Assumptions'!$L23*IF(O$6=0,1,0) -> 0 | P19: =-'General Assumptions'!$L23*IF(P$6=0,1,0) -> 0 | Q19: =-'General Assumptions'!$L23*IF(Q$6=0,1,0) -> 0 | R19: =-'General Assumptions'!$L23*IF(R$6=0,1,0) -> 0 | S19: =-'General Assumptions'!$L23*IF(S$6=0,1,0) -> 0 | T19: =-'General Assumptions'!$L23*IF(T$6=0,1,0) -> 0 | U19: =-'General Assumptions'!$L23*IF(U$6=0,1,0) -> 0 | V19: -10000
C20: ='General Assumptions'!J24 -> ADD | F20: =-'General Assumptions'!$L24*IF(F$6=0,1,0) -> 0 | G20: =-'General Assumptions'!$L24*IF(G$6=0,1,0) -> 0 | H20: =-'General Assumptions'!$L24*IF(H$6=0,1,0) -> 0 | I20: =-'General Assumptions'!$L24*IF(I$6=0,1,0) -> 0 | J20: =-'General Assumptions'!$L24*IF(J$6=0,1,0) -> 0 | K20: =-'General Assumptions'!$L24*IF(K$6=0,1,0) -> 0 | L20: =-'General Assumptions'!$L24*IF(L$6=0,1,0) -> 0 | M20: =-'General Assumptions'!$L24*IF(M$6=0,1,0) -> 0 | N20: =-'General Assumptions'!$L24*IF(N$6=0,1,0) -> 0 | O20: =-'General Assumptions'!$L24*IF(O$6=0,1,0) -> 0 | P20: =-'General Assumptions'!$L24*IF(P$6=0,1,0) -> 0 | Q20: =-'General Assumptions'!$L24*IF(Q$6=0,1,0) -> 0 | R20: =-'General Assumptions'!$L24*IF(R$6=0,1,0) -> 0 | S20: =-'General Assumptions'!$L24*IF(S$6=0,1,0) -> 0 | T20: =-'General Assumptions'!$L24*IF(T$6=0,1,0) -> 0 | U20: =-'General Assumptions'!$L24*IF(U$6=0,1,0) -> 0 | V20: 0
C21: ='General Assumptions'!J25 -> ADD | F21: =-'General Assumptions'!$L25*IF(F$6=0,1,0) -> 0 | G21: =-'General Assumptions'!$L25*IF(G$6=0,1,0) -> 0 | H21: =-'General Assumptions'!$L25*IF(H$6=0,1,0) -> 0 | I21: =-'General Assumptions'!$L25*IF(I$6=0,1,0) -> 0 | J21: =-'General Assumptions'!$L25*IF(J$6=0,1,0) -> 0 | K21: =-'General Assumptions'!$L25*IF(K$6=0,1,0) -> 0 | L21: =-'General Assumptions'!$L25*IF(L$6=0,1,0) -> 0 | M21: =-'General Assumptions'!$L25*IF(M$6=0,1,0) -> 0 | N21: =-'General Assumptions'!$L25*IF(N$6=0,1,0) -> 0 | O21: =-'General Assumptions'!$L25*IF(O$6=0,1,0) -> 0 | P21: =-'General Assumptions'!$L25*IF(P$6=0,1,0) -> 0 | Q21: =-'General Assumptions'!$L25*IF(Q$6=0,1,0) -> 0 | R21: =-'General Assumptions'!$L25*IF(R$6=0,1,0) -> 0 | S21: =-'General Assumptions'!$L25*IF(S$6=0,1,0) -> 0 | T21: =-'General Assumptions'!$L25*IF(T$6=0,1,0) -> 0 | U21: =-'General Assumptions'!$L25*IF(U$6=0,1,0) -> 0 | V21: 0
C22: ='General Assumptions'!J26 -> ADD | F22: =-'General Assumptions'!$L26*IF(F$6=0,1,0) -> 0 | G22: =-'General Assumptions'!$L26*IF(G$6=0,1,0) -> 0 | H22: =-'General Assumptions'!$L26*IF(H$6=0,1,0) -> 0 | I22: =-'General Assumptions'!$L26*IF(I$6=0,1,0) -> 0 | J22: =-'General Assumptions'!$L26*IF(J$6=0,1,0) -> 0 | K22: =-'General Assumptions'!$L26*IF(K$6=0,1,0) -> 0 | L22: =-'General Assumptions'!$L26*IF(L$6=0,1,0) -> 0 | M22: =-'General Assumptions'!$L26*IF(M$6=0,1,0) -> 0 | N22: =-'General Assumptions'!$L26*IF(N$6=0,1,0) -> 0 | O22: =-'General Assumptions'!$L26*IF(O$6=0,1,0) -> 0 | P22: =-'General Assumptions'!$L26*IF(P$6=0,1,0) -> 0 | Q22: =-'General Assumptions'!$L26*IF(Q$6=0,1,0) -> 0 | R22: =-'General Assumptions'!$L26*IF(R$6=0,1,0) -> 0 | S22: =-'General Assumptions'!$L26*IF(S$6=0,1,0) -> 0 | T22: =-'General Assumptions'!$L26*IF(T$6=0,1,0) -> 0 | U22: =-'General Assumptions'!$L26*IF(U$6=0,1,0) -> 0 | V22: 0
C23: ='General Assumptions'!J27 -> ADD | F23: =-'General Assumptions'!$L27*IF(F$6=0,1,0) -> 0 | G23: =-'General Assumptions'!$L27*IF(G$6=0,1,0) -> 0 | H23: =-'General Assumptions'!$L27*IF(H$6=0,1,0) -> 0 | I23: =-'General Assumptions'!$L27*IF(I$6=0,1,0) -> 0 | J23: =-'General Assumptions'!$L27*IF(J$6=0,1,0) -> 0 | K23: =-'General Assumptions'!$L27*IF(K$6=0,1,0) -> 0 | L23: =-'General Assumptions'!$L27*IF(L$6=0,1,0) -> 0 | M23: =-'General Assumptions'!$L27*IF(M$6=0,1,0) -> 0 | N23: =-'General Assumptions'!$L27*IF(N$6=0,1,0) -> 0 | O23: =-'General Assumptions'!$L27*IF(O$6=0,1,0) -> 0 | P23: =-'General Assumptions'!$L27*IF(P$6=0,1,0) -> 0 | Q23: =-'General Assumptions'!$L27*IF(Q$6=0,1,0) -> 0 | R23: =-'General Assumptions'!$L27*IF(R$6=0,1,0) -> 0 | S23: =-'General Assumptions'!$L27*IF(S$6=0,1,0) -> 0 | T23: =-'General Assumptions'!$L27*IF(T$6=0,1,0) -> 0 | U23: =-'General Assumptions'!$L27*IF(U$6=0,1,0) -> 0 | V23: 0
A25: =A24+1 -> 1 | C25: TOTAL INVESTMENT | F25: =SUM(F10:F24) -> -88000 | G25: -43000 | H25: 0 | I25: -12789.17188 | J25: -27168.81152 | K25: -13188.90778 | L25: 0 | M25: 0 | N25: -24428.77487 | O25: -10990.78752 | P25: 0 | Q25: -22786.76657 | R25: 0 | S25: 0 | T25: -24066.31222 | U25: 0 | V25: =SUM(F25:U25) -> -266419.5324
A26: 2
A27: =#REF!+1 -> 
B28: OPERATIONS
C29: Revenue
C30: Fuel Sales | G30: =Calculations!D8*fuel_costs_acquisition_monthly*(fuel_usage_monthly*12)*'General Assumptions'!$H$38 -> 100800 | H30: =Calculations!E8*fuel_costs_acquisition_monthly*(fuel_usage_monthly*12)*'General Assumptions'!$H$38 -> 201600 | I30: =Calculations!F8*fuel_costs_acquisition_monthly*(fuel_usage_monthly*12)*'General Assumptions'!$H$38 -> 352800 | J30: =Calculations!G8*fuel_costs_acquisition_monthly*(fuel_usage_monthly*12)*'General Assumptions'!$H$38 -> 478800 | K30: =Calculations!H8*fuel_costs_acquisition_monthly*(fuel_usage_monthly*12)*'General Assumptions'!$H$38 -> 604800 | L30: =Calculations!I8*fuel_costs_acquisition_monthly*(fuel_usage_monthly*12)*'General Assumptions'!$H$38 -> 730800 | M30: =Calculations!J8*fuel_costs_acquisition_monthly*(fuel_usage_monthly*12)*'General Assumptions'!$H$38 -> 831600 | N30: =Calculations!K8*fuel_costs_acquisition_monthly*(fuel_usage_monthly*12)*'General Assumptions'!$H$38 -> 932400 | O30: =Calculations!L8*fuel_costs_acquisition_monthly*(fuel_usage_monthly*12)*'General Assumptions'!$H$38 -> 1008000 | P30: =Calculations!M8*fuel_costs_acquisition_monthly*(fuel_usage_monthly*12)*'General Assumptions'!$H$38 -> 1008000 | Q30: =Calculations!N8*fuel_costs_acquisition_monthly*(fuel_usage_monthly*12)*'General Assumptions'!$H$38 -> 1008000 | R30: =Calculations!O8*fuel_costs_acquisition_monthly*(fuel_usage_monthly*12)*'General Assumptions'!$H$38 -> 1008000 | S30: =Calculations!P8*fuel_costs_acquisition_monthly*(fuel_usage_monthly*12)*'General Assumptions'!$H$38 -> 1008000 | T30: =Calculations!Q8*fuel_costs_acquisition_monthly*(fuel_usage_monthly*12)*'General Assumptions'!$H$38 -> 1008000 | U30: =Calculations!R8*fuel_costs_acquisition_monthly*(fuel_usage_monthly*12)*'General Assumptions'!$H$38 -> 1008000 | V30: =SUM(G30:U30) -> 11289600
C31: Cylinder Membership | V31: =SUM(G31:U31) -> 0
C32: Upfront Fee | G32: =Calculations!D11*'General Assumptions'!$H$29*((1+growth_rate_cylinder_pricing)^(G$6-$G$6)) -> 2000 | H32: =Calculations!E11*'General Assumptions'!$H$29*((1+growth_rate_cylinder_pricing)^(H$6-$G$6)) -> 2060 | I32: =Calculations!F11*'General Assumptions'!$H$29*((1+growth_rate_cylinder_pricing)^(I$6-$G$6)) -> 3182.7 | J32: =Calculations!G11*'General Assumptions'!$H$29*((1+growth_rate_cylinder_pricing)^(J$6-$G$6)) -> 2731.8175 | K32: =Calculations!H11*'General Assumptions'!$H$29*((1+growth_rate_cylinder_pricing)^(K$6-$G$6)) -> 2813.772025 | L32: =Calculations!I11*'General Assumptions'!$H$29*((1+growth_rate_cylinder_pricing)^(L$6-$G$6)) -> 2898.185186 | M32: =Calculations!J11*'General Assumptions'!$H$29*((1+growth_rate_cylinder_pricing)^(M$6-$G$6)) -> 2388.104593 | N32: =Calculations!K11*'General Assumptions'!$H$29*((1+growth_rate_cylinder_pricing)^(N$6-$G$6)) -> 2459.747731 | O32: =Calculations!L11*'General Assumptions'!$H$29*((1+growth_rate_cylinder_pricing)^(O$6-$G$6)) -> 1900.155122 | P32: =Calculations!M11*'General Assumptions'!$H$29*((1+growth_rate_cylinder_pricing)^(P$6-$G$6)) -> 0 | Q32: =Calculations!N11*'General Assumptions'!$H$29*((1+growth_rate_cylinder_pricing)^(Q$6-$G$6)) -> 0 | R32: =Calculations!O11*'General Assumptions'!$H$29*((1+growth_rate_cylinder_pricing)^(R$6-$G$6)) -> 0 | S32: =Calculations!P11*'General Assumptions'!$H$29*((1+growth_rate_cylinder_pricing)^(S$6-$G$6)) -> 0 | T32: =Calculations!Q11*'General Assumptions'!$H$29*((1+growth_rate_cylinder_pricing)^(T$6-$G$6)) -> 0 | U32: =Calculations!R11*'General Assumptions'!$H$29*((1+growth_rate_cylinder_pricing)^(U$6-$G$6)) -> 0 | V32: 22434.48216
C33: Annual Fees | G33: =(Calculations!D$8*'General Assumptions'!$H$30*12)*((1+growth_rate_cylinder_pricing)^(G$6-$G$6)) -> 4800 | H33: =(Calculations!E$8*'General Assumptions'!$H$30*12)*((1+growth_rate_cylinder_pricing)^(H$6-$G$6)) -> 9888 | I33: =(Calculations!F$8*'General Assumptions'!$H$30*12)*((1+growth_rate_cylinder_pricing)^(I$6-$G$6)) -> 17823.12 | J33: =(Calculations!G$8*'General Assumptions'!$H$30*12)*((1+growth_rate_cylinder_pricing)^(J$6-$G$6)) -> 24914.1756 | K33: =(Calculations!H$8*'General Assumptions'!$H$30*12)*((1+growth_rate_cylinder_pricing)^(K$6-$G$6)) -> 32414.65373 | L33: =(Calculations!I$8*'General Assumptions'!$H$30*12)*((1+growth_rate_cylinder_pricing)^(L$6-$G$6)) -> 40342.73779 | M33: =(Calculations!J$8*'General Assumptions'!$H$30*12)*((1+growth_rate_cylinder_pricing)^(M$6-$G$6)) -> 47284.47094 | N33: =(Calculations!K$8*'General Assumptions'!$H$30*12)*((1+growth_rate_cylinder_pricing)^(N$6-$G$6)) -> 54606.39962 | O33: =(Calculations!L$8*'General Assumptions'!$H$30*12)*((1+growth_rate_cylinder_pricing)^(O$6-$G$6)) -> 60804.96391 | P33: =(Calculations!M$8*'General Assumptions'!$H$30*12)*((1+growth_rate_cylinder_pricing)^(P$6-$G$6)) -> 62629.11282 | Q33: =(Calculations!N$8*'General Assumptions'!$H$30*12)*((1+growth_rate_cylinder_pricing)^(Q$6-$G$6)) -> 64507.98621 | R33: =(Calculations!O$8*'General Assumptions'!$H$30*12)*((1+growth_rate_cylinder_pricing)^(R$6-$G$6)) -> 66443.22579 | S33: =(Calculations!P$8*'General Assumptions'!$H$30*12)*((1+growth_rate_cylinder_pricing)^(S$6-$G$6)) -> 68436.52257 | T33: =(Calculations!Q$8*'General Assumptions'!$H$30*12)*((1+growth_rate_cylinder_pricing)^(T$6-$G$6)) -> 70489.61825 | U33: =(Calculations!R$8*'General Assumptions'!$H$30*12)*((1+growth_rate_cylinder_pricing)^(U$6-$G$6)) -> 72604.30679 | V33: 697989.294
C34: Burner Membership
C35: Upfront Fee | G35: =Calculations!D17*'General Assumptions'!$H$34*((1+growth_rate_burner_pricing)^(G$6-$G$6)) -> 1600 | H35: =Calculations!E17*'General Assumptions'!$H$34*((1+growth_rate_burner_pricing)^(H$6-$G$6)) -> 1648 | I35: =Calculations!F17*'General Assumptions'!$H$34*((1+growth_rate_burner_pricing)^(I$6-$G$6)) -> 2546.16 | J35: =Calculations!G17*'General Assumptions'!$H$34*((1+growth_rate_burner_pricing)^(J$6-$G$6)) -> 2185.454 | K35: =Calculations!H17*'General Assumptions'!$H$34*((1+growth_rate_burner_pricing)^(K$6-$G$6)) -> 2251.01762 | L35: =Calculations!I17*'General Assumptions'!$H$34*((1+growth_rate_burner_pricing)^(L$6-$G$6)) -> 2318.548149 | M35: =Calculations!J17*'General Assumptions'!$H$34*((1+growth_rate_burner_pricing)^(M$6-$G$6)) -> 1910.483674 | N35: =Calculations!K17*'General Assumptions'!$H$34*((1+growth_rate_burner_pricing)^(N$6-$G$6)) -> 1967.798185 | O35: =Calculations!L17*'General Assumptions'!$H$34*((1+growth_rate_burner_pricing)^(O$6-$G$6)) -> 1520.124098 | P35: =Calculations!M17*'General Assumptions'!$H$34*((1+growth_rate_burner_pricing)^(P$6-$G$6)) -> 0 | Q35: =Calculations!N17*'General Assumptions'!$H$34*((1+growth_rate_burner_pricing)^(Q$6-$G$6)) -> 0 | R35: =Calculations!O17*'General Assumptions'!$H$34*((1+growth_rate_burner_pricing)^(R$6-$G$6)) -> 0 | S35: =Calculations!P17*'General Assumptions'!$H$34*((1+growth_rate_burner_pricing)^(S$6-$G$6)) -> 0 | T35: =Calculations!Q17*'General Assumptions'!$H$34*((1+growth_rate_burner_pricing)^(T$6-$G$6)) -> 0 | U35: =Calculations!R17*'General Assumptions'!$H$34*((1+growth_rate_burner_pricing)^(U$6-$G$6)) -> 0 | V35: 17947.58573
C36: Annual Fees | G36: =(Calculations!D$8*'General Assumptions'!$H$35*12)*((1+growth_rate_burner_pricing)^(G$6-$G$6)) -> 4800 | H36: =(Calculations!E$8*'General Assumptions'!$H$35*12)*((1+growth_rate_burner_pricing)^(H$6-$G$6)) -> 9888 | I36: =(Calculations!F$8*'General Assumptions'!$H$35*12)*((1+growth_rate_burner_pricing)^(I$6-$G$6)) -> 17823.12 | J36: =(Calculations!G$8*'General Assumptions'!$H$35*12)*((1+growth_rate_burner_pricing)^(J$6-$G$6)) -> 24914.1756 | K36: =(Calculations!H$8*'General Assumptions'!$H$35*12)*((1+growth_rate_burner_pricing)^(K$6-$G$6)) -> 32414.65373 | L36: =(Calculations!I$8*'General Assumptions'!$H$35*12)*((1+growth_rate_burner_pricing)^(L$6-$G$6)) -> 40342.73779 | M36: =(Calculations!J$8*'General Assumptions'!$H$35*12)*((1+growth_rate_burner_pricing)^(M$6-$G$6)) -> 47284.47094 | N36: =(Calculations!K$8*'General Assumptions'!$H$35*12)*((1+growth_rate_burner_pricing)^(N$6-$G$6)) -> 54606.39962 | O36: =(Calculations!L$8*'General Assumptions'!$H$35*12)*((1+growth_rate_burner_pricing)^(O$6-$G$6)) -> 60804.96391 | P36: =(Calculations!M$8*'General Assumptions'!$H$35*12)*((1+growth_rate_burner_pricing)^(P$6-$G$6)) -> 62629.11282 | Q36: =(Calculations!N$8*'General Assumptions'!$H$35*12)*((1+growth_rate_burner_pricing)^(Q$6-$G$6)) -> 64507.98621 | R36: =(Calculations!O$8*'General Assumptions'!$H$35*12)*((1+growth_rate_burner_pricing)^(R$6-$G$6)) -> 66443.22579 | S36: =(Calculations!P$8*'General Assumptions'!$H$35*12)*((1+growth_rate_burner_pricing)^(S$6-$G$6)) -> 68436.52257 | T36: =(Calculations!Q$8*'General Assumptions'!$H$35*12)*((1+growth_rate_burner_pricing)^(T$6-$G$6)) -> 70489.61825 | U36: =(Calculations!R$8*'General Assumptions'!$H$35*12)*((1+growth_rate_burner_pricing)^(U$6-$G$6)) -> 72604.30679 | V36: 697989.294
C37: Other | G37: 0 | H37: 0 | I37: 0 | J37: 0 | K37: 0 | L37: 0 | M37: 0 | N37: 0 | O37: 0 | P37: 0 | Q37: 0 | R37: 0 | S37: 0 | T37: 0 | U37: 0 | V37: 0
C38: TOTAL REVENUE | G38: =SUM(G30:G37) -> 114000 | H38: =SUM(H30:H37) -> 225084 | I38: 394175.1 | J38: 533545.6227 | K38: 674694.0971 | L38: 816702.2089 | M38: 930467.5302 | N38: 1046040.345 | O38: 1133030.207 | P38: 1133258.226 | Q38: 1137015.972 | R38: 1140886.452 | S38: 1144873.045 | T38: 1148979.236 | U38: 1153208.614 | V38: 12725960.66
C40: Expenses
C41: Cost of Goods Sold (COGS)
C42: Fuel Purchase | G42: =-Calculations!D8*(fuel_costs_acquisition_monthly*((1+growth_rate_fuelprice)^(G$6-$G$6)))*(fuel_usage_monthly*12) -> -57600 | H42: =-Calculations!E8*(fuel_costs_acquisition_monthly*((1+growth_rate_fuelprice)^(H$6-$G$6)))*(fuel_usage_monthly*12) -> -115776 | I42: =-Calculations!F8*(fuel_costs_acquisition_monthly*((1+growth_rate_fuelprice)^(I$6-$G$6)))*(fuel_usage_monthly*12) -> -203621.04 | J42: =-Calculations!G8*(fuel_costs_acquisition_monthly*((1+growth_rate_fuelprice)^(J$6-$G$6)))*(fuel_usage_monthly*12) -> -277724.5542 | K42: =-Calculations!H8*(fuel_costs_acquisition_monthly*((1+growth_rate_fuelprice)^(K$6-$G$6)))*(fuel_usage_monthly*12) -> -352564.013 | L42: =-Calculations!I8*(fuel_costs_acquisition_monthly*((1+growth_rate_fuelprice)^(L$6-$G$6)))*(fuel_usage_monthly*12) -> -428144.9233 | M42: =-Calculations!J8*(fuel_costs_acquisition_monthly*((1+growth_rate_fuelprice)^(M$6-$G$6)))*(fuel_usage_monthly*12) -> -489635.3925 | N42: =-Calculations!K8*(fuel_costs_acquisition_monthly*((1+growth_rate_fuelprice)^(N$6-$G$6)))*(fuel_usage_monthly*12) -> -551730.0627 | O42: =-Calculations!L8*(fuel_costs_acquisition_monthly*((1+growth_rate_fuelprice)^(O$6-$G$6)))*(fuel_usage_monthly*12) -> -599447.2573 | P42: =-Calculations!M8*(fuel_costs_acquisition_monthly*((1+growth_rate_fuelprice)^(P$6-$G$6)))*(fuel_usage_monthly*12) -> -602444.4936 | Q42: =-Calculations!N8*(fuel_costs_acquisition_monthly*((1+growth_rate_fuelprice)^(Q$6-$G$6)))*(fuel_usage_monthly*12) -> -605456.7161 | R42: =-Calculations!O8*(fuel_costs_acquisition_monthly*((1+growth_rate_fuelprice)^(R$6-$G$6)))*(fuel_usage_monthly*12) -> -608483.9996 | S42: =-Calculations!P8*(fuel_costs_acquisition_monthly*((1+growth_rate_fuelprice)^(S$6-$G$6)))*(fuel_usage_monthly*12) -> -611526.4196 | T42: =-Calculations!Q8*(fuel_costs_acquisition_monthly*((1+growth_rate_fuelprice)^(T$6-$G$6)))*(fuel_usage_monthly*12) -> -614584.0517 | U42: =-Calculations!R8*(fuel_costs_acquisition_monthly*((1+growth_rate_fuelprice)^(U$6-$G$6)))*(fuel_usage_monthly*12) -> -617656.972 | V42: =SUM(G42:U42) -> -6736395.896
C43: Cylinders
C44: New | G44: =-Calculations!D11*(cylinder_cost*((1+growth_rate_cylinder_pricing)^(G$6-$G$6))) -> -4800 | H44: =-Calculations!E11*(cylinder_cost*((1+growth_rate_cylinder_pricing)^(H$6-$G$6))) -> -4944 | I44: =-Calculations!F11*(cylinder_cost*((1+growth_rate_cylinder_pricing)^(I$6-$G$6))) -> -7638.48 | J44: =-Calculations!G11*(cylinder_cost*((1+growth_rate_cylinder_pricing)^(J$6-$G$6))) -> -6556.362 | K44: =-Calculations!H11*(cylinder_cost*((1+growth_rate_cylinder_pricing)^(K$6-$G$6))) -> -6753.05286 | L44: =-Calculations!I11*(cylinder_cost*((1+growth_rate_cylinder_pricing)^(L$6-$G$6))) -> -6955.644446 | M44: =-Calculations!J11*(cylinder_cost*((1+growth_rate_cylinder_pricing)^(M$6-$G$6))) -> -5731.451023 | N44: =-Calculations!K11*(cylinder_cost*((1+growth_rate_cylinder_pricing)^(N$6-$G$6))) -> -5903.394554 | O44: =-Calculations!L11*(cylinder_cost*((1+growth_rate_cylinder_pricing)^(O$6-$G$6))) -> -4560.372293 | P44: =-Calculations!M11*(cylinder_cost*((1+growth_rate_cylinder_pricing)^(P$6-$G$6))) -> 0 | Q44: =-Calculations!N11*(cylinder_cost*((1+growth_rate_cylinder_pricing)^(Q$6-$G$6))) -> 0 | R44: =-Calculations!O11*(cylinder_cost*((1+growth_rate_cylinder_pricing)^(R$6-$G$6))) -> 0 | S44: =-Calculations!P11*(cylinder_cost*((1+growth_rate_cylinder_pricing)^(S$6-$G$6))) -> 0 | T44: =-Calculations!Q11*(cylinder_cost*((1+growth_rate_cylinder_pricing)^(T$6-$G$6))) -> 0 | U44: =-Calculations!R11*(cylinder_cost*((1+growth_rate_cylinder_pricing)^(U$6-$G$6))) -> 0 | V44: =SUM(G44:U44) -> -53842.75718
C45: Reserve | G45: =-Calculations!D12*(cylinder_cost*((1+growth_rate_cylinder_pricing)^(G$6-$G$6))) -> 0 | H45: =-Calculations!E12*(cylinder_cost*((1+growth_rate_cylinder_pricing)^(H$6-$G$6))) -> -247.2 | I45: =-Calculations!F12*(cylinder_cost*((1+growth_rate_cylinder_pricing)^(I$6-$G$6))) -> -509.232 | J45: =-Calculations!G12*(cylinder_cost*((1+growth_rate_cylinder_pricing)^(J$6-$G$6))) -> -917.89068 | K45: =-Calculations!H12*(cylinder_cost*((1+growth_rate_cylinder_pricing)^(K$6-$G$6))) -> -1283.080043 | L45: =-Calculations!I12*(cylinder_cost*((1+growth_rate_cylinder_pricing)^(L$6-$G$6))) -> -1669.354667 | M45: =-Calculations!J12*(cylinder_cost*((1+growth_rate_cylinder_pricing)^(M$6-$G$6))) -> -2077.650996 | N45: =-Calculations!K12*(cylinder_cost*((1+growth_rate_cylinder_pricing)^(N$6-$G$6))) -> -2435.150254 | O45: =-Calculations!L12*(cylinder_cost*((1+growth_rate_cylinder_pricing)^(O$6-$G$6))) -> -2812.229581 | P45: =-Calculations!M12*(cylinder_cost*((1+growth_rate_cylinder_pricing)^(P$6-$G$6))) -> -3131.455641 | Q45: =-Calculations!N12*(cylinder_cost*((1+growth_rate_cylinder_pricing)^(Q$6-$G$6))) -> -3225.39931 | R45: =-Calculations!O12*(cylinder_cost*((1+growth_rate_cylinder_pricing)^(R$6-$G$6))) -> -3322.16129 | S45: =-Calculations!P12*(cylinder_cost*((1+growth_rate_cylinder_pricing)^(S$6-$G$6))) -> -3421.826128 | T45: =-Calculations!Q12*(cylinder_cost*((1+growth_rate_cylinder_pricing)^(T$6-$G$6))) -> -3524.480912 | U45: =-Calculations!R12*(cylinder_cost*((1+growth_rate_cylinder_pricing)^(U$6-$G$6))) -> -3630.21534 | V45: =SUM(G45:U45) -> -32207.32684
C46: Replacement | G46: =-Calculations!D13*(cylinder_cost*((1+growth_rate_cylinder_pricing)^(G$6-$G$6))) -> 0 | H46: =-Calculations!E13*(cylinder_cost*((1+growth_rate_cylinder_pricing)^(H$6-$G$6))) -> 0 | I46: =-Calculations!F13*(cylinder_cost*((1+growth_rate_cylinder_pricing)^(I$6-$G$6))) -> 0 | J46: =-Calculations!G13*(cylinder_cost*((1+growth_rate_cylinder_pricing)^(J$6-$G$6))) -> 0 | K46: =-Calculations!H13*(cylinder_cost*((1+growth_rate_cylinder_pricing)^(K$6-$G$6))) -> 0 | L46: =-Calculations!I13*(cylinder_cost*((1+growth_rate_cylinder_pricing)^(L$6-$G$6))) -> 0 | M46: =-Calculations!J13*(cylinder_cost*((1+growth_rate_cylinder_pricing)^(M$6-$G$6))) -> 0 | N46: =-Calculations!K13*(cylinder_cost*((1+growth_rate_cylinder_pricing)^(N$6-$G$6))) -> 0 | O46: =-Calculations!L13*(cylinder_cost*((1+growth_rate_cylinder_pricing)^(O$6-$G$6))) -> 0 | P46: =-Calculations!M13*(cylinder_cost*((1+growth_rate_cylinder_pricing)^(P$6-$G$6))) -> 0 | Q46: =-Calculations!N13*(cylinder_cost*((1+growth_rate_cylinder_pricing)^(Q$6-$G$6))) -> -3225.39931 | R46: =-Calculations!O13*(cylinder_cost*((1+growth_rate_cylinder_pricing)^(R$6-$G$6))) -> -3322.16129 | S46: =-Calculations!P13*(cylinder_cost*((1+growth_rate_cylinder_pricing)^(S$6-$G$6))) -> -5132.739193 | T46: =-Calculations!Q13*(cylinder_cost*((1+growth_rate_cylinder_pricing)^(T$6-$G$6))) -> -4405.60114 | U46: =-Calculations!R13*(cylinder_cost*((1+growth_rate_cylinder_pricing)^(U$6-$G$6))) -> -4537.769175 | V46: -20623.67011
C47: sub-total | G47: =SUM(G44:G46) -> -4800 | H47: =SUM(H44:H46) -> -5191.2 | I47: -8147.712 | J47: -7474.25268 | K47: -8036.132903 | L47: -8624.999113 | M47: -7809.102019 | N47: -8338.544808 | O47: -7372.601874 | P47: -3131.455641 | Q47: -6450.798621 | R47: -6644.322579 | S47: -8554.565321 | T47: -7930.082053 | U47: -8167.984514 | V47: -106673.7541
C48: Burners and ancillary equipment
C49: New | G49: =-Calculations!D17*(burner_acquisition_cost*((1+growth_rate_burner)^(G$6-$G$6))) -> -800 | H49: =-Calculations!E17*(burner_acquisition_cost*((1+growth_rate_burner)^(H$6-$G$6))) -> -816 | I49: =-Calculations!F17*(burner_acquisition_cost*((1+growth_rate_burner)^(I$6-$G$6))) -> -1248.48 | J49: =-Calculations!G17*(burner_acquisition_cost*((1+growth_rate_burner)^(J$6-$G$6))) -> -1061.208 | K49: =-Calculations!H17*(burner_acquisition_cost*((1+growth_rate_burner)^(K$6-$G$6))) -> -1082.43216 | L49: =-Calculations!I17*(burner_acquisition_cost*((1+growth_rate_burner)^(L$6-$G$6))) -> -1104.080803 | M49: =-Calculations!J17*(burner_acquisition_cost*((1+growth_rate_burner)^(M$6-$G$6))) -> -900.9299354 | N49: =-Calculations!K17*(burner_acquisition_cost*((1+growth_rate_burner)^(N$6-$G$6))) -> -918.9485341 | O49: =-Calculations!L17*(burner_acquisition_cost*((1+growth_rate_burner)^(O$6-$G$6))) -> -702.9956286 | P49: =-Calculations!M17*(burner_acquisition_cost*((1+growth_rate_burner)^(P$6-$G$6))) -> 0 | Q49: =-Calculations!N17*(burner_acquisition_cost*((1+growth_rate_burner)^(Q$6-$G$6))) -> 0 | R49: =-Calculations!O17*(burner_acquisition_cost*((1+growth_rate_burner)^(R$6-$G$6))) -> 0 | S49: =-Calculations!P17*(burner_acquisition_cost*((1+growth_rate_burner)^(S$6-$G$6))) -> 0 | T49: =-Calculations!Q17*(burner_acquisition_cost*((1+growth_rate_burner)^(T$6-$G$6))) -> 0 | U49: =-Calculations!R17*(burner_acquisition_cost*((1+growth_rate_burner)^(U$6-$G$6))) -> 0 | V49: =SUM(G49:U49) -> -8635.075061
C50: Reserve | G50: =-Calculations!D18*(burner_acquisition_cost*((1+growth_rate_burner)^(G$6-$G$6))) -> 0 | H50: =-Calculations!E18*(burner_acquisition_cost*((1+growth_rate_burner)^(H$6-$G$6))) -> -40.8 | I50: =-Calculations!F18*(burner_acquisition_cost*((1+growth_rate_burner)^(I$6-$G$6))) -> -83.232 | J50: =-Calculations!G18*(burner_acquisition_cost*((1+growth_rate_burner)^(J$6-$G$6))) -> -148.56912 | K50: =-Calculations!H18*(burner_acquisition_cost*((1+growth_rate_burner)^(K$6-$G$6))) -> -205.6621104 | L50: =-Calculations!I18*(burner_acquisition_cost*((1+growth_rate_burner)^(L$6-$G$6))) -> -264.9793928 | M50: =-Calculations!J18*(burner_acquisition_cost*((1+growth_rate_burner)^(M$6-$G$6))) -> -326.5871016 | N50: =-Calculations!K18*(burner_acquisition_cost*((1+growth_rate_burner)^(N$6-$G$6))) -> -379.0662703 | O50: =-Calculations!L18*(burner_acquisition_cost*((1+growth_rate_burner)^(O$6-$G$6))) -> -433.513971 | P50: =-Calculations!M18*(burner_acquisition_cost*((1+growth_rate_burner)^(P$6-$G$6))) -> -478.0370274 | Q50: =-Calculations!N18*(burner_acquisition_cost*((1+growth_rate_burner)^(Q$6-$G$6))) -> -487.597768 | R50: =-Calculations!O18*(burner_acquisition_cost*((1+growth_rate_burner)^(R$6-$G$6))) -> -497.3497234 | S50: =-Calculations!P18*(burner_acquisition_cost*((1+growth_rate_burner)^(S$6-$G$6))) -> -507.2967178 | T50: =-Calculations!Q18*(burner_acquisition_cost*((1+growth_rate_burner)^(T$6-$G$6))) -> -517.4426522 | U50: =-Calculations!R18*(burner_acquisition_cost*((1+growth_rate_burner)^(U$6-$G$6))) -> -527.7915052 | V50: =SUM(G50:U50) -> -4897.92536
C51: Replacement | G51: =-Calculations!D19*(burner_acquisition_cost*((1+growth_rate_burner)^(G$6-$G$6))) -> 0 | H51: =-Calculations!E19*(burner_acquisition_cost*((1+growth_rate_burner)^(H$6-$G$6))) -> 0 | I51: =-Calculations!F19*(burner_acquisition_cost*((1+growth_rate_burner)^(I$6-$G$6))) -> 0 | J51: =-Calculations!G19*(burner_acquisition_cost*((1+growth_rate_burner)^(J$6-$G$6))) -> 0 | K51: =-Calculations!H19*(burner_acquisition_cost*((1+growth_rate_burner)^(K$6-$G$6))) -> 0 | L51: =-Calculations!I19*(burner_acquisition_cost*((1+growth_rate_burner)^(L$6-$G$6))) -> 0 | M51: =-Calculations!J19*(burner_acquisition_cost*((1+growth_rate_burner)^(M$6-$G$6))) -> 0 | N51: =-Calculations!K19*(burner_acquisition_cost*((1+growth_rate_burner)^(N$6-$G$6))) -> 0 | O51: =-Calculations!L19*(burner_acquisition_cost*((1+growth_rate_burner)^(O$6-$G$6))) -> 0 | P51: =-Calculations!M19*(burner_acquisition_cost*((1+growth_rate_burner)^(P$6-$G$6))) -> 0 | Q51: =-Calculations!N19*(burner_acquisition_cost*((1+growth_rate_burner)^(Q$6-$G$6))) -> -487.597768 | R51: =-Calculations!O19*(burner_acquisition_cost*((1+growth_rate_burner)^(R$6-$G$6))) -> -497.3497234 | S51: =-Calculations!P19*(burner_acquisition_cost*((1+growth_rate_burner)^(S$6-$G$6))) -> -760.9450767 | T51: =-Calculations!Q19*(burner_acquisition_cost*((1+growth_rate_burner)^(T$6-$G$6))) -> -646.8033152 | U51: =-Calculations!R19*(burner_acquisition_cost*((1+growth_rate_burner)^(U$6-$G$6))) -> -659.7393815 | V51: -3052.435265
C52: sub-total | G52: =SUM(G49:G51) -> -800 | H52: =SUM(H49:H51) -> -856.8 | I52: -1331.712 | J52: -1209.77712 | K52: -1288.09427 | L52: -1369.060196 | M52: -1227.517037 | N52: -1298.014804 | O52: -1136.5096 | P52: -478.0370274 | Q52: -975.195536 | R52: -994.6994467 | S52: -1268.241795 | T52: -1164.245967 | U52: -1187.530887 | V52: -16585.43569
C53: Total COGS | G53: =G52+G47+G42 -> -63200 | H53: -121824 | I53: -213100.464 | J53: -286408.584 | K53: -361888.2402 | L53: -438138.9826 | M53: -498672.0115 | N53: -561366.6223 | O53: -607956.3688 | P53: -606053.9863 | Q53: -612882.7102 | R53: -616123.0217 | S53: -621349.2267 | T53: -623678.3798 | U53: -627012.4874 | V53: =SUM(G53:U53) -> -6859655.085
C54: Operations
C55: Personnel | G55: =-SUM(Calculations!D$50:D$69) -> -40000 | H55: =-SUM(Calculations!E$50:E$69) -> -63275 | I55: =-SUM(Calculations!F$50:F$69) -> -83379.625 | J55: =-SUM(Calculations!G$50:G$69) -> -84953.34312 | K55: =-SUM(Calculations!H$50:H$69) -> -86561.29648 | L55: =-SUM(Calculations!I$50:I$69) -> -88204.28986 | M55: =-SUM(Calculations!J$50:J$69) -> -89883.14769 | N55: =-SUM(Calculations!K$50:K$69) -> -91598.71447 | O55: =-SUM(Calculations!L$50:L$69) -> -93351.8553 | P55: =-SUM(Calculations!M$50:M$69) -> -95143.45638 | Q55: =-SUM(Calculations!N$50:N$69) -> -96974.42554 | R55: =-SUM(Calculations!O$50:O$69) -> -98845.69275 | S55: =-SUM(Calculations!P$50:P$69) -> -100758.2107 | T55: =-SUM(Calculations!Q$50:Q$69) -> -102712.9554 | U55: =-SUM(Calculations!R$50:R$69) -> -104710.9265 | V55: =SUM(G55:U55) -> -1320352.939
C56: Administation
C57: Insurance | G57: =-'General Assumptions'!$D$31*(1+growth_rate_opex)^F$6 -> -7500 | H57: =-'General Assumptions'!$D$31*(1+growth_rate_opex)^G$6 -> -7725 | I57: =-'General Assumptions'!$D$31*(1+growth_rate_opex)^H$6 -> -7956.75 | J57: =-'General Assumptions'!$D$31*(1+growth_rate_opex)^I$6 -> -8195.4525 | K57: =-'General Assumptions'!$D$31*(1+growth_rate_opex)^J$6 -> -8441.316075 | L57: =-'General Assumptions'!$D$31*(1+growth_rate_opex)^K$6 -> -8694.555557 | M57: =-'General Assumptions'!$D$31*(1+growth_rate_opex)^L$6 -> -8955.392224 | N57: =-'General Assumptions'!$D$31*(1+growth_rate_opex)^M$6 -> -9224.053991 | O57: =-'General Assumptions'!$D$31*(1+growth_rate_opex)^N$6 -> -9500.77561 | P57: =-'General Assumptions'!$D$31*(1+growth_rate_opex)^O$6 -> -9785.798879 | Q57: =-'General Assumptions'!$D$31*(1+growth_rate_opex)^P$6 -> -10079.37285 | R57: =-'General Assumptions'!$D$31*(1+growth_rate_opex)^Q$6 -> -10381.75403 | S57: =-'General Assumptions'!$D$31*(1+growth_rate_opex)^R$6 -> -10693.20665 | T57: =-'General Assumptions'!$D$31*(1+growth_rate_opex)^S$6 -> -11014.00285 | U57: =-'General Assumptions'!$D$31*(1+growth_rate_opex)^T$6 -> -11344.42294 | V57: -139491.8542
C58: Legal | G58: =-'General Assumptions'!$D$32*(1+growth_rate_opex)^F$6 -> -5000 | H58: =-'General Assumptions'!$D$32*(1+growth_rate_opex)^G$6 -> -5150 | I58: =-'General Assumptions'!$D$32*(1+growth_rate_opex)^H$6 -> -5304.5 | J58: =-'General Assumptions'!$D$32*(1+growth_rate_opex)^I$6 -> -5463.635 | K58: =-'General Assumptions'!$D$32*(1+growth_rate_opex)^J$6 -> -5627.54405 | L58: =-'General Assumptions'!$D$32*(1+growth_rate_opex)^K$6 -> -5796.370371 | M58: =-'General Assumptions'!$D$32*(1+growth_rate_opex)^L$6 -> -5970.261483 | N58: =-'General Assumptions'!$D$32*(1+growth_rate_opex)^M$6 -> -6149.369327 | O58: =-'General Assumptions'!$D$32*(1+growth_rate_opex)^N$6 -> -6333.850407 | P58: =-'General Assumptions'!$D$32*(1+growth_rate_opex)^O$6 -> -6523.865919 | Q58: =-'General Assumptions'!$D$32*(1+growth_rate_opex)^P$6 -> -6719.581897 | R58: =-'General Assumptions'!$D$32*(1+growth_rate_opex)^Q$6 -> -6921.169354 | S58: =-'General Assumptions'!$D$32*(1+growth_rate_opex)^R$6 -> -7128.804434 | T58: =-'General Assumptions'!$D$32*(1+growth_rate_opex)^S$6 -> -7342.668567 | U58: =-'General Assumptions'!$D$32*(1+growth_rate_opex)^T$6 -> -7562.948624 | V58: -92994.56943
C59: Taxes | G59: =-'General Assumptions'!$D$33*(1+growth_rate_opex)^F$6 -> -3000 | H59: =-'General Assumptions'!$D$33*(1+growth_rate_opex)^G$6 -> -3090 | I59: =-'General Assumptions'!$D$33*(1+growth_rate_opex)^H$6 -> -3182.7 | J59: =-'General Assumptions'!$D$33*(1+growth_rate_opex)^I$6 -> -3278.181 | K59: =-'General Assumptions'!$D$33*(1+growth_rate_opex)^J$6 -> -3376.52643 | L59: =-'General Assumptions'!$D$33*(1+growth_rate_opex)^K$6 -> -3477.822223 | M59: =-'General Assumptions'!$D$33*(1+growth_rate_opex)^L$6 -> -3582.15689 | N59: =-'General Assumptions'!$D$33*(1+growth_rate_opex)^M$6 -> -3689.621596 | O59: =-'General Assumptions'!$D$33*(1+growth_rate_opex)^N$6 -> -3800.310244 | P59: =-'General Assumptions'!$D$33*(1+growth_rate_opex)^O$6 -> -3914.319551 | Q59: =-'General Assumptions'!$D$33*(1+growth_rate_opex)^P$6 -> -4031.749138 | R59: =-'General Assumptions'!$D$33*(1+growth_rate_opex)^Q$6 -> -4152.701612 | S59: =-'General Assumptions'!$D$33*(1+growth_rate_opex)^R$6 -> -4277.282661 | T59: =-'General Assumptions'!$D$33*(1+growth_rate_opex)^S$6 -> -4405.60114 | U59: =-'General Assumptions'!$D$33*(1+growth_rate_opex)^T$6 -> -4537.769175 | V59: -55796.74166
C60: Marketing | G60: =-'General Assumptions'!$D$34*(1+growth_rate_opex)^F$6 -> -15500 | H60: =-'General Assumptions'!$D$34*(1+growth_rate_opex)^G$6 -> -15965 | I60: =-'General Assumptions'!$D$34*(1+growth_rate_opex)^H$6 -> -16443.95 | J60: =-'General Assumptions'!$D$34*(1+growth_rate_opex)^I$6 -> -16937.2685 | K60: =-'General Assumptions'!$D$34*(1+growth_rate_opex)^J$6 -> -17445.38655 | L60: =-'General Assumptions'!$D$34*(1+growth_rate_opex)^K$6 -> -17968.74815 | M60: =-'General Assumptions'!$D$34*(1+growth_rate_opex)^L$6 -> -18507.8106 | N60: =-'General Assumptions'!$D$34*(1+growth_rate_opex)^M$6 -> -19063.04491 | O60: =-'General Assumptions'!$D$34*(1+growth_rate_opex)^N$6 -> -19634.93626 | P60: =-'General Assumptions'!$D$34*(1+growth_rate_opex)^O$6 -> -20223.98435 | Q60: =-'General Assumptions'!$D$34*(1+growth_rate_opex)^P$6 -> -20830.70388 | R60: =-'General Assumptions'!$D$34*(1+growth_rate_opex)^Q$6 -> -21455.625 | S60: =-'General Assumptions'!$D$34*(1+growth_rate_opex)^R$6 -> -22099.29375 | T60: =-'General Assumptions'!$D$34*(1+growth_rate_opex)^S$6 -> -22762.27256 | U60: =-'General Assumptions'!$D$34*(1+growth_rate_opex)^T$6 -> -23445.14074 | V60: -288283.1652
C61: Office Lease | G61: =-'General Assumptions'!$D$35*(1+growth_rate_opex)^F$6 -> -7000 | H61: =-'General Assumptions'!$D$35*(1+growth_rate_opex)^G$6 -> -7210 | I61: =-'General Assumptions'!$D$35*(1+growth_rate_opex)^H$6 -> -7426.3 | J61: =-'General Assumptions'!$D$35*(1+growth_rate_opex)^I$6 -> -7649.089 | K61: =-'General Assumptions'!$D$35*(1+growth_rate_opex)^J$6 -> -7878.56167 | L61: =-'General Assumptions'!$D$35*(1+growth_rate_opex)^K$6 -> -8114.91852 | M61: =-'General Assumptions'!$D$35*(1+growth_rate_opex)^L$6 -> -8358.366076 | N61: =-'General Assumptions'!$D$35*(1+growth_rate_opex)^M$6 -> -8609.117058 | O61: =-'General Assumptions'!$D$35*(1+growth_rate_opex)^N$6 -> -8867.39057 | P61: =-'General Assumptions'!$D$35*(1+growth_rate_opex)^O$6 -> -9133.412287 | Q61: =-'General Assumptions'!$D$35*(1+growth_rate_opex)^P$6 -> -9407.414655 | R61: =-'General Assumptions'!$D$35*(1+growth_rate_opex)^Q$6 -> -9689.637095 | S61: =-'General Assumptions'!$D$35*(1+growth_rate_opex)^R$6 -> -9980.326208 | T61: =-'General Assumptions'!$D$35*(1+growth_rate_opex)^S$6 -> -10279.73599 | U61: =-'General Assumptions'!$D$35*(1+growth_rate_opex)^T$6 -> -10588.12807 | V61: -130192.3972
A62: =A60+1 ->  | C62: Misc. | G62: =-'General Assumptions'!$D$36*(1+growth_rate_opex)^F$6 -> -3100 | H62: =-'General Assumptions'!$D$36*(1+growth_rate_opex)^G$6 -> -3193 | I62: =-'General Assumptions'!$D$36*(1+growth_rate_opex)^H$6 -> -3288.79 | J62: =-'General Assumptions'!$D$36*(1+growth_rate_opex)^I$6 -> -3387.4537 | K62: =-'General Assumptions'!$D$36*(1+growth_rate_opex)^J$6 -> -3489.077311 | L62: =-'General Assumptions'!$D$36*(1+growth_rate_opex)^K$6 -> -3593.74963 | M62: =-'General Assumptions'!$D$36*(1+growth_rate_opex)^L$6 -> -3701.562119 | N62: =-'General Assumptions'!$D$36*(1+growth_rate_opex)^M$6 -> -3812.608983 | O62: =-'General Assumptions'!$D$36*(1+growth_rate_opex)^N$6 -> -3926.987252 | P62: =-'General Assumptions'!$D$36*(1+growth_rate_opex)^O$6 -> -4044.79687 | Q62: =-'General Assumptions'!$D$36*(1+growth_rate_opex)^P$6 -> -4166.140776 | R62: =-'General Assumptions'!$D$36*(1+growth_rate_opex)^Q$6 -> -4291.124999 | S62: =-'General Assumptions'!$D$36*(1+growth_rate_opex)^R$6 -> -4419.858749 | T62: =-'General Assumptions'!$D$36*(1+growth_rate_opex)^S$6 -> -4552.454512 | U62: =-'General Assumptions'!$D$36*(1+growth_rate_opex)^T$6 -> -4689.028147 | V62: -57656.63305
C63: Sub-Total | G63: =SUM(G54:G62) -> -81100 | H63: -105608 | I63: -126982.615 | J63: -129864.4228 | K63: -132819.7086 | L63: -135850.4543 | M63: -138958.6971 | N63: -142146.5303 | O63: -145416.1056 | P63: -148769.6342 | Q63: -152209.3887 | R63: -155737.7048 | S63: -159356.9832 | T63: -163069.691 | U63: -166878.3642 | V63: -2084768.3
C64: Infrastructure O&M
C65: =Calculations!B28 -> Storage | G65: =-Calculations!D40 -> -5000 | H65: =-Calculations!E40 -> -5075 | I65: =-Calculations!F40 -> -5151.125 | J65: =-Calculations!G40 -> -5228.391875 | K65: =-Calculations!H40 -> -7960.22663 | L65: =-Calculations!I40 -> -8079.630029 | M65: =-Calculations!J40 -> -8200.82448 | N65: =-Calculations!K40 -> -11098.44913 | O65: =-Calculations!L40 -> -11264.92587 | P65: =-Calculations!M40 -> -11433.89975 | Q65: =-Calculations!N40 -> -14506.76031 | R65: =-Calculations!O40 -> -14724.36172 | S65: =-Calculations!P40 -> -14945.22714 | T65: =-Calculations!Q40 -> -15169.40555 | U65: =-Calculations!R40 -> -15396.94663 | V65: =SUM(G65:U65) -> -153235.1741
C66: =Calculations!B29 -> Refueling Stations | G66: =-Calculations!D41 -> -2500 | H66: =-Calculations!E41 -> -2531.25 | I66: =-Calculations!F41 -> -3844.335938 | J66: =-Calculations!G41 -> -5189.853516 | K66: =-Calculations!H41 -> -6568.408356 | L66: =-Calculations!I41 -> -6650.51346 | M66: =-Calculations!J41 -> -6733.644878 | N66: =-Calculations!K41 -> -8181.378527 | O66: =-Calculations!L41 -> -9664.253385 | P66: =-Calculations!M41 -> -9785.056553 | Q66: =-Calculations!N41 -> -12738.04683 | R66: =-Calculations!O41 -> -12897.27242 | S66: =-Calculations!P41 -> -13058.48832 | T66: =-Calculations!Q41 -> -14690.79936 | U66: =-Calculations!R41 -> -14874.43436 | V66: =SUM(G66:U66) -> -129907.7359
C67: =Calculations!B30 -> Transportation | G67: =-Calculations!D42 -> -6000 | H67: =-Calculations!E42 -> -6150 | I67: =-Calculations!F42 -> -6303.75 | J67: =-Calculations!G42 -> -12922.6875 | K67: =-Calculations!H42 -> -13245.75469 | L67: =-Calculations!I42 -> -13576.89855 | M67: =-Calculations!J42 -> -13916.32102 | N67: =-Calculations!K42 -> -17830.28631 | O67: =-Calculations!L42 -> -18276.04346 | P67: =-Calculations!M42 -> -18732.94455 | Q67: =-Calculations!N42 -> -19201.26816 | R67: =-Calculations!O42 -> -19681.29987 | S67: =-Calculations!P42 -> -20173.33236 | T67: =-Calculations!Q42 -> -24813.19881 | U67: =-Calculations!R42 -> -25433.52878 | V67: =SUM(G67:U67) -> -236257.3141
C68: =Calculations!B31 -> Misc. | G68: =-Calculations!D43 -> 0 | H68: =-Calculations!E43 -> 0 | I68: =-Calculations!F43 -> -1020.1 | J68: =-Calculations!G43 -> -1030.301 | K68: =-Calculations!H43 -> -1040.60401 | L68: =-Calculations!I43 -> -1051.01005 | M68: =-Calculations!J43 -> -1061.520151 | N68: =-Calculations!K43 -> -1072.135352 | O68: =-Calculations!L43 -> -1624.285058 | P68: =-Calculations!M43 -> -1640.527909 | Q68: =-Calculations!N43 -> -1656.933188 | R68: =-Calculations!O43 -> -1673.50252 | S68: =-Calculations!P43 -> -1690.237545 | T68: =-Calculations!Q43 -> -2276.186561 | U68: =-Calculations!R43 -> -2298.948426 | V68: =SUM(G68:U68) -> -19136.29177
C69: Sub-Total | G69: =SUM(G65:G68) -> -13500 | H69: =SUM(H65:H68) -> -13756.25 | I69: -16319.31094 | J69: -24371.23389 | K69: -28814.99368 | L69: -29358.05209 | M69: -29912.31053 | N69: -38182.24931 | O69: -40829.50777 | P69: -41592.42876 | Q69: -48103.0085 | R69: -48976.43652 | S69: -49867.28538 | T69: -56949.59028 | U69: -58003.85819 | V69: =SUM(G69:U69) -> -538536.5159
C71: TOTAL EXPENSES | G71: =G69+G63+G55+G53 -> -197800 | H71: =H69+H63+H55+H53 -> -304463.25 | I71: -439782.0149 | J71: -525597.5838 | K71: -610084.2389 | L71: -691551.7789 | M71: -757426.1668 | N71: -833294.1164 | O71: -887553.8375 | P71: -891559.5056 | Q71: -910169.533 | R71: -919682.8558 | S71: -931331.706 | T71: -946410.6164 | U71: -956605.6364 | V71: =SUM(G71:U71) -> -10803312.84
A73: =A72+1 ->  | C73: Operating Cash Flow
C74: Annual | F74: =F71+F38 -> 0 | G74: =G71+G38 -> -83800 | H74: -79379.25 | I74: -45606.91494 | J74: 7948.038859 | K74: 64609.85818 | L74: 125150.43 | M74: 173041.3633 | N74: 212746.2287 | O74: 245476.3695 | P74: 241698.72 | Q74: 226846.4394 | R74: 221203.5958 | S74: 213541.3391 | T74: 202568.6201 | U74: 196602.9772 | V74: =SUM(G74:U74) -> 1922647.815
C75: Cumulative | G75: =F75+G74 -> -83800 | H75: =G75+H74 -> -163179.25 | I75: =H75+I74 -> -208786.1649 | J75: =I75+J74 -> -200838.1261 | K75: =J75+K74 -> -136228.2679 | L75: =K75+L74 -> -11077.83788 | M75: 161963.5255 | N75: 374709.7542 | O75: 620186.1237 | P75: 861884.8437 | Q75: 1088731.283 | R75: 1309934.879 | S75: 1523476.218 | T75: 1726044.838 | U75: 1922647.815
A77: =A76+1 ->  | B77: FINANCING
A78: =#REF!+1 ->  | C78: Equity
A79: =A78+1 ->  | C79: Investment | F79: =IF(F6=0,investment_amount_A,0) -> 50000 | G79: 0 | H79: 0 | I79: 0 | J79: 0 | K79: 0 | L79: 0 | M79: 0 | N79: 0 | O79: 0 | P79: 0 | Q79: 0 | R79: 0 | S79: 0 | T79: 0 | U79: 0 | V79: =SUM(F79:U79) -> 50000
C81: Debt
A82: =A111+1 ->  | C82: Term Loan
C83: Principal Out | F83: =IF(F6=0,loan_amount_A,0) -> 38000 | G83: 0 | H83: 0 | I83: 0 | J83: 0 | K83: 0 | L83: 0 | M83: 0 | N83: 0 | O83: 0 | P83: 0 | Q83: 0 | R83: 0 | S83: 0 | T83: 0 | U83: 0 | V83: =SUM(F83:U83) -> 38000
C84: Principal Paid | F84: =-SUMIF('Term Loan'!$A$9:$A$39,F$6,'Term Loan'!$C$9:$C$39)-SUMIF('Term Loan'!$A$9:$A$39,F$6,'Term Loan'!$K$9:$K$39) -> 0 | G84: =-SUMIF('Term Loan'!$A$9:$A$39,G$6,'Term Loan'!$C$9:$C$39)-SUMIF('Term Loan'!$A$9:$A$39,G$6,'Term Loan'!$K$9:$K$39) -> -6477.345274 | H84: =-SUMIF('Term Loan'!$A$9:$A$39,H$6,'Term Loan'!$C$9:$C$39)-SUMIF('Term Loan'!$A$9:$A$39,H$6,'Term Loan'!$K$9:$K$39) -> -6995.532895 | I84: =-SUMIF('Term Loan'!$A$9:$A$39,I$6,'Term Loan'!$C$9:$C$39)-SUMIF('Term Loan'!$A$9:$A$39,I$6,'Term Loan'!$K$9:$K$39) -> -7555.175527 | J84: =-SUMIF('Term Loan'!$A$9:$A$39,J$6,'Term Loan'!$C$9:$C$39)-SUMIF('Term Loan'!$A$9:$A$39,J$6,'Term Loan'!$K$9:$K$39) -> -8159.589569 | K84: =-SUMIF('Term Loan'!$A$9:$A$39,K$6,'Term Loan'!$C$9:$C$39)-SUMIF('Term Loan'!$A$9:$A$39,K$6,'Term Loan'!$K$9:$K$39) -> -8812.356735 | L84: =-SUMIF('Term Loan'!$A$9:$A$39,L$6,'Term Loan'!$C$9:$C$39)-SUMIF('Term Loan'!$A$9:$A$39,L$6,'Term Loan'!$K$9:$K$39) -> 0 | M84: =-SUMIF('Term Loan'!$A$9:$A$39,M$6,'Term Loan'!$C$9:$C$39)-SUMIF('Term Loan'!$A$9:$A$39,M$6,'Term Loan'!$K$9:$K$39) -> 0 | N84: =-SUMIF('Term Loan'!$A$9:$A$39,N$6,'Term Loan'!$C$9:$C$39)-SUMIF('Term Loan'!$A$9:$A$39,N$6,'Term Loan'!$K$9:$K$39) -> 0 | O84: =-SUMIF('Term Loan'!$A$9:$A$39,O$6,'Term Loan'!$C$9:$C$39)-SUMIF('Term Loan'!$A$9:$A$39,O$6,'Term Loan'!$K$9:$K$39) -> 0 | P84: =-SUMIF('Term Loan'!$A$9:$A$39,P$6,'Term Loan'!$C$9:$C$39)-SUMIF('Term Loan'!$A$9:$A$39,P$6,'Term Loan'!$K$9:$K$39) -> 0 | Q84: =-SUMIF('Term Loan'!$A$9:$A$39,Q$6,'Term Loan'!$C$9:$C$39)-SUMIF('Term Loan'!$A$9:$A$39,Q$6,'Term Loan'!$K$9:$K$39) -> 0 | R84: =-SUMIF('Term Loan'!$A$9:$A$39,R$6,'Term Loan'!$C$9:$C$39)-SUMIF('Term Loan'!$A$9:$A$39,R$6,'Term Loan'!$K$9:$K$39) -> 0 | S84: =-SUMIF('Term Loan'!$A$9:$A$39,S$6,'Term Loan'!$C$9:$C$39)-SUMIF('Term Loan'!$A$9:$A$39,S$6,'Term Loan'!$K$9:$K$39) -> 0 | T84: =-SUMIF('Term Loan'!$A$9:$A$39,T$6,'Term Loan'!$C$9:$C$39)-SUMIF('Term Loan'!$A$9:$A$39,T$6,'Term Loan'!$K$9:$K$39) -> 0 | U84: =-SUMIF('Term Loan'!$A$9:$A$39,U$6,'Term Loan'!$C$9:$C$39)-SUMIF('Term Loan'!$A$9:$A$39,U$6,'Term Loan'!$K$9:$K$39) -> 0 | V84: =SUM(F84:U84) -> -38000
C85: Interest Paid | F85: =-SUMIF('Term Loan'!$A$9:$A$39,F$6,'Term Loan'!$D$9:$D$39)-SUMIF('Term Loan'!$A$9:$A$39,F$6,'Term Loan'!$L$9:$L$39) -> 0 | G85: =-SUMIF('Term Loan'!$A$9:$A$39,G$6,'Term Loan'!$D$9:$D$39)-SUMIF('Term Loan'!$A$9:$A$39,G$6,'Term Loan'!$L$9:$L$39) -> -3040 | H85: =-SUMIF('Term Loan'!$A$9:$A$39,H$6,'Term Loan'!$D$9:$D$39)-SUMIF('Term Loan'!$A$9:$A$39,H$6,'Term Loan'!$L$9:$L$39) -> -2521.812378 | I85: =-SUMIF('Term Loan'!$A$9:$A$39,I$6,'Term Loan'!$D$9:$D$39)-SUMIF('Term Loan'!$A$9:$A$39,I$6,'Term Loan'!$L$9:$L$39) -> -1962.169746 | J85: =-SUMIF('Term Loan'!$A$9:$A$39,J$6,'Term Loan'!$D$9:$D$39)-SUMIF('Term Loan'!$A$9:$A$39,J$6,'Term Loan'!$L$9:$L$39) -> -1357.755704 | K85: =-SUMIF('Term Loan'!$A$9:$A$39,K$6,'Term Loan'!$D$9:$D$39)-SUMIF('Term Loan'!$A$9:$A$39,K$6,'Term Loan'!$L$9:$L$39) -> -704.9885388 | L85: =-SUMIF('Term Loan'!$A$9:$A$39,L$6,'Term Loan'!$D$9:$D$39)-SUMIF('Term Loan'!$A$9:$A$39,L$6,'Term Loan'!$L$9:$L$39) -> 0 | M85: =-SUMIF('Term Loan'!$A$9:$A$39,M$6,'Term Loan'!$D$9:$D$39)-SUMIF('Term Loan'!$A$9:$A$39,M$6,'Term Loan'!$L$9:$L$39) -> 0 | N85: =-SUMIF('Term Loan'!$A$9:$A$39,N$6,'Term Loan'!$D$9:$D$39)-SUMIF('Term Loan'!$A$9:$A$39,N$6,'Term Loan'!$L$9:$L$39) -> 0 | O85: =-SUMIF('Term Loan'!$A$9:$A$39,O$6,'Term Loan'!$D$9:$D$39)-SUMIF('Term Loan'!$A$9:$A$39,O$6,'Term Loan'!$L$9:$L$39) -> 0 | P85: =-SUMIF('Term Loan'!$A$9:$A$39,P$6,'Term Loan'!$D$9:$D$39)-SUMIF('Term Loan'!$A$9:$A$39,P$6,'Term Loan'!$L$9:$L$39) -> 0 | Q85: =-SUMIF('Term Loan'!$A$9:$A$39,Q$6,'Term Loan'!$D$9:$D$39)-SUMIF('Term Loan'!$A$9:$A$39,Q$6,'Term Loan'!$L$9:$L$39) -> 0 | R85: =-SUMIF('Term Loan'!$A$9:$A$39,R$6,'Term Loan'!$D$9:$D$39)-SUMIF('Term Loan'!$A$9:$A$39,R$6,'Term Loan'!$L$9:$L$39) -> 0 | S85: =-SUMIF('Term Loan'!$A$9:$A$39,S$6,'Term Loan'!$D$9:$D$39)-SUMIF('Term Loan'!$A$9:$A$39,S$6,'Term Loan'!$L$9:$L$39) -> 0 | T85: =-SUMIF('Term Loan'!$A$9:$A$39,T$6,'Term Loan'!$D$9:$D$39)-SUMIF('Term Loan'!$A$9:$A$39,T$6,'Term Loan'!$L$9:$L$39) -> 0 | U85: =-SUMIF('Term Loan'!$A$9:$A$39,U$6,'Term Loan'!$D$9:$D$39)-SUMIF('Term Loan'!$A$9:$A$39,U$6,'Term Loan'!$L$9:$L$39) -> 0 | V85: -9586.726368
A86: =#REF!+1 ->  | C86: Line of Credit (revolving)
C87: Line of Credit Sizing
C88: net before line of credit | F88: =SUM(F83:F85)+F79+F74+F25 -> 0 | G88: -136317.3453 | H88: -88896.59527 | I88: -67913.43209 | J88: -28738.11794 | K88: 41903.60513 | L88: 125150.43 | M88: 173041.3633 | N88: 188317.4539 | O88: 234485.582 | P88: 241698.72 | Q88: 204059.6729 | R88: 221203.5958 | S88: 213541.3391 | T88: 178502.3079 | U88: 196602.9772
C89: cumultive | F89: =E89+F88 -> 0 | G89: =F89+G88 -> -136317.3453 | H89: -225213.9405 | I89: -293127.3726 | J89: -321865.4906 | K89: -279961.8854 | L89: -154811.4554 | M89: 18229.90791 | N89: 206547.3618 | O89: 441032.9438 | P89: 682731.6638 | Q89: 886791.3366 | R89: 1107994.932 | S89: 1321536.272 | T89: 1500038.579 | U89: 1696641.557
A91: =A86+1 ->  | C91: Revolving Loan Amount | F91: ='General Assumptions'!L47 -> 321865.4906 | G91: =F91 -> 321865.4906 | H91: =G91 -> 321865.4906 | I91: 321865.4906 | J91: 321865.4906 | K91: 321865.4906 | L91: 321865.4906 | M91: 321865.4906 | N91: 321865.4906 | O91: 321865.4906 | P91: 321865.4906 | Q91: 321865.4906 | R91: 321865.4906 | S91: 321865.4906 | T91: 321865.4906 | U91: 321865.4906
C92: Drawdown | F92: =MIN(0,(SUM(F83:F85)+F79+F74+F25)) -> 0 | G92: -136317.3453 | H92: -88896.59527 | I92: -67913.43209 | J92: -28738.11794 | K92: 0 | L92: 0 | M92: 0 | N92: 0 | O92: 0 | P92: 0 | Q92: 0 | R92: 0 | S92: 0 | T92: 0 | U92: 0
C93: Cumulative Drawdown | F93: =F92+E93+E106 -> 0 | G93: -136317.3453 | H93: -225213.9405 | I93: -293127.3726 | J93: -321865.4906 | K93: -321865.4906 | L93: -321865.4906 | M93: -255190.7798 | N93: -104680.0008 | O93: 0 | P93: 0 | Q93: 0 | R93: 0 | S93: 0 | T93: 0 | U93: 0
C94: Unused Principal | F94: =F91+F93 -> 321865.4906 | G94: =G91+G93 -> 185548.1453 | H94: 96651.55002 | I94: 28738.11794 | J94: 0 | K94: 0 | L94: 0 | M94: 66674.71082 | N94: 217185.4898 | O94: 321865.4906 | P94: 321865.4906 | Q94: 321865.4906 | R94: 321865.4906 | S94: 321865.4906 | T94: 321865.4906 | U94: 321865.4906
C95: Current Interest on Unused Principal | F95: =-E94*'General Assumptions'!$L$49 -> 0 | G95: =-F94*'General Assumptions'!$L$49 -> -4827.982359 | H95: =-G94*'General Assumptions'!$L$49 -> -2783.222179 | I95: =-H94*'General Assumptions'!$L$49 -> -1449.77325 | J95: =-I94*'General Assumptions'!$L$49 -> -431.0717691 | K95: =-J94*'General Assumptions'!$L$49 -> 0 | L95: =-K94*'General Assumptions'!$L$49 -> 0 | M95: =-L94*'General Assumptions'!$L$49 -> 0 | N95: =-M94*'General Assumptions'!$L$49 -> -1000.120662 | O95: =-N94*'General Assumptions'!$L$49 -> -3257.782347 | P95: =-O94*'General Assumptions'!$L$49 -> -4827.982359 | Q95: =-P94*'General Assumptions'!$L$49 -> -4827.982359 | R95: =-Q94*'General Assumptions'!$L$49 -> -4827.982359 | S95: =-R94*'General Assumptions'!$L$49 -> -4827.982359 | T95: =-S94*'General Assumptions'!$L$49 -> -4827.982359 | U95: =-T94*'General Assumptions'!$L$49 -> -4827.982359
C96: Current Interest on Drawdown | F96: =E93*'General Assumptions'!$L$50 -> 0 | G96: =F93*'General Assumptions'!$L$50 -> 0 | H96: =G93*'General Assumptions'!$L$50 -> -9542.214169 | I96: =H93*'General Assumptions'!$L$50 -> -15764.97584 | J96: =I93*'General Assumptions'!$L$50 -> -20518.91608 | K96: =J93*'General Assumptions'!$L$50 -> -22530.58434 | L96: =K93*'General Assumptions'!$L$50 -> -22530.58434 | M96: =L93*'General Assumptions'!$L$50 -> -22530.58434 | N96: =M93*'General Assumptions'!$L$50 -> -17863.35458 | O96: =N93*'General Assumptions'!$L$50 -> -7327.600053 | P96: =O93*'General Assumptions'!$L$50 -> 0 | Q96: =P93*'General Assumptions'!$L$50 -> 0 | R96: =Q93*'General Assumptions'!$L$50 -> 0 | S96: =R93*'General Assumptions'!$L$50 -> 0 | T96: =S93*'General Assumptions'!$L$50 -> 0 | U96: =T93*'General Assumptions'!$L$50 -> 0
C97: Total Current Interest | F97: =SUM(F95:F96) -> 0 | G97: -4827.982359 | H97: -12325.43635 | I97: -17214.74909 | J97: -20949.98785 | K97: -22530.58434 | L97: -22530.58434 | M97: -22530.58434 | N97: -18863.47525 | O97: -10585.3824 | P97: -4827.982359 | Q97: -4827.982359 | R97: -4827.982359 | S97: -4827.982359 | T97: -4827.982359 | U97: -4827.982359
C98: Cashflow available for Interest | F98: =F74-(F92-F25)+F79+SUM(F83:F85) -> 0 | G98: -1.818989404e-11 | H98: 0 | I98: 0 | J98: 0 | K98: 41903.60513 | L98: 125150.43 | M98: 173041.3633 | N98: 188317.4539 | O98: 234485.582 | P98: 241698.72 | Q98: 204059.6729 | R98: 221203.5958 | S98: 213541.3391 | T98: 178502.3079 | U98: 196602.9772
C99: Current Interest Paid | F99: =IF(F98>0,MIN(-F97,F98),0) -> 0 | G99: 0 | H99: 0 | I99: 0 | J99: =IF(J98>0,MIN(-J97,J98),0) -> 0 | K99: =IF(K98>0,MIN(-K97,K98),0) -> 22530.58434 | L99: 22530.58434 | M99: 22530.58434 | N99: 18863.47525 | O99: 10585.3824 | P99: 4827.982359 | Q99: 4827.982359 | R99: 4827.982359 | S99: 4827.982359 | T99: 4827.982359 | U99: 4827.982359
C100: Unpaid interest | F100: =F99+F97 -> 0 | G100: -4827.982359 | H100: -12325.43635 | I100: -17214.74909 | J100: =J99+J97 -> -20949.98785 | K100: =K99+K97 -> 0 | L100: 0 | M100: 0 | N100: 0 | O100: 0 | P100: 0 | Q100: 0 | R100: 0 | S100: 0 | T100: 0 | U100: 0
C101: Accrued Interest | F101: =E101+F100+E103 -> 0 | G101: =F101+G100+F103 -> -4827.982359 | H101: -17153.41871 | I101: -34368.1678 | J101: -55318.15565 | K101: -55318.15565 | L101: -35945.13486 | M101: 0 | N101: 0 | O101: 0 | P101: 0 | Q101: 0 | R101: =Q101+R100+Q103 -> 0 | S101: =R101+S100+R103 -> 0 | T101: =S101+T100+S103 -> 0 | U101: =T101+U100+T103 -> 0
C102: Cashflow available for Accrued Interest Paydown | F102: =F98-F99 -> 0 | G102: -1.818989404e-11 | H102: 0 | I102: 0 | J102: =J98-J99 -> 0 | K102: =K98-K99 -> 19373.02079 | L102: 102619.8457 | M102: 150510.779 | N102: 169453.9786 | O102: 223900.1996 | P102: 236870.7376 | Q102: 199231.6905 | R102: 216375.6135 | S102: 208713.3568 | T102: 173674.3255 | U102: 191774.9949
C103: Accrued Interest Paid | F103: =MIN(F102,-F101) -> 0 | G103: -1.818989404e-11 | H103: 0 | I103: 0 | J103: 0 | K103: =MIN(K102,-K101) -> 19373.02079 | L103: =MIN(L102,-L101) -> 35945.13486 | M103: =MIN(M102,-M101) -> 0 | N103: =MIN(N102,-N101) -> 0 | O103: =MIN(O102,-O101) -> 0 | P103: =MIN(P102,-P101) -> 0 | Q103: =MIN(Q102,-Q101) -> 0 | R103: =MIN(R102,-R101) -> 0 | S103: =MIN(S102,-S101) -> 0 | T103: =MIN(T102,-T101) -> 0 | U103: =MIN(U102,-U101) -> 0
C104: Net Accrued Interest | F104: =F101+F103 -> 0 | G104: =G101+G103 -> -4827.982359 | H104: -17153.41871 | I104: -34368.1678 | J104: -55318.15565 | K104: -35945.13486 | L104: 0 | M104: 0 | N104: 0 | O104: 0 | P104: =P101+P103 -> 0 | Q104: =Q101+Q103 -> 0 | R104: =R101+R103 -> 0 | S104: =S101+S103 -> 0 | T104: =T101+T103 -> 0 | U104: =U101+U103 -> 0
C105: Cashflow available for Principal Payback | F105: =F102-F103 -> 0 | G105: =G102-G103 -> 0 | H105: 0 | I105: 0 | J105: 0 | K105: 0 | L105: 66674.71082 | M105: 150510.779 | N105: 169453.9786 | O105: 223900.1996 | P105: 236870.7376 | Q105: 199231.6905 | R105: 216375.6135 | S105: 208713.3568 | T105: 173674.3255 | U105: 191774.9949
A106: =A102+1 ->  | C106: Principal Paid | F106: =IF(F105>0,MIN(-F93,F105),0) -> 0 | G106: =IF(G105>0,MIN(-G93,G105),0) -> 0 | H106: 0 | I106: 0 | J106: 0 | K106: 0 | L106: 66674.71082 | M106: 150510.779 | N106: 104680.0008 | O106: 0 | P106: 0 | Q106: 0 | R106: 0 | S106: 0 | T106: 0 | U106: 0
C108: =C92 -> Drawdown | F108: =-F92 -> 0 | G108: =-G92 -> 136317.3453 | H108: 88896.59527 | I108: 67913.43209 | J108: 28738.11794 | K108: 0 | L108: 0 | M108: 0 | N108: 0 | O108: 0 | P108: 0 | Q108: 0 | R108: 0 | S108: 0 | T108: 0 | U108: 0 | V108: =SUM(F108:U108) -> 321865.4906
C109: =C99 -> Current Interest Paid | F109: =-F99 -> 0 | G109: =-G99 -> 0 | H109: 0 | I109: 0 | J109: 0 | K109: -22530.58434 | L109: -22530.58434 | M109: -22530.58434 | N109: -18863.47525 | O109: -10585.3824 | P109: -4827.982359 | Q109: -4827.982359 | R109: -4827.982359 | S109: -4827.982359 | T109: -4827.982359 | U109: -4827.982359 | V109: =SUM(F109:U109) -> -126008.5048
C110: Accrued Interest Paid | F110: =-F103 -> 0 | G110: =-G103 -> 1.818989404e-11 | H110: 0 | I110: 0 | J110: 0 | K110: -19373.02079 | L110: -35945.13486 | M110: 0 | N110: 0 | O110: 0 | P110: 0 | Q110: 0 | R110: 0 | S110: 0 | T110: 0 | U110: 0 | V110: -55318.15565
A111: =A109+1 ->  | C111: =C106 -> Principal Paid | F111: =-F106 -> 0 | G111: =-G106 -> 0 | H111: 0 | I111: 0 | J111: 0 | K111: 0 | L111: -66674.71082 | M111: -150510.779 | N111: -104680.0008 | O111: 0 | P111: 0 | Q111: 0 | R111: 0 | S111: 0 | T111: 0 | U111: 0 | V111: -321865.4906
A113: =#REF!+1 ->  | C113: TOTAL FINANCING | F113: =SUM(F108:F111,F83:F85)+F79 -> 88000 | G113: =SUM(G108:G111,G83:G85)+G79 -> 126800 | H113: 79379.25 | I113: 58396.08681 | J113: 19220.77266 | K113: -51420.9504 | L113: -125150.43 | M113: -173041.3633 | N113: -123543.476 | O113: -10585.3824 | P113: -4827.982359 | Q113: -4827.982359 | R113: -4827.982359 | S113: -4827.982359 | T113: -4827.982359 | U113: -4827.982359 | V113: -140913.3868
A114: =#REF!+1 -> 
A115: =A114+1 -> 
B116: NET CASH FLOW | F116: =F113+F74+F25 -> 0 | G116: 0 | H116: 0 | I116: 0 | J116: 0 | K116: 0 | L116: 0 | M116: 0 | N116: 64773.97786 | O116: 223900.1996 | P116: 236870.7376 | Q116: 199231.6905 | R116: 216375.6135 | S116: 208713.3568 | T116: 173674.3255 | U116: 191774.9949 | V116: =SUM(G116:U116) -> 1515314.896
C117: Cumulative | F117: =E117+F116 -> 0 | G117: =F117+G116 -> 0 | H117: 0 | I117: 0 | J117: 0 | K117: 0 | L117: 0 | M117: 0 | N117: 64773.97786 | O117: 288674.1775 | P117: 525544.9151 | Q117: 724776.6056 | R117: 941152.2191 | S117: 1149865.576 | T117: 1323539.901 | U117: 1515314.896
A120: =#REF!+1 ->  | C120: Unlevered Cash Flow | F120: =F74+F25 -> -88000 | G120: -126800 | H120: -79379.25 | I120: -58396.08681 | J120: -19220.77266 | K120: 51420.9504 | L120: 125150.43 | M120: 173041.3633 | N120: 188317.4539 | O120: 234485.582 | P120: 241698.72 | Q120: 204059.6729 | R120: 221203.5958 | S120: 213541.3391 | T120: 178502.3079 | U120: 196602.9772 | V120: =SUM(F120:U120) -> 1656228.283
C121: cumulative | F121: =E121+F120 -> -88000 | G121: =F121+G120 -> -214800 | H121: -294179.25 | I121: -352575.3368 | J121: -371796.1095 | K121: -320375.1591 | L121: -195224.7291 | M121: -22183.36572 | N121: 166134.0881 | O121: 400619.6701 | P121: 642318.3901 | Q121: 846378.063 | R121: 1067581.659 | S121: 1281122.998 | T121: 1459625.306 | U121: 1656228.283
C122: IRR | D122: =IRR(F120:U120) -> 0.2226273839
C124: Levered Cash Flow to Equity | F124: =F116-F79 -> -50000 | G124: 0 | H124: 0 | I124: 0 | J124: 0 | K124: 0 | L124: 0 | M124: 0 | N124: 64773.97786 | O124: 223900.1996 | P124: 236870.7376 | Q124: 199231.6905 | R124: 216375.6135 | S124: 208713.3568 | T124: 173674.3255 | U124: 191774.9949 | V124: 1465314.896
C125: cumulative | F125: =E125+F124 -> -50000 | G125: =F125+G124 -> -50000 | H125: =G125+H124 -> -50000 | I125: =H125+I124 -> -50000 | J125: =I125+J124 -> -50000 | K125: =J125+K124 -> -50000 | L125: =K125+L124 -> -50000 | M125: =L125+M124 -> -50000 | N125: =M125+N124 -> 14773.97786 | O125: =N125+O124 -> 238674.1775 | P125: =O125+P124 -> 475544.9151 | Q125: =P125+Q124 -> 674776.6056 | R125: =Q125+R124 -> 891152.2191 | S125: =R125+S124 -> 1099865.576 | T125: =S125+T124 -> 1273539.901 | U125: =T125+U124 -> 1465314.896
C126: IRR | D126: =IRR(F124:U124) -> 0.3620646963
A129: =A128+1 -> 

Sheet Calculations (hidden)
A1: ='General Assumptions'!C6&" Calculation Table" -> Calculation Table
B3: Customer Adoption
D4: Year
D5: 1 | E5: =D5+1 -> 2 | F5: =E5+1 -> 3 | G5: =F5+1 -> 4 | H5: =G5+1 -> 5 | I5: =H5+1 -> 6 | J5: =I5+1 -> 7 | K5: =J5+1 -> 8 | L5: =K5+1 -> 9 | M5: =L5+1 -> 10 | N5: =M5+1 -> 11 | O5: =N5+1 -> 12 | P5: =O5+1 -> 13 | Q5: =P5+1 -> 14 | R5: =Q5+1 -> 15 | S5: Total
B6: Customer Count
B7: Customers, Annual | D7: =SUMIF('General Assumptions'!$B$12:$B$26,D$5,customer_acquisition_table) -> 400 | E7: =SUMIF('General Assumptions'!$B$12:$B$26,E$5,customer_acquisition_table) -> 400 | F7: =SUMIF('General Assumptions'!$B$12:$B$26,F$5,customer_acquisition_table) -> 600 | G7: =SUMIF('General Assumptions'!$B$12:$B$26,G$5,customer_acquisition_table) -> 500 | H7: =SUMIF('General Assumptions'!$B$12:$B$26,H$5,customer_acquisition_table) -> 500 | I7: =SUMIF('General Assumptions'!$B$12:$B$26,I$5,customer_acquisition_table) -> 500 | J7: =SUMIF('General Assumptions'!$B$12:$B$26,J$5,customer_acquisition_table) -> 400 | K7: =SUMIF('General Assumptions'!$B$12:$B$26,K$5,customer_acquisition_table) -> 400 | L7: =SUMIF('General Assumptions'!$B$12:$B$26,L$5,customer_acquisition_table) -> 300 | M7: =SUMIF('General Assumptions'!$B$12:$B$26,M$5,customer_acquisition_table) -> 0 | N7: =SUMIF('General Assumptions'!$B$12:$B$26,N$5,customer_acquisition_table) -> 0 | O7: =SUMIF('General Assumptions'!$B$12:$B$26,O$5,customer_acquisition_table) -> 0 | P7: =SUMIF('General Assumptions'!$B$12:$B$26,P$5,customer_acquisition_table) -> 0 | Q7: =SUMIF('General Assumptions'!$B$12:$B$26,Q$5,customer_acquisition_table) -> 0 | R7: =SUMIF('General Assumptions'!$B$12:$B$26,R$5,customer_acquisition_table) -> 0 | S7: =SUM(D7:R7) -> 4000
B8: Customers, Cumulative | D8: =SUM($D$7:D7) -> 400 | E8: =SUM($D$7:E7) -> 800 | F8: =SUM($D$7:F7) -> 1400 | G8: =SUM($D$7:G7) -> 1900 | H8: =SUM($D$7:H7) -> 2400 | I8: =SUM($D$7:I7) -> 2900 | J8: =SUM($D$7:J7) -> 3300 | K8: =SUM($D$7:K7) -> 3700 | L8: =SUM($D$7:L7) -> 4000 | M8: =SUM($D$7:M7) -> 4000 | N8: =SUM($D$7:N7) -> 4000 | O8: =SUM($D$7:O7) -> 4000 | P8: =SUM($D$7:P7) -> 4000 | Q8: =SUM($D$7:Q7) -> 4000 | R8: =SUM($D$7:R7) -> 4000 | S8: n/a
B10: Cylinder Deployment Count
B11: Initial | D11: =D7 -> 400 | E11: 400 | F11: 600 | G11: 500 | H11: 500 | I11: 500 | J11: 400 | K11: 400 | L11: 300 | M11: 0 | N11: 0 | O11: 0 | P11: 0 | Q11: 0 | R11: 0 | S11: =SUM(D11:R11) -> 4000
B12: Replacement, Wear and Tear | D12: =C8*cylinder_replacement_percentage -> 0 | E12: 20 | F12: 40 | G12: 70 | H12: 95 | I12: 120 | J12: 145 | K12: 165 | L12: 185 | M12: 200 | N12: 200 | O12: 200 | P12: 200 | Q12: 200 | R12: 200 | S12: =SUM(D12:R12) -> 2040
B13: Replacement, End of Life | D13: =SUMIF($D$14:$R$14,D5,$D$11:$R$11)*cylinder_replacement_percentage*cylinder_estimated_life -> 0 | E13: 0 | F13: 0 | G13: 0 | H13: 0 | I13: 0 | J13: 0 | K13: 0 | L13: 0 | M13: 0 | N13: 200 | O13: 200 | P13: 300 | Q13: 250 | R13: 250 | S13: =SUM(D13:R13) -> 1200
B14: End of Life Replacement Year | D14: =D5+cylinder_estimated_life -> 11 | E14: 12 | F14: 13 | G14: 14 | H14: 15 | I14: 16 | J14: 17 | K14: 18 | L14: 19 | M14: 20 | N14: 21 | O14: 22 | P14: 23 | Q14: 24 | R14: 25
B16: Burner Deployment Count | C16: burner_category
B17: =B11 -> Initial | D17: =D7 -> 400 | E17: 400 | F17: 600 | G17: 500 | H17: 500 | I17: 500 | J17: 400 | K17: 400 | L17: 300 | M17: 0 | N17: 0 | O17: 0 | P17: 0 | Q17: 0 | R17: 0 | S17: =SUM(D17:R17) -> 4000
B18: =B12 -> Replacement, Wear and Tear | D18: =C8*burner_replacement_percentage -> 0 | E18: 20 | F18: 40 | G18: 70 | H18: 95 | I18: 120 | J18: 145 | K18: 165 | L18: 185 | M18: 200 | N18: 200 | O18: 200 | P18: 200 | Q18: 200 | R18: 200 | S18: =SUM(D18:R18) -> 2040
B19: =B13 -> Replacement, End of Life | D19: =SUMIF($D$20:$R$20,D5,$D$17:$R$17)*burner_replacement_percentage*burner_estimated_life -> 0 | E19: 0 | F19: 0 | G19: 0 | H19: 0 | I19: 0 | J19: 0 | K19: 0 | L19: 0 | M19: 0 | N19: 200 | O19: 200 | P19: 300 | Q19: 250 | R19: 250 | S19: =SUM(D19:R19) -> 1200
B20: =B14 -> End of Life Replacement Year | D20: =D5+cylinder_estimated_life -> 11 | E20: 12 | F20: 13 | G20: 14 | H20: 15 | I20: 16 | J20: 17 | K20: 18 | L20: 19 | M20: 20 | N20: 21 | O20: 22 | P20: 23 | Q20: 24 | R20: 25
B24: Infrastructure Installation Timing
D25: Year
D26: 1 | E26: 2 | F26: 3 | G26: 4 | H26: 5 | I26: 6 | J26: 7 | K26: 8 | L26: 9 | M26: 10 | N26: 11 | O26: 12 | P26: 13 | Q26: 14 | R26: 15 | S26: Total
B27: Installation Count
B28: Storage | C28: 2 | D28: =VLOOKUP(D$26,infrastructure_user_table_detailed,Calculations!$C28,0) -> 2 | E28: =VLOOKUP(E$26,infrastructure_user_table_detailed,Calculations!$C28,0) -> 0 | F28: =VLOOKUP(F$26,infrastructure_user_table_detailed,Calculations!$C28,0) -> 0 | G28: =VLOOKUP(G$26,infrastructure_user_table_detailed,Calculations!$C28,0) -> 0 | H28: =VLOOKUP(H$26,infrastructure_user_table_detailed,Calculations!$C28,0) -> 1 | I28: =VLOOKUP(I$26,infrastructure_user_table_detailed,Calculations!$C28,0) -> 0 | J28: =VLOOKUP(J$26,infrastructure_user_table_detailed,Calculations!$C28,0) -> 0 | K28: =VLOOKUP(K$26,infrastructure_user_table_detailed,Calculations!$C28,0) -> 1 | L28: =VLOOKUP(L$26,infrastructure_user_table_detailed,Calculations!$C28,0) -> 0 | M28: =VLOOKUP(M$26,infrastructure_user_table_detailed,Calculations!$C28,0) -> 0 | N28: =VLOOKUP(N$26,infrastructure_user_table_detailed,Calculations!$C28,0) -> 1 | O28: =VLOOKUP(O$26,infrastructure_user_table_detailed,Calculations!$C28,0) -> 0 | P28: =VLOOKUP(P$26,infrastructure_user_table_detailed,Calculations!$C28,0) -> 0 | Q28: =VLOOKUP(Q$26,infrastructure_user_table_detailed,Calculations!$C28,0) -> 0 | R28: =VLOOKUP(R$26,infrastructure_user_table_detailed,Calculations!$C28,0) -> 0 | S28: =SUM(D28:R28) -> 5
B29: Refueling Stations | C29: =C28+1 -> 3 | D29: =VLOOKUP(D$26,infrastructure_user_table_detailed,Calculations!$C29,0) -> 2 | E29: =VLOOKUP(E$26,infrastructure_user_table_detailed,Calculations!$C29,0) -> 0 | F29: =VLOOKUP(F$26,infrastructure_user_table_detailed,Calculations!$C29,0) -> 1 | G29: =VLOOKUP(G$26,infrastructure_user_table_detailed,Calculations!$C29,0) -> 1 | H29: =VLOOKUP(H$26,infrastructure_user_table_detailed,Calculations!$C29,0) -> 1 | I29: =VLOOKUP(I$26,infrastructure_user_table_detailed,Calculations!$C29,0) -> 0 | J29: =VLOOKUP(J$26,infrastructure_user_table_detailed,Calculations!$C29,0) -> 0 | K29: =VLOOKUP(K$26,infrastructure_user_table_detailed,Calculations!$C29,0) -> 1 | L29: =VLOOKUP(L$26,infrastructure_user_table_detailed,Calculations!$C29,0) -> 1 | M29: =VLOOKUP(M$26,infrastructure_user_table_detailed,Calculations!$C29,0) -> 0 | N29: =VLOOKUP(N$26,infrastructure_user_table_detailed,Calculations!$C29,0) -> 2 | O29: =VLOOKUP(O$26,infrastructure_user_table_detailed,Calculations!$C29,0) -> 0 | P29: =VLOOKUP(P$26,infrastructure_user_table_detailed,Calculations!$C29,0) -> 0 | Q29: =VLOOKUP(Q$26,infrastructure_user_table_detailed,Calculations!$C29,0) -> 1 | R29: =VLOOKUP(R$26,infrastructure_user_table_detailed,Calculations!$C29,0) -> 0 | S29: =SUM(D29:R29) -> 10
B30: Transportation | C30: =C29+1 -> 4 | D30: =VLOOKUP(D$26,infrastructure_user_table_detailed,Calculations!$C30,0) -> 2 | E30: =VLOOKUP(E$26,infrastructure_user_table_detailed,Calculations!$C30,0) -> 0 | F30: =VLOOKUP(F$26,infrastructure_user_table_detailed,Calculations!$C30,0) -> 0 | G30: =VLOOKUP(G$26,infrastructure_user_table_detailed,Calculations!$C30,0) -> 2 | H30: =VLOOKUP(H$26,infrastructure_user_table_detailed,Calculations!$C30,0) -> 0 | I30: =VLOOKUP(I$26,infrastructure_user_table_detailed,Calculations!$C30,0) -> 0 | J30: =VLOOKUP(J$26,infrastructure_user_table_detailed,Calculations!$C30,0) -> 0 | K30: =VLOOKUP(K$26,infrastructure_user_table_detailed,Calculations!$C30,0) -> 1 | L30: =VLOOKUP(L$26,infrastructure_user_table_detailed,Calculations!$C30,0) -> 0 | M30: =VLOOKUP(M$26,infrastructure_user_table_detailed,Calculations!$C30,0) -> 0 | N30: =VLOOKUP(N$26,infrastructure_user_table_detailed,Calculations!$C30,0) -> 0 | O30: =VLOOKUP(O$26,infrastructure_user_table_detailed,Calculations!$C30,0) -> 0 | P30: =VLOOKUP(P$26,infrastructure_user_table_detailed,Calculations!$C30,0) -> 0 | Q30: =VLOOKUP(Q$26,infrastructure_user_table_detailed,Calculations!$C30,0) -> 1 | R30: =VLOOKUP(R$26,infrastructure_user_table_detailed,Calculations!$C30,0) -> 0 | S30: 6
B31: Misc. | C31: 5 | D31: =VLOOKUP(D$26,infrastructure_user_table_detailed,Calculations!$C31,0) -> 0 | E31: =VLOOKUP(E$26,infrastructure_user_table_detailed,Calculations!$C31,0) -> 0 | F31: =VLOOKUP(F$26,infrastructure_user_table_detailed,Calculations!$C31,0) -> 2 | G31: =VLOOKUP(G$26,infrastructure_user_table_detailed,Calculations!$C31,0) -> 0 | H31: =VLOOKUP(H$26,infrastructure_user_table_detailed,Calculations!$C31,0) -> 0 | I31: =VLOOKUP(I$26,infrastructure_user_table_detailed,Calculations!$C31,0) -> 0 | J31: =VLOOKUP(J$26,infrastructure_user_table_detailed,Calculations!$C31,0) -> 0 | K31: =VLOOKUP(K$26,infrastructure_user_table_detailed,Calculations!$C31,0) -> 0 | L31: =VLOOKUP(L$26,infrastructure_user_table_detailed,Calculations!$C31,0) -> 1 | M31: =VLOOKUP(M$26,infrastructure_user_table_detailed,Calculations!$C31,0) -> 0 | N31: =VLOOKUP(N$26,infrastructure_user_table_detailed,Calculations!$C31,0) -> 0 | O31: =VLOOKUP(O$26,infrastructure_user_table_detailed,Calculations!$C31,0) -> 0 | P31: =VLOOKUP(P$26,infrastructure_user_table_detailed,Calculations!$C31,0) -> 0 | Q31: =VLOOKUP(Q$26,infrastructure_user_table_detailed,Calculations!$C31,0) -> 1 | R31: =VLOOKUP(R$26,infrastructure_user_table_detailed,Calculations!$C31,0) -> 0 | S31: 4
B33: Infrastructure Initial Installation Cost
B34: Storage | D34: =D28*'General Assumptions'!$Q7*(1+'General Assumptions'!$R7)^C$26 -> 10000 | E34: =E28*'General Assumptions'!$Q7*(1+'General Assumptions'!$R7)^D$26 -> 0 | F34: =F28*'General Assumptions'!$Q7*(1+'General Assumptions'!$R7)^E$26 -> 0 | G34: =G28*'General Assumptions'!$Q7*(1+'General Assumptions'!$R7)^F$26 -> 0 | H34: =H28*'General Assumptions'!$Q7*(1+'General Assumptions'!$R7)^G$26 -> 5306.817753 | I34: =I28*'General Assumptions'!$Q7*(1+'General Assumptions'!$R7)^H$26 -> 0 | J34: =J28*'General Assumptions'!$Q7*(1+'General Assumptions'!$R7)^I$26 -> 0 | K34: =K28*'General Assumptions'!$Q7*(1+'General Assumptions'!$R7)^J$26 -> 5549.224565 | L34: =L28*'General Assumptions'!$Q7*(1+'General Assumptions'!$R7)^K$26 -> 0 | M34: =M28*'General Assumptions'!$Q7*(1+'General Assumptions'!$R7)^L$26 -> 0 | N34: =N28*'General Assumptions'!$Q7*(1+'General Assumptions'!$R7)^M$26 -> 5802.704125 | O34: =O28*'General Assumptions'!$Q7*(1+'General Assumptions'!$R7)^N$26 -> 0 | P34: =P28*'General Assumptions'!$Q7*(1+'General Assumptions'!$R7)^O$26 -> 0 | Q34: =Q28*'General Assumptions'!$Q7*(1+'General Assumptions'!$R7)^P$26 -> 0 | R34: =R28*'General Assumptions'!$Q7*(1+'General Assumptions'!$R7)^Q$26 -> 0 | S34: =SUM(D34:R34) -> 26658.74644
B35: Refueling Stations | D35: =D29*'General Assumptions'!$Q8*(1+'General Assumptions'!$R8)^C$26 -> 15000 | E35: =E29*'General Assumptions'!$Q8*(1+'General Assumptions'!$R8)^D$26 -> 0 | F35: =F29*'General Assumptions'!$Q8*(1+'General Assumptions'!$R8)^E$26 -> 7688.671875 | G35: =G29*'General Assumptions'!$Q8*(1+'General Assumptions'!$R8)^F$26 -> 7784.780273 | H35: =H29*'General Assumptions'!$Q8*(1+'General Assumptions'!$R8)^G$26 -> 7882.090027 | I35: =I29*'General Assumptions'!$Q8*(1+'General Assumptions'!$R8)^H$26 -> 0 | J35: =J29*'General Assumptions'!$Q8*(1+'General Assumptions'!$R8)^I$26 -> 0 | K35: =K29*'General Assumptions'!$Q8*(1+'General Assumptions'!$R8)^J$26 -> 8181.378527 | L35: =L29*'General Assumptions'!$Q8*(1+'General Assumptions'!$R8)^K$26 -> 8283.645759 | M35: =M29*'General Assumptions'!$Q8*(1+'General Assumptions'!$R8)^L$26 -> 0 | N35: =N29*'General Assumptions'!$Q8*(1+'General Assumptions'!$R8)^M$26 -> 16984.06244 | O35: =O29*'General Assumptions'!$Q8*(1+'General Assumptions'!$R8)^N$26 -> 0 | P35: =P29*'General Assumptions'!$Q8*(1+'General Assumptions'!$R8)^O$26 -> 0 | Q35: =Q29*'General Assumptions'!$Q8*(1+'General Assumptions'!$R8)^P$26 -> 8814.479619 | R35: =R29*'General Assumptions'!$Q8*(1+'General Assumptions'!$R8)^Q$26 -> 0 | S35: =SUM(D35:R35) -> 80619.10853
B36: Transportation | D36: =D30*'General Assumptions'!$Q9*(1+'General Assumptions'!$R9)^C$26 -> 18000 | E36: =E30*'General Assumptions'!$Q9*(1+'General Assumptions'!$R9)^D$26 -> 0 | F36: =F30*'General Assumptions'!$Q9*(1+'General Assumptions'!$R9)^E$26 -> 0 | G36: =G30*'General Assumptions'!$Q9*(1+'General Assumptions'!$R9)^F$26 -> 19384.03125 | H36: =H30*'General Assumptions'!$Q9*(1+'General Assumptions'!$R9)^G$26 -> 0 | I36: =I30*'General Assumptions'!$Q9*(1+'General Assumptions'!$R9)^H$26 -> 0 | J36: =J30*'General Assumptions'!$Q9*(1+'General Assumptions'!$R9)^I$26 -> 0 | K36: =K30*'General Assumptions'!$Q9*(1+'General Assumptions'!$R9)^J$26 -> 10698.17178 | L36: =L30*'General Assumptions'!$Q9*(1+'General Assumptions'!$R9)^K$26 -> 0 | M36: =M30*'General Assumptions'!$Q9*(1+'General Assumptions'!$R9)^L$26 -> 0 | N36: =N30*'General Assumptions'!$Q9*(1+'General Assumptions'!$R9)^M$26 -> 0 | O36: =O30*'General Assumptions'!$Q9*(1+'General Assumptions'!$R9)^N$26 -> 0 | P36: =P30*'General Assumptions'!$Q9*(1+'General Assumptions'!$R9)^O$26 -> 0 | Q36: =Q30*'General Assumptions'!$Q9*(1+'General Assumptions'!$R9)^P$26 -> 12406.5994 | R36: =R30*'General Assumptions'!$Q9*(1+'General Assumptions'!$R9)^Q$26 -> 0 | S36: 60488.80244
B37: Misc. | D37: =D31*'General Assumptions'!$Q10*(1+'General Assumptions'!$R10)^C$26 -> 0 | E37: =E31*'General Assumptions'!$Q10*(1+'General Assumptions'!$R10)^D$26 -> 0 | F37: =F31*'General Assumptions'!$Q10*(1+'General Assumptions'!$R10)^E$26 -> 5100.5 | G37: =G31*'General Assumptions'!$Q10*(1+'General Assumptions'!$R10)^F$26 -> 0 | H37: =H31*'General Assumptions'!$Q10*(1+'General Assumptions'!$R10)^G$26 -> 0 | I37: =I31*'General Assumptions'!$Q10*(1+'General Assumptions'!$R10)^H$26 -> 0 | J37: =J31*'General Assumptions'!$Q10*(1+'General Assumptions'!$R10)^I$26 -> 0 | K37: =K31*'General Assumptions'!$Q10*(1+'General Assumptions'!$R10)^J$26 -> 0 | L37: =L31*'General Assumptions'!$Q10*(1+'General Assumptions'!$R10)^K$26 -> 2707.141764 | M37: =M31*'General Assumptions'!$Q10*(1+'General Assumptions'!$R10)^L$26 -> 0 | N37: =N31*'General Assumptions'!$Q10*(1+'General Assumptions'!$R10)^M$26 -> 0 | O37: =O31*'General Assumptions'!$Q10*(1+'General Assumptions'!$R10)^N$26 -> 0 | P37: =P31*'General Assumptions'!$Q10*(1+'General Assumptions'!$R10)^O$26 -> 0 | Q37: =Q31*'General Assumptions'!$Q10*(1+'General Assumptions'!$R10)^P$26 -> 2845.233201 | R37: =R31*'General Assumptions'!$Q10*(1+'General Assumptions'!$R10)^Q$26 -> 0 | S37: 10652.87497
B39: Infrastructure O&M Expense
B40: Storage | D40: =SUM($D28:D28)*'General Assumptions'!$S7*(1+'General Assumptions'!$T7)^C$26 -> 5000 | E40: =SUM($D28:E28)*'General Assumptions'!$S7*(1+'General Assumptions'!$T7)^D$26 -> 5075 | F40: =SUM($D28:F28)*'General Assumptions'!$S7*(1+'General Assumptions'!$T7)^E$26 -> 5151.125 | G40: =SUM($D28:G28)*'General Assumptions'!$S7*(1+'General Assumptions'!$T7)^F$26 -> 5228.391875 | H40: =SUM($D28:H28)*'General Assumptions'!$S7*(1+'General Assumptions'!$T7)^G$26 -> 7960.22663 | I40: =SUM($D28:I28)*'General Assumptions'!$S7*(1+'General Assumptions'!$T7)^H$26 -> 8079.630029 | J40: =SUM($D28:J28)*'General Assumptions'!$S7*(1+'General Assumptions'!$T7)^I$26 -> 8200.82448 | K40: =SUM($D28:K28)*'General Assumptions'!$S7*(1+'General Assumptions'!$T7)^J$26 -> 11098.44913 | L40: =SUM($D28:L28)*'General Assumptions'!$S7*(1+'General Assumptions'!$T7)^K$26 -> 11264.92587 | M40: =SUM($D28:M28)*'General Assumptions'!$S7*(1+'General Assumptions'!$T7)^L$26 -> 11433.89975 | N40: =SUM($D28:N28)*'General Assumptions'!$S7*(1+'General Assumptions'!$T7)^M$26 -> 14506.76031 | O40: =SUM($D28:O28)*'General Assumptions'!$S7*(1+'General Assumptions'!$T7)^N$26 -> 14724.36172 | P40: =SUM($D28:P28)*'General Assumptions'!$S7*(1+'General Assumptions'!$T7)^O$26 -> 14945.22714 | Q40: =SUM($D28:Q28)*'General Assumptions'!$S7*(1+'General Assumptions'!$T7)^P$26 -> 15169.40555 | R40: =SUM($D28:R28)*'General Assumptions'!$S7*(1+'General Assumptions'!$T7)^Q$26 -> 15396.94663 | S40: =SUM(D40:R40) -> 153235.1741
B41: Refueling Stations | D41: =SUM($D29:D29)*'General Assumptions'!$S8*(1+'General Assumptions'!$T8)^C$26 -> 2500 | E41: =SUM($D29:E29)*'General Assumptions'!$S8*(1+'General Assumptions'!$T8)^D$26 -> 2531.25 | F41: =SUM($D29:F29)*'General Assumptions'!$S8*(1+'General Assumptions'!$T8)^E$26 -> 3844.335938 | G41: =SUM($D29:G29)*'General Assumptions'!$S8*(1+'General Assumptions'!$T8)^F$26 -> 5189.853516 | H41: =SUM($D29:H29)*'General Assumptions'!$S8*(1+'General Assumptions'!$T8)^G$26 -> 6568.408356 | I41: =SUM($D29:I29)*'General Assumptions'!$S8*(1+'General Assumptions'!$T8)^H$26 -> 6650.51346 | J41: =SUM($D29:J29)*'General Assumptions'!$S8*(1+'General Assumptions'!$T8)^I$26 -> 6733.644878 | K41: =SUM($D29:K29)*'General Assumptions'!$S8*(1+'General Assumptions'!$T8)^J$26 -> 8181.378527 | L41: =SUM($D29:L29)*'General Assumptions'!$S8*(1+'General Assumptions'!$T8)^K$26 -> 9664.253385 | M41: =SUM($D29:M29)*'General Assumptions'!$S8*(1+'General Assumptions'!$T8)^L$26 -> 9785.056553 | N41: =SUM($D29:N29)*'General Assumptions'!$S8*(1+'General Assumptions'!$T8)^M$26 -> 12738.04683 | O41: =SUM($D29:O29)*'General Assumptions'!$S8*(1+'General Assumptions'!$T8)^N$26 -> 12897.27242 | P41: =SUM($D29:P29)*'General Assumptions'!$S8*(1+'General Assumptions'!$T8)^O$26 -> 13058.48832 | Q41: =SUM($D29:Q29)*'General Assumptions'!$S8*(1+'General Assumptions'!$T8)^P$26 -> 14690.79936 | R41: =SUM($D29:R29)*'General Assumptions'!$S8*(1+'General Assumptions'!$T8)^Q$26 -> 14874.43436 | S41: =SUM(D41:R41) -> 129907.7359
B42: Transportation | D42: =SUM($D30:D30)*'General Assumptions'!$S9*(1+'General Assumptions'!$T9)^C$26 -> 6000 | E42: =SUM($D30:E30)*'General Assumptions'!$S9*(1+'General Assumptions'!$T9)^D$26 -> 6150 | F42: =SUM($D30:F30)*'General Assumptions'!$S9*(1+'General Assumptions'!$T9)^E$26 -> 6303.75 | G42: =SUM($D30:G30)*'General Assumptions'!$S9*(1+'General Assumptions'!$T9)^F$26 -> 12922.6875 | H42: =SUM($D30:H30)*'General Assumptions'!$S9*(1+'General Assumptions'!$T9)^G$26 -> 13245.75469 | I42: =SUM($D30:I30)*'General Assumptions'!$S9*(1+'General Assumptions'!$T9)^H$26 -> 13576.89855 | J42: =SUM($D30:J30)*'General Assumptions'!$S9*(1+'General Assumptions'!$T9)^I$26 -> 13916.32102 | K42: =SUM($D30:K30)*'General Assumptions'!$S9*(1+'General Assumptions'!$T9)^J$26 -> 17830.28631 | L42: =SUM($D30:L30)*'General Assumptions'!$S9*(1+'General Assumptions'!$T9)^K$26 -> 18276.04346 | M42: =SUM($D30:M30)*'General Assumptions'!$S9*(1+'General Assumptions'!$T9)^L$26 -> 18732.94455 | N42: =SUM($D30:N30)*'General Assumptions'!$S9*(1+'General Assumptions'!$T9)^M$26 -> 19201.26816 | O42: =SUM($D30:O30)*'General Assumptions'!$S9*(1+'General Assumptions'!$T9)^N$26 -> 19681.29987 | P42: =SUM($D30:P30)*'General Assumptions'!$S9*(1+'General Assumptions'!$T9)^O$26 -> 20173.33236 | Q42: =SUM($D30:Q30)*'General Assumptions'!$S9*(1+'General Assumptions'!$T9)^P$26 -> 24813.19881 | R42: =SUM($D30:R30)*'General Assumptions'!$S9*(1+'General Assumptions'!$T9)^Q$26 -> 25433.52878 | S42: =SUM(D42:R42) -> 236257.3141
B43: Misc. | D43: =SUM($D31:D31)*'General Assumptions'!$S10*(1+'General Assumptions'!$T10)^C$26 -> 0 | E43: =SUM($D31:E31)*'General Assumptions'!$S10*(1+'General Assumptions'!$T10)^D$26 -> 0 | F43: =SUM($D31:F31)*'General Assumptions'!$S10*(1+'General Assumptions'!$T10)^E$26 -> 1020.1 | G43: =SUM($D31:G31)*'General Assumptions'!$S10*(1+'General Assumptions'!$T10)^F$26 -> 1030.301 | H43: =SUM($D31:H31)*'General Assumptions'!$S10*(1+'General Assumptions'!$T10)^G$26 -> 1040.60401 | I43: =SUM($D31:I31)*'General Assumptions'!$S10*(1+'General Assumptions'!$T10)^H$26 -> 1051.01005 | J43: =SUM($D31:J31)*'General Assumptions'!$S10*(1+'General Assumptions'!$T10)^I$26 -> 1061.520151 | K43: =SUM($D31:K31)*'General Assumptions'!$S10*(1+'General Assumptions'!$T10)^J$26 -> 1072.135352 | L43: =SUM($D31:L31)*'General Assumptions'!$S10*(1+'General Assumptions'!$T10)^K$26 -> 1624.285058 | M43: =SUM($D31:M31)*'General Assumptions'!$S10*(1+'General Assumptions'!$T10)^L$26 -> 1640.527909 | N43: =SUM($D31:N31)*'General Assumptions'!$S10*(1+'General Assumptions'!$T10)^M$26 -> 1656.933188 | O43: =SUM($D31:O31)*'General Assumptions'!$S10*(1+'General Assumptions'!$T10)^N$26 -> 1673.50252 | P43: =SUM($D31:P31)*'General Assumptions'!$S10*(1+'General Assumptions'!$T10)^O$26 -> 1690.237545 | Q43: =SUM($D31:Q31)*'General Assumptions'!$S10*(1+'General Assumptions'!$T10)^P$26 -> 2276.186561 | R43: =SUM($D31:R31)*'General Assumptions'!$S10*(1+'General Assumptions'!$T10)^Q$26 -> 2298.948426 | S43: =SUM(D43:R43) -> 19136.29177
B47: Personnel Expense Table
D48: Year
B49: Position | D49: 1 | E49: 2 | F49: 3 | G49: 4 | H49: 5 | I49: 6 | J49: 7 | K49: 8 | L49: 9 | M49: 10 | N49: 11 | O49: 12 | P49: 13 | Q49: 14 | R49: 15 | S49: Total
B50: =IF('General Assumptions'!P41=0,"",'General Assumptions'!P41) -> Chief Executive Officer | D50: =IF('General Assumptions'!$R41=D$49,'General Assumptions'!$T41*(1+'General Assumptions'!$V41),IF(D$49>'General Assumptions'!$R41,'General Assumptions'!V41*(1+'General Assumptions'!$U41),0))*('General Assumptions'!$S41>=D$49) -> 25000 | E50: =IF('General Assumptions'!$R41=E$49,'General Assumptions'!$T41*(1+'General Assumptions'!$V41),IF(E$49>'General Assumptions'!$R41,D50*(1+'General Assumptions'!$U41),0))*('General Assumptions'!$S41>=E$49) -> 25625 | F50: =IF('General Assumptions'!$R41=F$49,'General Assumptions'!$T41*(1+'General Assumptions'!$V41),IF(F$49>'General Assumptions'!$R41,E50*(1+'General Assumptions'!$U41),0))*('General Assumptions'!$S41>=F$49) -> 26265.625 | G50: =IF('General Assumptions'!$R41=G$49,'General Assumptions'!$T41*(1+'General Assumptions'!$V41),IF(G$49>'General Assumptions'!$R41,F50*(1+'General Assumptions'!$U41),0))*('General Assumptions'!$S41>=G$49) -> 26922.26562 | H50: =IF('General Assumptions'!$R41=H$49,'General Assumptions'!$T41*(1+'General Assumptions'!$V41),IF(H$49>'General Assumptions'!$R41,G50*(1+'General Assumptions'!$U41),0))*('General Assumptions'!$S41>=H$49) -> 27595.32227 | I50: =IF('General Assumptions'!$R41=I$49,'General Assumptions'!$T41*(1+'General Assumptions'!$V41),IF(I$49>'General Assumptions'!$R41,H50*(1+'General Assumptions'!$U41),0))*('General Assumptions'!$S41>=I$49) -> 28285.20532 | J50: =IF('General Assumptions'!$R41=J$49,'General Assumptions'!$T41*(1+'General Assumptions'!$V41),IF(J$49>'General Assumptions'!$R41,I50*(1+'General Assumptions'!$U41),0))*('General Assumptions'!$S41>=J$49) -> 28992.33546 | K50: =IF('General Assumptions'!$R41=K$49,'General Assumptions'!$T41*(1+'General Assumptions'!$V41),IF(K$49>'General Assumptions'!$R41,J50*(1+'General Assumptions'!$U41),0))*('General Assumptions'!$S41>=K$49) -> 29717.14384 | L50: =IF('General Assumptions'!$R41=L$49,'General Assumptions'!$T41*(1+'General Assumptions'!$V41),IF(L$49>'General Assumptions'!$R41,K50*(1+'General Assumptions'!$U41),0))*('General Assumptions'!$S41>=L$49) -> 30460.07244 | M50: =IF('General Assumptions'!$R41=M$49,'General Assumptions'!$T41*(1+'General Assumptions'!$V41),IF(M$49>'General Assumptions'!$R41,L50*(1+'General Assumptions'!$U41),0))*('General Assumptions'!$S41>=M$49) -> 31221.57425 | N50: =IF('General Assumptions'!$R41=N$49,'General Assumptions'!$T41*(1+'General Assumptions'!$V41),IF(N$49>'General Assumptions'!$R41,M50*(1+'General Assumptions'!$U41),0))*('General Assumptions'!$S41>=N$49) -> 32002.1136 | O50: =IF('General Assumptions'!$R41=O$49,'General Assumptions'!$T41*(1+'General Assumptions'!$V41),IF(O$49>'General Assumptions'!$R41,N50*(1+'General Assumptions'!$U41),0))*('General Assumptions'!$S41>=O$49) -> 32802.16645 | P50: =IF('General Assumptions'!$R41=P$49,'General Assumptions'!$T41*(1+'General Assumptions'!$V41),IF(P$49>'General Assumptions'!$R41,O50*(1+'General Assumptions'!$U41),0))*('General Assumptions'!$S41>=P$49) -> 33622.22061 | Q50: =IF('General Assumptions'!$R41=Q$49,'General Assumptions'!$T41*(1+'General Assumptions'!$V41),IF(Q$49>'General Assumptions'!$R41,P50*(1+'General Assumptions'!$U41),0))*('General Assumptions'!$S41>=Q$49) -> 34462.77612 | R50: =IF('General Assumptions'!$R41=R$49,'General Assumptions'!$T41*(1+'General Assumptions'!$V41),IF(R$49>'General Assumptions'!$R41,Q50*(1+'General Assumptions'!$U41),0))*('General Assumptions'!$S41>=R$49) -> 35324.34552 | S50: =SUM(D50:R50) -> 448298.1665
B51: =IF('General Assumptions'!P42=0,"",'General Assumptions'!P42) -> Chief Financial Officer | D51: =IF('General Assumptions'!$R42=D$49,'General Assumptions'!$T42*(1+'General Assumptions'!$V42),IF(D$49>'General Assumptions'!$R42,'General Assumptions'!V42*(1+'General Assumptions'!$U42),0))*('General Assumptions'!$S42>=D$49) -> 0 | E51: =IF('General Assumptions'!$R42=E$49,'General Assumptions'!$T42*(1+'General Assumptions'!$V42),IF(E$49>'General Assumptions'!$R42,D51*(1+'General Assumptions'!$U42),0))*('General Assumptions'!$S42>=E$49) -> 22500 | F51: =IF('General Assumptions'!$R42=F$49,'General Assumptions'!$T42*(1+'General Assumptions'!$V42),IF(F$49>'General Assumptions'!$R42,E51*(1+'General Assumptions'!$U42),0))*('General Assumptions'!$S42>=F$49) -> 23062.5 | G51: =IF('General Assumptions'!$R42=G$49,'General Assumptions'!$T42*(1+'General Assumptions'!$V42),IF(G$49>'General Assumptions'!$R42,F51*(1+'General Assumptions'!$U42),0))*('General Assumptions'!$S42>=G$49) -> 23639.0625 | H51: =IF('General Assumptions'!$R42=H$49,'General Assumptions'!$T42*(1+'General Assumptions'!$V42),IF(H$49>'General Assumptions'!$R42,G51*(1+'General Assumptions'!$U42),0))*('General Assumptions'!$S42>=H$49) -> 24230.03906 | I51: =IF('General Assumptions'!$R42=I$49,'General Assumptions'!$T42*(1+'General Assumptions'!$V42),IF(I$49>'General Assumptions'!$R42,H51*(1+'General Assumptions'!$U42),0))*('General Assumptions'!$S42>=I$49) -> 24835.79004 | J51: =IF('General Assumptions'!$R42=J$49,'General Assumptions'!$T42*(1+'General Assumptions'!$V42),IF(J$49>'General Assumptions'!$R42,I51*(1+'General Assumptions'!$U42),0))*('General Assumptions'!$S42>=J$49) -> 25456.68479 | K51: =IF('General Assumptions'!$R42=K$49,'General Assumptions'!$T42*(1+'General Assumptions'!$V42),IF(K$49>'General Assumptions'!$R42,J51*(1+'General Assumptions'!$U42),0))*('General Assumptions'!$S42>=K$49) -> 26093.10191 | L51: =IF('General Assumptions'!$R42=L$49,'General Assumptions'!$T42*(1+'General Assumptions'!$V42),IF(L$49>'General Assumptions'!$R42,K51*(1+'General Assumptions'!$U42),0))*('General Assumptions'!$S42>=L$49) -> 26745.42946 | M51: =IF('General Assumptions'!$R42=M$49,'General Assumptions'!$T42*(1+'General Assumptions'!$V42),IF(M$49>'General Assumptions'!$R42,L51*(1+'General Assumptions'!$U42),0))*('General Assumptions'!$S42>=M$49) -> 27414.06519 | N51: =IF('General Assumptions'!$R42=N$49,'General Assumptions'!$T42*(1+'General Assumptions'!$V42),IF(N$49>'General Assumptions'!$R42,M51*(1+'General Assumptions'!$U42),0))*('General Assumptions'!$S42>=N$49) -> 28099.41682 | O51: =IF('General Assumptions'!$R42=O$49,'General Assumptions'!$T42*(1+'General Assumptions'!$V42),IF(O$49>'General Assumptions'!$R42,N51*(1+'General Assumptions'!$U42),0))*('General Assumptions'!$S42>=O$49) -> 28801.90224 | P51: =IF('General Assumptions'!$R42=P$49,'General Assumptions'!$T42*(1+'General Assumptions'!$V42),IF(P$49>'General Assumptions'!$R42,O51*(1+'General Assumptions'!$U42),0))*('General Assumptions'!$S42>=P$49) -> 29521.9498 | Q51: =IF('General Assumptions'!$R42=Q$49,'General Assumptions'!$T42*(1+'General Assumptions'!$V42),IF(Q$49>'General Assumptions'!$R42,P51*(1+'General Assumptions'!$U42),0))*('General Assumptions'!$S42>=Q$49) -> 30259.99855 | R51: =IF('General Assumptions'!$R42=R$49,'General Assumptions'!$T42*(1+'General Assumptions'!$V42),IF(R$49>'General Assumptions'!$R42,Q51*(1+'General Assumptions'!$U42),0))*('General Assumptions'!$S42>=R$49) -> 31016.49851 | S51: =SUM(D51:R51) -> 371676.4389
B52: =IF('General Assumptions'!P43=0,"",'General Assumptions'!P43) -> Refueling Station Attendant | D52: =IF('General Assumptions'!$R43=D$49,'General Assumptions'!$T43*(1+'General Assumptions'!$V43),IF(D$49>'General Assumptions'!$R43,'General Assumptions'!V43*(1+'General Assumptions'!$U43),0))*('General Assumptions'!$S43>=D$49) -> 15000 | E52: =IF('General Assumptions'!$R43=E$49,'General Assumptions'!$T43*(1+'General Assumptions'!$V43),IF(E$49>'General Assumptions'!$R43,D52*(1+'General Assumptions'!$U43),0))*('General Assumptions'!$S43>=E$49) -> 15150 | F52: =IF('General Assumptions'!$R43=F$49,'General Assumptions'!$T43*(1+'General Assumptions'!$V43),IF(F$49>'General Assumptions'!$R43,E52*(1+'General Assumptions'!$U43),0))*('General Assumptions'!$S43>=F$49) -> 15301.5 | G52: =IF('General Assumptions'!$R43=G$49,'General Assumptions'!$T43*(1+'General Assumptions'!$V43),IF(G$49>'General Assumptions'!$R43,F52*(1+'General Assumptions'!$U43),0))*('General Assumptions'!$S43>=G$49) -> 15454.515 | H52: =IF('General Assumptions'!$R43=H$49,'General Assumptions'!$T43*(1+'General Assumptions'!$V43),IF(H$49>'General Assumptions'!$R43,G52*(1+'General Assumptions'!$U43),0))*('General Assumptions'!$S43>=H$49) -> 15609.06015 | I52: =IF('General Assumptions'!$R43=I$49,'General Assumptions'!$T43*(1+'General Assumptions'!$V43),IF(I$49>'General Assumptions'!$R43,H52*(1+'General Assumptions'!$U43),0))*('General Assumptions'!$S43>=I$49) -> 15765.15075 | J52: =IF('General Assumptions'!$R43=J$49,'General Assumptions'!$T43*(1+'General Assumptions'!$V43),IF(J$49>'General Assumptions'!$R43,I52*(1+'General Assumptions'!$U43),0))*('General Assumptions'!$S43>=J$49) -> 15922.80226 | K52: =IF('General Assumptions'!$R43=K$49,'General Assumptions'!$T43*(1+'General Assumptions'!$V43),IF(K$49>'General Assumptions'!$R43,J52*(1+'General Assumptions'!$U43),0))*('General Assumptions'!$S43>=K$49) -> 16082.03028 | L52: =IF('General Assumptions'!$R43=L$49,'General Assumptions'!$T43*(1+'General Assumptions'!$V43),IF(L$49>'General Assumptions'!$R43,K52*(1+'General Assumptions'!$U43),0))*('General Assumptions'!$S43>=L$49) -> 16242.85058 | M52: =IF('General Assumptions'!$R43=M$49,'General Assumptions'!$T43*(1+'General Assumptions'!$V43),IF(M$49>'General Assumptions'!$R43,L52*(1+'General Assumptions'!$U43),0))*('General Assumptions'!$S43>=M$49) -> 16405.27909 | N52: =IF('General Assumptions'!$R43=N$49,'General Assumptions'!$T43*(1+'General Assumptions'!$V43),IF(N$49>'General Assumptions'!$R43,M52*(1+'General Assumptions'!$U43),0))*('General Assumptions'!$S43>=N$49) -> 16569.33188 | O52: =IF('General Assumptions'!$R43=O$49,'General Assumptions'!$T43*(1+'General Assumptions'!$V43),IF(O$49>'General Assumptions'!$R43,N52*(1+'General Assumptions'!$U43),0))*('General Assumptions'!$S43>=O$49) -> 16735.0252 | P52: =IF('General Assumptions'!$R43=P$49,'General Assumptions'!$T43*(1+'General Assumptions'!$V43),IF(P$49>'General Assumptions'!$R43,O52*(1+'General Assumptions'!$U43),0))*('General Assumptions'!$S43>=P$49) -> 16902.37545 | Q52: =IF('General Assumptions'!$R43=Q$49,'General Assumptions'!$T43*(1+'General Assumptions'!$V43),IF(Q$49>'General Assumptions'!$R43,P52*(1+'General Assumptions'!$U43),0))*('General Assumptions'!$S43>=Q$49) -> 17071.39921 | R52: =IF('General Assumptions'!$R43=R$49,'General Assumptions'!$T43*(1+'General Assumptions'!$V43),IF(R$49>'General Assumptions'!$R43,Q52*(1+'General Assumptions'!$U43),0))*('General Assumptions'!$S43>=R$49) -> 17242.1132 | S52: 241453.4331
B53: =IF('General Assumptions'!P44=0,"",'General Assumptions'!P44) -> Refueling Station Manager | D53: =IF('General Assumptions'!$R44=D$49,'General Assumptions'!$T44*(1+'General Assumptions'!$V44),IF(D$49>'General Assumptions'!$R44,'General Assumptions'!V44*(1+'General Assumptions'!$U44),0))*('General Assumptions'!$S44>=D$49) -> 0 | E53: =IF('General Assumptions'!$R44=E$49,'General Assumptions'!$T44*(1+'General Assumptions'!$V44),IF(E$49>'General Assumptions'!$R44,D53*(1+'General Assumptions'!$U44),0))*('General Assumptions'!$S44>=E$49) -> 0 | F53: =IF('General Assumptions'!$R44=F$49,'General Assumptions'!$T44*(1+'General Assumptions'!$V44),IF(F$49>'General Assumptions'!$R44,E53*(1+'General Assumptions'!$U44),0))*('General Assumptions'!$S44>=F$49) -> 18750 | G53: =IF('General Assumptions'!$R44=G$49,'General Assumptions'!$T44*(1+'General Assumptions'!$V44),IF(G$49>'General Assumptions'!$R44,F53*(1+'General Assumptions'!$U44),0))*('General Assumptions'!$S44>=G$49) -> 18937.5 | H53: =IF('General Assumptions'!$R44=H$49,'General Assumptions'!$T44*(1+'General Assumptions'!$V44),IF(H$49>'General Assumptions'!$R44,G53*(1+'General Assumptions'!$U44),0))*('General Assumptions'!$S44>=H$49) -> 19126.875 | I53: =IF('General Assumptions'!$R44=I$49,'General Assumptions'!$T44*(1+'General Assumptions'!$V44),IF(I$49>'General Assumptions'!$R44,H53*(1+'General Assumptions'!$U44),0))*('General Assumptions'!$S44>=I$49) -> 19318.14375 | J53: =IF('General Assumptions'!$R44=J$49,'General Assumptions'!$T44*(1+'General Assumptions'!$V44),IF(J$49>'General Assumptions'!$R44,I53*(1+'General Assumptions'!$U44),0))*('General Assumptions'!$S44>=J$49) -> 19511.32519 | K53: =IF('General Assumptions'!$R44=K$49,'General Assumptions'!$T44*(1+'General Assumptions'!$V44),IF(K$49>'General Assumptions'!$R44,J53*(1+'General Assumptions'!$U44),0))*('General Assumptions'!$S44>=K$49) -> 19706.43844 | L53: =IF('General Assumptions'!$R44=L$49,'General Assumptions'!$T44*(1+'General Assumptions'!$V44),IF(L$49>'General Assumptions'!$R44,K53*(1+'General Assumptions'!$U44),0))*('General Assumptions'!$S44>=L$49) -> 19903.50282 | M53: =IF('General Assumptions'!$R44=M$49,'General Assumptions'!$T44*(1+'General Assumptions'!$V44),IF(M$49>'General Assumptions'!$R44,L53*(1+'General Assumptions'!$U44),0))*('General Assumptions'!$S44>=M$49) -> 20102.53785 | N53: =IF('General Assumptions'!$R44=N$49,'General Assumptions'!$T44*(1+'General Assumptions'!$V44),IF(N$49>'General Assumptions'!$R44,M53*(1+'General Assumptions'!$U44),0))*('General Assumptions'!$S44>=N$49) -> 20303.56323 | O53: =IF('General Assumptions'!$R44=O$49,'General Assumptions'!$T44*(1+'General Assumptions'!$V44),IF(O$49>'General Assumptions'!$R44,N53*(1+'General Assumptions'!$U44),0))*('General Assumptions'!$S44>=O$49) -> 20506.59886 | P53: =IF('General Assumptions'!$R44=P$49,'General Assumptions'!$T44*(1+'General Assumptions'!$V44),IF(P$49>'General Assumptions'!$R44,O53*(1+'General Assumptions'!$U44),0))*('General Assumptions'!$S44>=P$49) -> 20711.66485 | Q53: =IF('General Assumptions'!$R44=Q$49,'General Assumptions'!$T44*(1+'General Assumptions'!$V44),IF(Q$49>'General Assumptions'!$R44,P53*(1+'General Assumptions'!$U44),0))*('General Assumptions'!$S44>=Q$49) -> 20918.7815 | R53: =IF('General Assumptions'!$R44=R$49,'General Assumptions'!$T44*(1+'General Assumptions'!$V44),IF(R$49>'General Assumptions'!$R44,Q53*(1+'General Assumptions'!$U44),0))*('General Assumptions'!$S44>=R$49) -> 21127.96931 | S53: 258924.9008
B54: =IF('General Assumptions'!P45=0,"",'General Assumptions'!P45) -> 
B55: =IF('General Assumptions'!P46=0,"",'General Assumptions'!P46) ->  | D55: =IF('General Assumptions'!$R46=D$49,'General Assumptions'!$T46*(1+'General Assumptions'!$V46),IF(D$49>'General Assumptions'!$R46,'General Assumptions'!V46*(1+'General Assumptions'!$U46),0))*('General Assumptions'!$S46>=D$49) -> 0 | E55: =IF('General Assumptions'!$R46=E$49,'General Assumptions'!$T46*(1+'General Assumptions'!$V46),IF(E$49>'General Assumptions'!$R46,D55*(1+'General Assumptions'!$U46),0))*('General Assumptions'!$S46>=E$49) -> 0 | F55: =IF('General Assumptions'!$R46=F$49,'General Assumptions'!$T46*(1+'General Assumptions'!$V46),IF(F$49>'General Assumptions'!$R46,E55*(1+'General Assumptions'!$U46),0))*('General Assumptions'!$S46>=F$49) -> 0 | G55: =IF('General Assumptions'!$R46=G$49,'General Assumptions'!$T46*(1+'General Assumptions'!$V46),IF(G$49>'General Assumptions'!$R46,F55*(1+'General Assumptions'!$U46),0))*('General Assumptions'!$S46>=G$49) -> 0 | H55: =IF('General Assumptions'!$R46=H$49,'General Assumptions'!$T46*(1+'General Assumptions'!$V46),IF(H$49>'General Assumptions'!$R46,G55*(1+'General Assumptions'!$U46),0))*('General Assumptions'!$S46>=H$49) -> 0 | I55: =IF('General Assumptions'!$R46=I$49,'General Assumptions'!$T46*(1+'General Assumptions'!$V46),IF(I$49>'General Assumptions'!$R46,H55*(1+'General Assumptions'!$U46),0))*('General Assumptions'!$S46>=I$49) -> 0 | J55: =IF('General Assumptions'!$R46=J$49,'General Assumptions'!$T46*(1+'General Assumptions'!$V46),IF(J$49>'General Assumptions'!$R46,I55*(1+'General Assumptions'!$U46),0))*('General Assumptions'!$S46>=J$49) -> 0 | K55: =IF('General Assumptions'!$R46=K$49,'General Assumptions'!$T46*(1+'General Assumptions'!$V46),IF(K$49>'General Assumptions'!$R46,J55*(1+'General Assumptions'!$U46),0))*('General Assumptions'!$S46>=K$49) -> 0 | L55: =IF('General Assumptions'!$R46=L$49,'General Assumptions'!$T46*(1+'General Assumptions'!$V46),IF(L$49>'General Assumptions'!$R46,K55*(1+'General Assumptions'!$U46),0))*('General Assumptions'!$S46>=L$49) -> 0 | M55: =IF('General Assumptions'!$R46=M$49,'General Assumptions'!$T46*(1+'General Assumptions'!$V46),IF(M$49>'General Assumptions'!$R46,L55*(1+'General Assumptions'!$U46),0))*('General Assumptions'!$S46>=M$49) -> 0 | N55: =IF('General Assumptions'!$R46=N$49,'General Assumptions'!$T46*(1+'General Assumptions'!$V46),IF(N$49>'General Assumptions'!$R46,M55*(1+'General Assumptions'!$U46),0))*('General Assumptions'!$S46>=N$49) -> 0 | O55: =IF('General Assumptions'!$R46=O$49,'General Assumptions'!$T46*(1+'General Assumptions'!$V46),IF(O$49>'General Assumptions'!$R46,N55*(1+'General Assumptions'!$U46),0))*('General Assumptions'!$S46>=O$49) -> 0 | P55: =IF('General Assumptions'!$R46=P$49,'General Assumptions'!$T46*(1+'General Assumptions'!$V46),IF(P$49>'General Assumptions'!$R46,O55*(1+'General Assumptions'!$U46),0))*('General Assumptions'!$S46>=P$49) -> 0 | Q55: =IF('General Assumptions'!$R46=Q$49,'General Assumptions'!$T46*(1+'General Assumptions'!$V46),IF(Q$49>'General Assumptions'!$R46,P55*(1+'General Assumptions'!$U46),0))*('General Assumptions'!$S46>=Q$49) -> 0 | R55: =IF('General Assumptions'!$R46=R$49,'General Assumptions'!$T46*(1+'General Assumptions'!$V46),IF(R$49>'General Assumptions'!$R46,Q55*(1+'General Assumptions'!$U46),0))*('General Assumptions'!$S46>=R$49) -> 0 | S55: 0
B56: =IF('General Assumptions'!P47=0,"",'General Assumptions'!P47) ->  | D56: =IF('General Assumptions'!$R47=D$49,'General Assumptions'!$T47*(1+'General Assumptions'!$V47),IF(D$49>'General Assumptions'!$R47,'General Assumptions'!V47*(1+'General Assumptions'!$U47),0))*('General Assumptions'!$S47>=D$49) -> 0 | E56: =IF('General Assumptions'!$R47=E$49,'General Assumptions'!$T47*(1+'General Assumptions'!$V47),IF(E$49>'General Assumptions'!$R47,D56*(1+'General Assumptions'!$U47),0))*('General Assumptions'!$S47>=E$49) -> 0 | F56: =IF('General Assumptions'!$R47=F$49,'General Assumptions'!$T47*(1+'General Assumptions'!$V47),IF(F$49>'General Assumptions'!$R47,E56*(1+'General Assumptions'!$U47),0))*('General Assumptions'!$S47>=F$49) -> 0 | G56: =IF('General Assumptions'!$R47=G$49,'General Assumptions'!$T47*(1+'General Assumptions'!$V47),IF(G$49>'General Assumptions'!$R47,F56*(1+'General Assumptions'!$U47),0))*('General Assumptions'!$S47>=G$49) -> 0 | H56: =IF('General Assumptions'!$R47=H$49,'General Assumptions'!$T47*(1+'General Assumptions'!$V47),IF(H$49>'General Assumptions'!$R47,G56*(1+'General Assumptions'!$U47),0))*('General Assumptions'!$S47>=H$49) -> 0 | I56: =IF('General Assumptions'!$R47=I$49,'General Assumptions'!$T47*(1+'General Assumptions'!$V47),IF(I$49>'General Assumptions'!$R47,H56*(1+'General Assumptions'!$U47),0))*('General Assumptions'!$S47>=I$49) -> 0 | J56: =IF('General Assumptions'!$R47=J$49,'General Assumptions'!$T47*(1+'General Assumptions'!$V47),IF(J$49>'General Assumptions'!$R47,I56*(1+'General Assumptions'!$U47),0))*('General Assumptions'!$S47>=J$49) -> 0 | K56: =IF('General Assumptions'!$R47=K$49,'General Assumptions'!$T47*(1+'General Assumptions'!$V47),IF(K$49>'General Assumptions'!$R47,J56*(1+'General Assumptions'!$U47),0))*('General Assumptions'!$S47>=K$49) -> 0 | L56: =IF('General Assumptions'!$R47=L$49,'General Assumptions'!$T47*(1+'General Assumptions'!$V47),IF(L$49>'General Assumptions'!$R47,K56*(1+'General Assumptions'!$U47),0))*('General Assumptions'!$S47>=L$49) -> 0 | M56: =IF('General Assumptions'!$R47=M$49,'General Assumptions'!$T47*(1+'General Assumptions'!$V47),IF(M$49>'General Assumptions'!$R47,L56*(1+'General Assumptions'!$U47),0))*('General Assumptions'!$S47>=M$49) -> 0 | N56: =IF('General Assumptions'!$R47=N$49,'General Assumptions'!$T47*(1+'General Assumptions'!$V47),IF(N$49>'General Assumptions'!$R47,M56*(1+'General Assumptions'!$U47),0))*('General Assumptions'!$S47>=N$49) -> 0 | O56: =IF('General Assumptions'!$R47=O$49,'General Assumptions'!$T47*(1+'General Assumptions'!$V47),IF(O$49>'General Assumptions'!$R47,N56*(1+'General Assumptions'!$U47),0))*('General Assumptions'!$S47>=O$49) -> 0 | P56: =IF('General Assumptions'!$R47=P$49,'General Assumptions'!$T47*(1+'General Assumptions'!$V47),IF(P$49>'General Assumptions'!$R47,O56*(1+'General Assumptions'!$U47),0))*('General Assumptions'!$S47>=P$49) -> 0 | Q56: =IF('General Assumptions'!$R47=Q$49,'General Assumptions'!$T47*(1+'General Assumptions'!$V47),IF(Q$49>'General Assumptions'!$R47,P56*(1+'General Assumptions'!$U47),0))*('General Assumptions'!$S47>=Q$49) -> 0 | R56: =IF('General Assumptions'!$R47=R$49,'General Assumptions'!$T47*(1+'General Assumptions'!$V47),IF(R$49>'General Assumptions'!$R47,Q56*(1+'General Assumptions'!$U47),0))*('General Assumptions'!$S47>=R$49) -> 0 | S56: 0
B57: =IF('General Assumptions'!P48=0,"",'General Assumptions'!P48) ->  | D57: =IF('General Assumptions'!$R48=D$49,'General Assumptions'!$T48*(1+'General Assumptions'!$V48),IF(D$49>'General Assumptions'!$R48,'General Assumptions'!V48*(1+'General Assumptions'!$U48),0))*('General Assumptions'!$S48>=D$49) -> 0 | E57: =IF('General Assumptions'!$R48=E$49,'General Assumptions'!$T48*(1+'General Assumptions'!$V48),IF(E$49>'General Assumptions'!$R48,D57*(1+'General Assumptions'!$U48),0))*('General Assumptions'!$S48>=E$49) -> 0 | F57: =IF('General Assumptions'!$R48=F$49,'General Assumptions'!$T48*(1+'General Assumptions'!$V48),IF(F$49>'General Assumptions'!$R48,E57*(1+'General Assumptions'!$U48),0))*('General Assumptions'!$S48>=F$49) -> 0 | G57: =IF('General Assumptions'!$R48=G$49,'General Assumptions'!$T48*(1+'General Assumptions'!$V48),IF(G$49>'General Assumptions'!$R48,F57*(1+'General Assumptions'!$U48),0))*('General Assumptions'!$S48>=G$49) -> 0 | H57: =IF('General Assumptions'!$R48=H$49,'General Assumptions'!$T48*(1+'General Assumptions'!$V48),IF(H$49>'General Assumptions'!$R48,G57*(1+'General Assumptions'!$U48),0))*('General Assumptions'!$S48>=H$49) -> 0 | I57: =IF('General Assumptions'!$R48=I$49,'General Assumptions'!$T48*(1+'General Assumptions'!$V48),IF(I$49>'General Assumptions'!$R48,H57*(1+'General Assumptions'!$U48),0))*('General Assumptions'!$S48>=I$49) -> 0 | J57: =IF('General Assumptions'!$R48=J$49,'General Assumptions'!$T48*(1+'General Assumptions'!$V48),IF(J$49>'General Assumptions'!$R48,I57*(1+'General Assumptions'!$U48),0))*('General Assumptions'!$S48>=J$49) -> 0 | K57: =IF('General Assumptions'!$R48=K$49,'General Assumptions'!$T48*(1+'General Assumptions'!$V48),IF(K$49>'General Assumptions'!$R48,J57*(1+'General Assumptions'!$U48),0))*('General Assumptions'!$S48>=K$49) -> 0 | L57: =IF('General Assumptions'!$R48=L$49,'General Assumptions'!$T48*(1+'General Assumptions'!$V48),IF(L$49>'General Assumptions'!$R48,K57*(1+'General Assumptions'!$U48),0))*('General Assumptions'!$S48>=L$49) -> 0 | M57: =IF('General Assumptions'!$R48=M$49,'General Assumptions'!$T48*(1+'General Assumptions'!$V48),IF(M$49>'General Assumptions'!$R48,L57*(1+'General Assumptions'!$U48),0))*('General Assumptions'!$S48>=M$49) -> 0 | N57: =IF('General Assumptions'!$R48=N$49,'General Assumptions'!$T48*(1+'General Assumptions'!$V48),IF(N$49>'General Assumptions'!$R48,M57*(1+'General Assumptions'!$U48),0))*('General Assumptions'!$S48>=N$49) -> 0 | O57: =IF('General Assumptions'!$R48=O$49,'General Assumptions'!$T48*(1+'General Assumptions'!$V48),IF(O$49>'General Assumptions'!$R48,N57*(1+'General Assumptions'!$U48),0))*('General Assumptions'!$S48>=O$49) -> 0 | P57: =IF('General Assumptions'!$R48=P$49,'General Assumptions'!$T48*(1+'General Assumptions'!$V48),IF(P$49>'General Assumptions'!$R48,O57*(1+'General Assumptions'!$U48),0))*('General Assumptions'!$S48>=P$49) -> 0 | Q57: =IF('General Assumptions'!$R48=Q$49,'General Assumptions'!$T48*(1+'General Assumptions'!$V48),IF(Q$49>'General Assumptions'!$R48,P57*(1+'General Assumptions'!$U48),0))*('General Assumptions'!$S48>=Q$49) -> 0 | R57: =IF('General Assumptions'!$R48=R$49,'General Assumptions'!$T48*(1+'General Assumptions'!$V48),IF(R$49>'General Assumptions'!$R48,Q57*(1+'General Assumptions'!$U48),0))*('General Assumptions'!$S48>=R$49) -> 0 | S57: 0
B58: =IF('General Assumptions'!P49=0,"",'General Assumptions'!P49) ->  | D58: =IF('General Assumptions'!$R49=D$49,'General Assumptions'!$T49*(1+'General Assumptions'!$V49),IF(D$49>'General Assumptions'!$R49,'General Assumptions'!V49*(1+'General Assumptions'!$U49),0))*('General Assumptions'!$S49>=D$49) -> 0 | E58: =IF('General Assumptions'!$R49=E$49,'General Assumptions'!$T49*(1+'General Assumptions'!$V49),IF(E$49>'General Assumptions'!$R49,D58*(1+'General Assumptions'!$U49),0))*('General Assumptions'!$S49>=E$49) -> 0 | F58: =IF('General Assumptions'!$R49=F$49,'General Assumptions'!$T49*(1+'General Assumptions'!$V49),IF(F$49>'General Assumptions'!$R49,E58*(1+'General Assumptions'!$U49),0))*('General Assumptions'!$S49>=F$49) -> 0 | G58: =IF('General Assumptions'!$R49=G$49,'General Assumptions'!$T49*(1+'General Assumptions'!$V49),IF(G$49>'General Assumptions'!$R49,F58*(1+'General Assumptions'!$U49),0))*('General Assumptions'!$S49>=G$49) -> 0 | H58: =IF('General Assumptions'!$R49=H$49,'General Assumptions'!$T49*(1+'General Assumptions'!$V49),IF(H$49>'General Assumptions'!$R49,G58*(1+'General Assumptions'!$U49),0))*('General Assumptions'!$S49>=H$49) -> 0 | I58: =IF('General Assumptions'!$R49=I$49,'General Assumptions'!$T49*(1+'General Assumptions'!$V49),IF(I$49>'General Assumptions'!$R49,H58*(1+'General Assumptions'!$U49),0))*('General Assumptions'!$S49>=I$49) -> 0 | J58: =IF('General Assumptions'!$R49=J$49,'General Assumptions'!$T49*(1+'General Assumptions'!$V49),IF(J$49>'General Assumptions'!$R49,I58*(1+'General Assumptions'!$U49),0))*('General Assumptions'!$S49>=J$49) -> 0 | K58: =IF('General Assumptions'!$R49=K$49,'General Assumptions'!$T49*(1+'General Assumptions'!$V49),IF(K$49>'General Assumptions'!$R49,J58*(1+'General Assumptions'!$U49),0))*('General Assumptions'!$S49>=K$49) -> 0 | L58: =IF('General Assumptions'!$R49=L$49,'General Assumptions'!$T49*(1+'General Assumptions'!$V49),IF(L$49>'General Assumptions'!$R49,K58*(1+'General Assumptions'!$U49),0))*('General Assumptions'!$S49>=L$49) -> 0 | M58: =IF('General Assumptions'!$R49=M$49,'General Assumptions'!$T49*(1+'General Assumptions'!$V49),IF(M$49>'General Assumptions'!$R49,L58*(1+'General Assumptions'!$U49),0))*('General Assumptions'!$S49>=M$49) -> 0 | N58: =IF('General Assumptions'!$R49=N$49,'General Assumptions'!$T49*(1+'General Assumptions'!$V49),IF(N$49>'General Assumptions'!$R49,M58*(1+'General Assumptions'!$U49),0))*('General Assumptions'!$S49>=N$49) -> 0 | O58: =IF('General Assumptions'!$R49=O$49,'General Assumptions'!$T49*(1+'General Assumptions'!$V49),IF(O$49>'General Assumptions'!$R49,N58*(1+'General Assumptions'!$U49),0))*('General Assumptions'!$S49>=O$49) -> 0 | P58: =IF('General Assumptions'!$R49=P$49,'General Assumptions'!$T49*(1+'General Assumptions'!$V49),IF(P$49>'General Assumptions'!$R49,O58*(1+'General Assumptions'!$U49),0))*('General Assumptions'!$S49>=P$49) -> 0 | Q58: =IF('General Assumptions'!$R49=Q$49,'General Assumptions'!$T49*(1+'General Assumptions'!$V49),IF(Q$49>'General Assumptions'!$R49,P58*(1+'General Assumptions'!$U49),0))*('General Assumptions'!$S49>=Q$49) -> 0 | R58: =IF('General Assumptions'!$R49=R$49,'General Assumptions'!$T49*(1+'General Assumptions'!$V49),IF(R$49>'General Assumptions'!$R49,Q58*(1+'General Assumptions'!$U49),0))*('General Assumptions'!$S49>=R$49) -> 0 | S58: 0
B59: =IF('General Assumptions'!P50=0,"",'General Assumptions'!P50) ->  | D59: =IF('General Assumptions'!$R50=D$49,'General Assumptions'!$T50*(1+'General Assumptions'!$V50),IF(D$49>'General Assumptions'!$R50,'General Assumptions'!V50*(1+'General Assumptions'!$U50),0))*('General Assumptions'!$S50>=D$49) -> 0 | E59: =IF('General Assumptions'!$R50=E$49,'General Assumptions'!$T50*(1+'General Assumptions'!$V50),IF(E$49>'General Assumptions'!$R50,D59*(1+'General Assumptions'!$U50),0))*('General Assumptions'!$S50>=E$49) -> 0 | F59: =IF('General Assumptions'!$R50=F$49,'General Assumptions'!$T50*(1+'General Assumptions'!$V50),IF(F$49>'General Assumptions'!$R50,E59*(1+'General Assumptions'!$U50),0))*('General Assumptions'!$S50>=F$49) -> 0 | G59: =IF('General Assumptions'!$R50=G$49,'General Assumptions'!$T50*(1+'General Assumptions'!$V50),IF(G$49>'General Assumptions'!$R50,F59*(1+'General Assumptions'!$U50),0))*('General Assumptions'!$S50>=G$49) -> 0 | H59: =IF('General Assumptions'!$R50=H$49,'General Assumptions'!$T50*(1+'General Assumptions'!$V50),IF(H$49>'General Assumptions'!$R50,G59*(1+'General Assumptions'!$U50),0))*('General Assumptions'!$S50>=H$49) -> 0 | I59: =IF('General Assumptions'!$R50=I$49,'General Assumptions'!$T50*(1+'General Assumptions'!$V50),IF(I$49>'General Assumptions'!$R50,H59*(1+'General Assumptions'!$U50),0))*('General Assumptions'!$S50>=I$49) -> 0 | J59: =IF('General Assumptions'!$R50=J$49,'General Assumptions'!$T50*(1+'General Assumptions'!$V50),IF(J$49>'General Assumptions'!$R50,I59*(1+'General Assumptions'!$U50),0))*('General Assumptions'!$S50>=J$49) -> 0 | K59: =IF('General Assumptions'!$R50=K$49,'General Assumptions'!$T50*(1+'General Assumptions'!$V50),IF(K$49>'General Assumptions'!$R50,J59*(1+'General Assumptions'!$U50),0))*('General Assumptions'!$S50>=K$49) -> 0 | L59: =IF('General Assumptions'!$R50=L$49,'General Assumptions'!$T50*(1+'General Assumptions'!$V50),IF(L$49>'General Assumptions'!$R50,K59*(1+'General Assumptions'!$U50),0))*('General Assumptions'!$S50>=L$49) -> 0 | M59: =IF('General Assumptions'!$R50=M$49,'General Assumptions'!$T50*(1+'General Assumptions'!$V50),IF(M$49>'General Assumptions'!$R50,L59*(1+'General Assumptions'!$U50),0))*('General Assumptions'!$S50>=M$49) -> 0 | N59: =IF('General Assumptions'!$R50=N$49,'General Assumptions'!$T50*(1+'General Assumptions'!$V50),IF(N$49>'General Assumptions'!$R50,M59*(1+'General Assumptions'!$U50),0))*('General Assumptions'!$S50>=N$49) -> 0 | O59: =IF('General Assumptions'!$R50=O$49,'General Assumptions'!$T50*(1+'General Assumptions'!$V50),IF(O$49>'General Assumptions'!$R50,N59*(1+'General Assumptions'!$U50),0))*('General Assumptions'!$S50>=O$49) -> 0 | P59: =IF('General Assumptions'!$R50=P$49,'General Assumptions'!$T50*(1+'General Assumptions'!$V50),IF(P$49>'General Assumptions'!$R50,O59*(1+'General Assumptions'!$U50),0))*('General Assumptions'!$S50>=P$49) -> 0 | Q59: =IF('General Assumptions'!$R50=Q$49,'General Assumptions'!$T50*(1+'General Assumptions'!$V50),IF(Q$49>'General Assumptions'!$R50,P59*(1+'General Assumptions'!$U50),0))*('General Assumptions'!$S50>=Q$49) -> 0 | R59: =IF('General Assumptions'!$R50=R$49,'General Assumptions'!$T50*(1+'General Assumptions'!$V50),IF(R$49>'General Assumptions'!$R50,Q59*(1+'General Assumptions'!$U50),0))*('General Assumptions'!$S50>=R$49) -> 0 | S59: 0
B60: =IF('General Assumptions'!P51=0,"",'General Assumptions'!P51) ->  | D60: =IF('General Assumptions'!$R51=D$49,'General Assumptions'!$T51*(1+'General Assumptions'!$V51),IF(D$49>'General Assumptions'!$R51,'General Assumptions'!V51*(1+'General Assumptions'!$U51),0))*('General Assumptions'!$S51>=D$49) -> 0 | E60: =IF('General Assumptions'!$R51=E$49,'General Assumptions'!$T51*(1+'General Assumptions'!$V51),IF(E$49>'General Assumptions'!$R51,D60*(1+'General Assumptions'!$U51),0))*('General Assumptions'!$S51>=E$49) -> 0 | F60: =IF('General Assumptions'!$R51=F$49,'General Assumptions'!$T51*(1+'General Assumptions'!$V51),IF(F$49>'General Assumptions'!$R51,E60*(1+'General Assumptions'!$U51),0))*('General Assumptions'!$S51>=F$49) -> 0 | G60: =IF('General Assumptions'!$R51=G$49,'General Assumptions'!$T51*(1+'General Assumptions'!$V51),IF(G$49>'General Assumptions'!$R51,F60*(1+'General Assumptions'!$U51),0))*('General Assumptions'!$S51>=G$49) -> 0 | H60: =IF('General Assumptions'!$R51=H$49,'General Assumptions'!$T51*(1+'General Assumptions'!$V51),IF(H$49>'General Assumptions'!$R51,G60*(1+'General Assumptions'!$U51),0))*('General Assumptions'!$S51>=H$49) -> 0 | I60: =IF('General Assumptions'!$R51=I$49,'General Assumptions'!$T51*(1+'General Assumptions'!$V51),IF(I$49>'General Assumptions'!$R51,H60*(1+'General Assumptions'!$U51),0))*('General Assumptions'!$S51>=I$49) -> 0 | J60: =IF('General Assumptions'!$R51=J$49,'General Assumptions'!$T51*(1+'General Assumptions'!$V51),IF(J$49>'General Assumptions'!$R51,I60*(1+'General Assumptions'!$U51),0))*('General Assumptions'!$S51>=J$49) -> 0 | K60: =IF('General Assumptions'!$R51=K$49,'General Assumptions'!$T51*(1+'General Assumptions'!$V51),IF(K$49>'General Assumptions'!$R51,J60*(1+'General Assumptions'!$U51),0))*('General Assumptions'!$S51>=K$49) -> 0 | L60: =IF('General Assumptions'!$R51=L$49,'General Assumptions'!$T51*(1+'General Assumptions'!$V51),IF(L$49>'General Assumptions'!$R51,K60*(1+'General Assumptions'!$U51),0))*('General Assumptions'!$S51>=L$49) -> 0 | M60: =IF('General Assumptions'!$R51=M$49,'General Assumptions'!$T51*(1+'General Assumptions'!$V51),IF(M$49>'General Assumptions'!$R51,L60*(1+'General Assumptions'!$U51),0))*('General Assumptions'!$S51>=M$49) -> 0 | N60: =IF('General Assumptions'!$R51=N$49,'General Assumptions'!$T51*(1+'General Assumptions'!$V51),IF(N$49>'General Assumptions'!$R51,M60*(1+'General Assumptions'!$U51),0))*('General Assumptions'!$S51>=N$49) -> 0 | O60: =IF('General Assumptions'!$R51=O$49,'General Assumptions'!$T51*(1+'General Assumptions'!$V51),IF(O$49>'General Assumptions'!$R51,N60*(1+'General Assumptions'!$U51),0))*('General Assumptions'!$S51>=O$49) -> 0 | P60: =IF('General Assumptions'!$R51=P$49,'General Assumptions'!$T51*(1+'General Assumptions'!$V51),IF(P$49>'General Assumptions'!$R51,O60*(1+'General Assumptions'!$U51),0))*('General Assumptions'!$S51>=P$49) -> 0 | Q60: =IF('General Assumptions'!$R51=Q$49,'General Assumptions'!$T51*(1+'General Assumptions'!$V51),IF(Q$49>'General Assumptions'!$R51,P60*(1+'General Assumptions'!$U51),0))*('General Assumptions'!$S51>=Q$49) -> 0 | R60: =IF('General Assumptions'!$R51=R$49,'General Assumptions'!$T51*(1+'General Assumptions'!$V51),IF(R$49>'General Assumptions'!$R51,Q60*(1+'General Assumptions'!$U51),0))*('General Assumptions'!$S51>=R$49) -> 0 | S60: 0
B61: =IF('General Assumptions'!P52=0,"",'General Assumptions'!P52) ->  | D61: =IF('General Assumptions'!$R52=D$49,'General Assumptions'!$T52*(1+'General Assumptions'!$V52),IF(D$49>'General Assumptions'!$R52,'General Assumptions'!V52*(1+'General Assumptions'!$U52),0))*('General Assumptions'!$S52>=D$49) -> 0 | E61: =IF('General Assumptions'!$R52=E$49,'General Assumptions'!$T52*(1+'General Assumptions'!$V52),IF(E$49>'General Assumptions'!$R52,D61*(1+'General Assumptions'!$U52),0))*('General Assumptions'!$S52>=E$49) -> 0 | F61: =IF('General Assumptions'!$R52=F$49,'General Assumptions'!$T52*(1+'General Assumptions'!$V52),IF(F$49>'General Assumptions'!$R52,E61*(1+'General Assumptions'!$U52),0))*('General Assumptions'!$S52>=F$49) -> 0 | G61: =IF('General Assumptions'!$R52=G$49,'General Assumptions'!$T52*(1+'General Assumptions'!$V52),IF(G$49>'General Assumptions'!$R52,F61*(1+'General Assumptions'!$U52),0))*('General Assumptions'!$S52>=G$49) -> 0 | H61: =IF('General Assumptions'!$R52=H$49,'General Assumptions'!$T52*(1+'General Assumptions'!$V52),IF(H$49>'General Assumptions'!$R52,G61*(1+'General Assumptions'!$U52),0))*('General Assumptions'!$S52>=H$49) -> 0 | I61: =IF('General Assumptions'!$R52=I$49,'General Assumptions'!$T52*(1+'General Assumptions'!$V52),IF(I$49>'General Assumptions'!$R52,H61*(1+'General Assumptions'!$U52),0))*('General Assumptions'!$S52>=I$49) -> 0 | J61: =IF('General Assumptions'!$R52=J$49,'General Assumptions'!$T52*(1+'General Assumptions'!$V52),IF(J$49>'General Assumptions'!$R52,I61*(1+'General Assumptions'!$U52),0))*('General Assumptions'!$S52>=J$49) -> 0 | K61: =IF('General Assumptions'!$R52=K$49,'General Assumptions'!$T52*(1+'General Assumptions'!$V52),IF(K$49>'General Assumptions'!$R52,J61*(1+'General Assumptions'!$U52),0))*('General Assumptions'!$S52>=K$49) -> 0 | L61: =IF('General Assumptions'!$R52=L$49,'General Assumptions'!$T52*(1+'General Assumptions'!$V52),IF(L$49>'General Assumptions'!$R52,K61*(1+'General Assumptions'!$U52),0))*('General Assumptions'!$S52>=L$49) -> 0 | M61: =IF('General Assumptions'!$R52=M$49,'General Assumptions'!$T52*(1+'General Assumptions'!$V52),IF(M$49>'General Assumptions'!$R52,L61*(1+'General Assumptions'!$U52),0))*('General Assumptions'!$S52>=M$49) -> 0 | N61: =IF('General Assumptions'!$R52=N$49,'General Assumptions'!$T52*(1+'General Assumptions'!$V52),IF(N$49>'General Assumptions'!$R52,M61*(1+'General Assumptions'!$U52),0))*('General Assumptions'!$S52>=N$49) -> 0 | O61: =IF('General Assumptions'!$R52=O$49,'General Assumptions'!$T52*(1+'General Assumptions'!$V52),IF(O$49>'General Assumptions'!$R52,N61*(1+'General Assumptions'!$U52),0))*('General Assumptions'!$S52>=O$49) -> 0 | P61: =IF('General Assumptions'!$R52=P$49,'General Assumptions'!$T52*(1+'General Assumptions'!$V52),IF(P$49>'General Assumptions'!$R52,O61*(1+'General Assumptions'!$U52),0))*('General Assumptions'!$S52>=P$49) -> 0 | Q61: =IF('General Assumptions'!$R52=Q$49,'General Assumptions'!$T52*(1+'General Assumptions'!$V52),IF(Q$49>'General Assumptions'!$R52,P61*(1+'General Assumptions'!$U52),0))*('General Assumptions'!$S52>=Q$49) -> 0 | R61: =IF('General Assumptions'!$R52=R$49,'General Assumptions'!$T52*(1+'General Assumptions'!$V52),IF(R$49>'General Assumptions'!$R52,Q61*(1+'General Assumptions'!$U52),0))*('General Assumptions'!$S52>=R$49) -> 0 | S61: 0
B62: =IF('General Assumptions'!P53=0,"",'General Assumptions'!P53) ->  | D62: =IF('General Assumptions'!$R53=D$49,'General Assumptions'!$T53*(1+'General Assumptions'!$V53),IF(D$49>'General Assumptions'!$R53,'General Assumptions'!V53*(1+'General Assumptions'!$U53),0))*('General Assumptions'!$S53>=D$49) -> 0 | E62: =IF('General Assumptions'!$R53=E$49,'General Assumptions'!$T53*(1+'General Assumptions'!$V53),IF(E$49>'General Assumptions'!$R53,D62*(1+'General Assumptions'!$U53),0))*('General Assumptions'!$S53>=E$49) -> 0 | F62: =IF('General Assumptions'!$R53=F$49,'General Assumptions'!$T53*(1+'General Assumptions'!$V53),IF(F$49>'General Assumptions'!$R53,E62*(1+'General Assumptions'!$U53),0))*('General Assumptions'!$S53>=F$49) -> 0 | G62: =IF('General Assumptions'!$R53=G$49,'General Assumptions'!$T53*(1+'General Assumptions'!$V53),IF(G$49>'General Assumptions'!$R53,F62*(1+'General Assumptions'!$U53),0))*('General Assumptions'!$S53>=G$49) -> 0 | H62: =IF('General Assumptions'!$R53=H$49,'General Assumptions'!$T53*(1+'General Assumptions'!$V53),IF(H$49>'General Assumptions'!$R53,G62*(1+'General Assumptions'!$U53),0))*('General Assumptions'!$S53>=H$49) -> 0 | I62: =IF('General Assumptions'!$R53=I$49,'General Assumptions'!$T53*(1+'General Assumptions'!$V53),IF(I$49>'General Assumptions'!$R53,H62*(1+'General Assumptions'!$U53),0))*('General Assumptions'!$S53>=I$49) -> 0 | J62: =IF('General Assumptions'!$R53=J$49,'General Assumptions'!$T53*(1+'General Assumptions'!$V53),IF(J$49>'General Assumptions'!$R53,I62*(1+'General Assumptions'!$U53),0))*('General Assumptions'!$S53>=J$49) -> 0 | K62: =IF('General Assumptions'!$R53=K$49,'General Assumptions'!$T53*(1+'General Assumptions'!$V53),IF(K$49>'General Assumptions'!$R53,J62*(1+'General Assumptions'!$U53),0))*('General Assumptions'!$S53>=K$49) -> 0 | L62: =IF('General Assumptions'!$R53=L$49,'General Assumptions'!$T53*(1+'General Assumptions'!$V53),IF(L$49>'General Assumptions'!$R53,K62*(1+'General Assumptions'!$U53),0))*('General Assumptions'!$S53>=L$49) -> 0 | M62: =IF('General Assumptions'!$R53=M$49,'General Assumptions'!$T53*(1+'General Assumptions'!$V53),IF(M$49>'General Assumptions'!$R53,L62*(1+'General Assumptions'!$U53),0))*('General Assumptions'!$S53>=M$49) -> 0 | N62: =IF('General Assumptions'!$R53=N$49,'General Assumptions'!$T53*(1+'General Assumptions'!$V53),IF(N$49>'General Assumptions'!$R53,M62*(1+'General Assumptions'!$U53),0))*('General Assumptions'!$S53>=N$49) -> 0 | O62: =IF('General Assumptions'!$R53=O$49,'General Assumptions'!$T53*(1+'General Assumptions'!$V53),IF(O$49>'General Assumptions'!$R53,N62*(1+'General Assumptions'!$U53),0))*('General Assumptions'!$S53>=O$49) -> 0 | P62: =IF('General Assumptions'!$R53=P$49,'General Assumptions'!$T53*(1+'General Assumptions'!$V53),IF(P$49>'General Assumptions'!$R53,O62*(1+'General Assumptions'!$U53),0))*('General Assumptions'!$S53>=P$49) -> 0 | Q62: =IF('General Assumptions'!$R53=Q$49,'General Assumptions'!$T53*(1+'General Assumptions'!$V53),IF(Q$49>'General Assumptions'!$R53,P62*(1+'General Assumptions'!$U53),0))*('General Assumptions'!$S53>=Q$49) -> 0 | R62: =IF('General Assumptions'!$R53=R$49,'General Assumptions'!$T53*(1+'General Assumptions'!$V53),IF(R$49>'General Assumptions'!$R53,Q62*(1+'General Assumptions'!$U53),0))*('General Assumptions'!$S53>=R$49) -> 0 | S62: 0
B63: =IF('General Assumptions'!P54=0,"",'General Assumptions'!P54) ->  | D63: =IF('General Assumptions'!$R54=D$49,'General Assumptions'!$T54*(1+'General Assumptions'!$V54),IF(D$49>'General Assumptions'!$R54,'General Assumptions'!V54*(1+'General Assumptions'!$U54),0))*('General Assumptions'!$S54>=D$49) -> 0 | E63: =IF('General Assumptions'!$R54=E$49,'General Assumptions'!$T54*(1+'General Assumptions'!$V54),IF(E$49>'General Assumptions'!$R54,D63*(1+'General Assumptions'!$U54),0))*('General Assumptions'!$S54>=E$49) -> 0 | F63: =IF('General Assumptions'!$R54=F$49,'General Assumptions'!$T54*(1+'General Assumptions'!$V54),IF(F$49>'General Assumptions'!$R54,E63*(1+'General Assumptions'!$U54),0))*('General Assumptions'!$S54>=F$49) -> 0 | G63: =IF('General Assumptions'!$R54=G$49,'General Assumptions'!$T54*(1+'General Assumptions'!$V54),IF(G$49>'General Assumptions'!$R54,F63*(1+'General Assumptions'!$U54),0))*('General Assumptions'!$S54>=G$49) -> 0 | H63: =IF('General Assumptions'!$R54=H$49,'General Assumptions'!$T54*(1+'General Assumptions'!$V54),IF(H$49>'General Assumptions'!$R54,G63*(1+'General Assumptions'!$U54),0))*('General Assumptions'!$S54>=H$49) -> 0 | I63: =IF('General Assumptions'!$R54=I$49,'General Assumptions'!$T54*(1+'General Assumptions'!$V54),IF(I$49>'General Assumptions'!$R54,H63*(1+'General Assumptions'!$U54),0))*('General Assumptions'!$S54>=I$49) -> 0 | J63: =IF('General Assumptions'!$R54=J$49,'General Assumptions'!$T54*(1+'General Assumptions'!$V54),IF(J$49>'General Assumptions'!$R54,I63*(1+'General Assumptions'!$U54),0))*('General Assumptions'!$S54>=J$49) -> 0 | K63: =IF('General Assumptions'!$R54=K$49,'General Assumptions'!$T54*(1+'General Assumptions'!$V54),IF(K$49>'General Assumptions'!$R54,J63*(1+'General Assumptions'!$U54),0))*('General Assumptions'!$S54>=K$49) -> 0 | L63: =IF('General Assumptions'!$R54=L$49,'General Assumptions'!$T54*(1+'General Assumptions'!$V54),IF(L$49>'General Assumptions'!$R54,K63*(1+'General Assumptions'!$U54),0))*('General Assumptions'!$S54>=L$49) -> 0 | M63: =IF('General Assumptions'!$R54=M$49,'General Assumptions'!$T54*(1+'General Assumptions'!$V54),IF(M$49>'General Assumptions'!$R54,L63*(1+'General Assumptions'!$U54),0))*('General Assumptions'!$S54>=M$49) -> 0 | N63: =IF('General Assumptions'!$R54=N$49,'General Assumptions'!$T54*(1+'General Assumptions'!$V54),IF(N$49>'General Assumptions'!$R54,M63*(1+'General Assumptions'!$U54),0))*('General Assumptions'!$S54>=N$49) -> 0 | O63: =IF('General Assumptions'!$R54=O$49,'General Assumptions'!$T54*(1+'General Assumptions'!$V54),IF(O$49>'General Assumptions'!$R54,N63*(1+'General Assumptions'!$U54),0))*('General Assumptions'!$S54>=O$49) -> 0 | P63: =IF('General Assumptions'!$R54=P$49,'General Assumptions'!$T54*(1+'General Assumptions'!$V54),IF(P$49>'General Assumptions'!$R54,O63*(1+'General Assumptions'!$U54),0))*('General Assumptions'!$S54>=P$49) -> 0 | Q63: =IF('General Assumptions'!$R54=Q$49,'General Assumptions'!$T54*(1+'General Assumptions'!$V54),IF(Q$49>'General Assumptions'!$R54,P63*(1+'General Assumptions'!$U54),0))*('General Assumptions'!$S54>=Q$49) -> 0 | R63: =IF('General Assumptions'!$R54=R$49,'General Assumptions'!$T54*(1+'General Assumptions'!$V54),IF(R$49>'General Assumptions'!$R54,Q63*(1+'General Assumptions'!$U54),0))*('General Assumptions'!$S54>=R$49) -> 0 | S63: 0
B64: =IF('General Assumptions'!P55=0,"",'General Assumptions'!P55) ->  | D64: =IF('General Assumptions'!$R55=D$49,'General Assumptions'!$T55*(1+'General Assumptions'!$V55),IF(D$49>'General Assumptions'!$R55,'General Assumptions'!V55*(1+'General Assumptions'!$U55),0))*('General Assumptions'!$S55>=D$49) -> 0 | E64: =IF('General Assumptions'!$R55=E$49,'General Assumptions'!$T55*(1+'General Assumptions'!$V55),IF(E$49>'General Assumptions'!$R55,D64*(1+'General Assumptions'!$U55),0))*('General Assumptions'!$S55>=E$49) -> 0 | F64: =IF('General Assumptions'!$R55=F$49,'General Assumptions'!$T55*(1+'General Assumptions'!$V55),IF(F$49>'General Assumptions'!$R55,E64*(1+'General Assumptions'!$U55),0))*('General Assumptions'!$S55>=F$49) -> 0 | G64: =IF('General Assumptions'!$R55=G$49,'General Assumptions'!$T55*(1+'General Assumptions'!$V55),IF(G$49>'General Assumptions'!$R55,F64*(1+'General Assumptions'!$U55),0))*('General Assumptions'!$S55>=G$49) -> 0 | H64: =IF('General Assumptions'!$R55=H$49,'General Assumptions'!$T55*(1+'General Assumptions'!$V55),IF(H$49>'General Assumptions'!$R55,G64*(1+'General Assumptions'!$U55),0))*('General Assumptions'!$S55>=H$49) -> 0 | I64: =IF('General Assumptions'!$R55=I$49,'General Assumptions'!$T55*(1+'General Assumptions'!$V55),IF(I$49>'General Assumptions'!$R55,H64*(1+'General Assumptions'!$U55),0))*('General Assumptions'!$S55>=I$49) -> 0 | J64: =IF('General Assumptions'!$R55=J$49,'General Assumptions'!$T55*(1+'General Assumptions'!$V55),IF(J$49>'General Assumptions'!$R55,I64*(1+'General Assumptions'!$U55),0))*('General Assumptions'!$S55>=J$49) -> 0 | K64: =IF('General Assumptions'!$R55=K$49,'General Assumptions'!$T55*(1+'General Assumptions'!$V55),IF(K$49>'General Assumptions'!$R55,J64*(1+'General Assumptions'!$U55),0))*('General Assumptions'!$S55>=K$49) -> 0 | L64: =IF('General Assumptions'!$R55=L$49,'General Assumptions'!$T55*(1+'General Assumptions'!$V55),IF(L$49>'General Assumptions'!$R55,K64*(1+'General Assumptions'!$U55),0))*('General Assumptions'!$S55>=L$49) -> 0 | M64: =IF('General Assumptions'!$R55=M$49,'General Assumptions'!$T55*(1+'General Assumptions'!$V55),IF(M$49>'General Assumptions'!$R55,L64*(1+'General Assumptions'!$U55),0))*('General Assumptions'!$S55>=M$49) -> 0 | N64: =IF('General Assumptions'!$R55=N$49,'General Assumptions'!$T55*(1+'General Assumptions'!$V55),IF(N$49>'General Assumptions'!$R55,M64*(1+'General Assumptions'!$U55),0))*('General Assumptions'!$S55>=N$49) -> 0 | O64: =IF('General Assumptions'!$R55=O$49,'General Assumptions'!$T55*(1+'General Assumptions'!$V55),IF(O$49>'General Assumptions'!$R55,N64*(1+'General Assumptions'!$U55),0))*('General Assumptions'!$S55>=O$49) -> 0 | P64: =IF('General Assumptions'!$R55=P$49,'General Assumptions'!$T55*(1+'General Assumptions'!$V55),IF(P$49>'General Assumptions'!$R55,O64*(1+'General Assumptions'!$U55),0))*('General Assumptions'!$S55>=P$49) -> 0 | Q64: =IF('General Assumptions'!$R55=Q$49,'General Assumptions'!$T55*(1+'General Assumptions'!$V55),IF(Q$49>'General Assumptions'!$R55,P64*(1+'General Assumptions'!$U55),0))*('General Assumptions'!$S55>=Q$49) -> 0 | R64: =IF('General Assumptions'!$R55=R$49,'General Assumptions'!$T55*(1+'General Assumptions'!$V55),IF(R$49>'General Assumptions'!$R55,Q64*(1+'General Assumptions'!$U55),0))*('General Assumptions'!$S55>=R$49) -> 0 | S64: 0
B65: =IF('General Assumptions'!P56=0,"",'General Assumptions'!P56) ->  | D65: =IF('General Assumptions'!$R56=D$49,'General Assumptions'!$T56*(1+'General Assumptions'!$V56),IF(D$49>'General Assumptions'!$R56,'General Assumptions'!V56*(1+'General Assumptions'!$U56),0))*('General Assumptions'!$S56>=D$49) -> 0 | E65: =IF('General Assumptions'!$R56=E$49,'General Assumptions'!$T56*(1+'General Assumptions'!$V56),IF(E$49>'General Assumptions'!$R56,D65*(1+'General Assumptions'!$U56),0))*('General Assumptions'!$S56>=E$49) -> 0 | F65: =IF('General Assumptions'!$R56=F$49,'General Assumptions'!$T56*(1+'General Assumptions'!$V56),IF(F$49>'General Assumptions'!$R56,E65*(1+'General Assumptions'!$U56),0))*('General Assumptions'!$S56>=F$49) -> 0 | G65: =IF('General Assumptions'!$R56=G$49,'General Assumptions'!$T56*(1+'General Assumptions'!$V56),IF(G$49>'General Assumptions'!$R56,F65*(1+'General Assumptions'!$U56),0))*('General Assumptions'!$S56>=G$49) -> 0 | H65: =IF('General Assumptions'!$R56=H$49,'General Assumptions'!$T56*(1+'General Assumptions'!$V56),IF(H$49>'General Assumptions'!$R56,G65*(1+'General Assumptions'!$U56),0))*('General Assumptions'!$S56>=H$49) -> 0 | I65: =IF('General Assumptions'!$R56=I$49,'General Assumptions'!$T56*(1+'General Assumptions'!$V56),IF(I$49>'General Assumptions'!$R56,H65*(1+'General Assumptions'!$U56),0))*('General Assumptions'!$S56>=I$49) -> 0 | J65: =IF('General Assumptions'!$R56=J$49,'General Assumptions'!$T56*(1+'General Assumptions'!$V56),IF(J$49>'General Assumptions'!$R56,I65*(1+'General Assumptions'!$U56),0))*('General Assumptions'!$S56>=J$49) -> 0 | K65: =IF('General Assumptions'!$R56=K$49,'General Assumptions'!$T56*(1+'General Assumptions'!$V56),IF(K$49>'General Assumptions'!$R56,J65*(1+'General Assumptions'!$U56),0))*('General Assumptions'!$S56>=K$49) -> 0 | L65: =IF('General Assumptions'!$R56=L$49,'General Assumptions'!$T56*(1+'General Assumptions'!$V56),IF(L$49>'General Assumptions'!$R56,K65*(1+'General Assumptions'!$U56),0))*('General Assumptions'!$S56>=L$49) -> 0 | M65: =IF('General Assumptions'!$R56=M$49,'General Assumptions'!$T56*(1+'General Assumptions'!$V56),IF(M$49>'General Assumptions'!$R56,L65*(1+'General Assumptions'!$U56),0))*('General Assumptions'!$S56>=M$49) -> 0 | N65: =IF('General Assumptions'!$R56=N$49,'General Assumptions'!$T56*(1+'General Assumptions'!$V56),IF(N$49>'General Assumptions'!$R56,M65*(1+'General Assumptions'!$U56),0))*('General Assumptions'!$S56>=N$49) -> 0 | O65: =IF('General Assumptions'!$R56=O$49,'General Assumptions'!$T56*(1+'General Assumptions'!$V56),IF(O$49>'General Assumptions'!$R56,N65*(1+'General Assumptions'!$U56),0))*('General Assumptions'!$S56>=O$49) -> 0 | P65: =IF('General Assumptions'!$R56=P$49,'General Assumptions'!$T56*(1+'General Assumptions'!$V56),IF(P$49>'General Assumptions'!$R56,O65*(1+'General Assumptions'!$U56),0))*('General Assumptions'!$S56>=P$49) -> 0 | Q65: =IF('General Assumptions'!$R56=Q$49,'General Assumptions'!$T56*(1+'General Assumptions'!$V56),IF(Q$49>'General Assumptions'!$R56,P65*(1+'General Assumptions'!$U56),0))*('General Assumptions'!$S56>=Q$49) -> 0 | R65: =IF('General Assumptions'!$R56=R$49,'General Assumptions'!$T56*(1+'General Assumptions'!$V56),IF(R$49>'General Assumptions'!$R56,Q65*(1+'General Assumptions'!$U56),0))*('General Assumptions'!$S56>=R$49) -> 0 | S65: 0
B66: =IF('General Assumptions'!P57=0,"",'General Assumptions'!P57) ->  | D66: =IF('General Assumptions'!$R57=D$49,'General Assumptions'!$T57*(1+'General Assumptions'!$V57),IF(D$49>'General Assumptions'!$R57,'General Assumptions'!V57*(1+'General Assumptions'!$U57),0))*('General Assumptions'!$S57>=D$49) -> 0 | E66: =IF('General Assumptions'!$R57=E$49,'General Assumptions'!$T57*(1+'General Assumptions'!$V57),IF(E$49>'General Assumptions'!$R57,D66*(1+'General Assumptions'!$U57),0))*('General Assumptions'!$S57>=E$49) -> 0 | F66: =IF('General Assumptions'!$R57=F$49,'General Assumptions'!$T57*(1+'General Assumptions'!$V57),IF(F$49>'General Assumptions'!$R57,E66*(1+'General Assumptions'!$U57),0))*('General Assumptions'!$S57>=F$49) -> 0 | G66: =IF('General Assumptions'!$R57=G$49,'General Assumptions'!$T57*(1+'General Assumptions'!$V57),IF(G$49>'General Assumptions'!$R57,F66*(1+'General Assumptions'!$U57),0))*('General Assumptions'!$S57>=G$49) -> 0 | H66: =IF('General Assumptions'!$R57=H$49,'General Assumptions'!$T57*(1+'General Assumptions'!$V57),IF(H$49>'General Assumptions'!$R57,G66*(1+'General Assumptions'!$U57),0))*('General Assumptions'!$S57>=H$49) -> 0 | I66: =IF('General Assumptions'!$R57=I$49,'General Assumptions'!$T57*(1+'General Assumptions'!$V57),IF(I$49>'General Assumptions'!$R57,H66*(1+'General Assumptions'!$U57),0))*('General Assumptions'!$S57>=I$49) -> 0 | J66: =IF('General Assumptions'!$R57=J$49,'General Assumptions'!$T57*(1+'General Assumptions'!$V57),IF(J$49>'General Assumptions'!$R57,I66*(1+'General Assumptions'!$U57),0))*('General Assumptions'!$S57>=J$49) -> 0 | K66: =IF('General Assumptions'!$R57=K$49,'General Assumptions'!$T57*(1+'General Assumptions'!$V57),IF(K$49>'General Assumptions'!$R57,J66*(1+'General Assumptions'!$U57),0))*('General Assumptions'!$S57>=K$49) -> 0 | L66: =IF('General Assumptions'!$R57=L$49,'General Assumptions'!$T57*(1+'General Assumptions'!$V57),IF(L$49>'General Assumptions'!$R57,K66*(1+'General Assumptions'!$U57),0))*('General Assumptions'!$S57>=L$49) -> 0 | M66: =IF('General Assumptions'!$R57=M$49,'General Assumptions'!$T57*(1+'General Assumptions'!$V57),IF(M$49>'General Assumptions'!$R57,L66*(1+'General Assumptions'!$U57),0))*('General Assumptions'!$S57>=M$49) -> 0 | N66: =IF('General Assumptions'!$R57=N$49,'General Assumptions'!$T57*(1+'General Assumptions'!$V57),IF(N$49>'General Assumptions'!$R57,M66*(1+'General Assumptions'!$U57),0))*('General Assumptions'!$S57>=N$49) -> 0 | O66: =IF('General Assumptions'!$R57=O$49,'General Assumptions'!$T57*(1+'General Assumptions'!$V57),IF(O$49>'General Assumptions'!$R57,N66*(1+'General Assumptions'!$U57),0))*('General Assumptions'!$S57>=O$49) -> 0 | P66: =IF('General Assumptions'!$R57=P$49,'General Assumptions'!$T57*(1+'General Assumptions'!$V57),IF(P$49>'General Assumptions'!$R57,O66*(1+'General Assumptions'!$U57),0))*('General Assumptions'!$S57>=P$49) -> 0 | Q66: =IF('General Assumptions'!$R57=Q$49,'General Assumptions'!$T57*(1+'General Assumptions'!$V57),IF(Q$49>'General Assumptions'!$R57,P66*(1+'General Assumptions'!$U57),0))*('General Assumptions'!$S57>=Q$49) -> 0 | R66: =IF('General Assumptions'!$R57=R$49,'General Assumptions'!$T57*(1+'General Assumptions'!$V57),IF(R$49>'General Assumptions'!$R57,Q66*(1+'General Assumptions'!$U57),0))*('General Assumptions'!$S57>=R$49) -> 0 | S66: 0
B67: =IF('General Assumptions'!P58=0,"",'General Assumptions'!P58) ->  | D67: =IF('General Assumptions'!$R58=D$49,'General Assumptions'!$T58*(1+'General Assumptions'!$V58),IF(D$49>'General Assumptions'!$R58,'General Assumptions'!V58*(1+'General Assumptions'!$U58),0))*('General Assumptions'!$S58>=D$49) -> 0 | E67: =IF('General Assumptions'!$R58=E$49,'General Assumptions'!$T58*(1+'General Assumptions'!$V58),IF(E$49>'General Assumptions'!$R58,D67*(1+'General Assumptions'!$U58),0))*('General Assumptions'!$S58>=E$49) -> 0 | F67: =IF('General Assumptions'!$R58=F$49,'General Assumptions'!$T58*(1+'General Assumptions'!$V58),IF(F$49>'General Assumptions'!$R58,E67*(1+'General Assumptions'!$U58),0))*('General Assumptions'!$S58>=F$49) -> 0 | G67: =IF('General Assumptions'!$R58=G$49,'General Assumptions'!$T58*(1+'General Assumptions'!$V58),IF(G$49>'General Assumptions'!$R58,F67*(1+'General Assumptions'!$U58),0))*('General Assumptions'!$S58>=G$49) -> 0 | H67: =IF('General Assumptions'!$R58=H$49,'General Assumptions'!$T58*(1+'General Assumptions'!$V58),IF(H$49>'General Assumptions'!$R58,G67*(1+'General Assumptions'!$U58),0))*('General Assumptions'!$S58>=H$49) -> 0 | I67: =IF('General Assumptions'!$R58=I$49,'General Assumptions'!$T58*(1+'General Assumptions'!$V58),IF(I$49>'General Assumptions'!$R58,H67*(1+'General Assumptions'!$U58),0))*('General Assumptions'!$S58>=I$49) -> 0 | J67: =IF('General Assumptions'!$R58=J$49,'General Assumptions'!$T58*(1+'General Assumptions'!$V58),IF(J$49>'General Assumptions'!$R58,I67*(1+'General Assumptions'!$U58),0))*('General Assumptions'!$S58>=J$49) -> 0 | K67: =IF('General Assumptions'!$R58=K$49,'General Assumptions'!$T58*(1+'General Assumptions'!$V58),IF(K$49>'General Assumptions'!$R58,J67*(1+'General Assumptions'!$U58),0))*('General Assumptions'!$S58>=K$49) -> 0 | L67: =IF('General Assumptions'!$R58=L$49,'General Assumptions'!$T58*(1+'General Assumptions'!$V58),IF(L$49>'General Assumptions'!$R58,K67*(1+'General Assumptions'!$U58),0))*('General Assumptions'!$S58>=L$49) -> 0 | M67: =IF('General Assumptions'!$R58=M$49,'General Assumptions'!$T58*(1+'General Assumptions'!$V58),IF(M$49>'General Assumptions'!$R58,L67*(1+'General Assumptions'!$U58),0))*('General Assumptions'!$S58>=M$49) -> 0 | N67: =IF('General Assumptions'!$R58=N$49,'General Assumptions'!$T58*(1+'General Assumptions'!$V58),IF(N$49>'General Assumptions'!$R58,M67*(1+'General Assumptions'!$U58),0))*('General Assumptions'!$S58>=N$49) -> 0 | O67: =IF('General Assumptions'!$R58=O$49,'General Assumptions'!$T58*(1+'General Assumptions'!$V58),IF(O$49>'General Assumptions'!$R58,N67*(1+'General Assumptions'!$U58),0))*('General Assumptions'!$S58>=O$49) -> 0 | P67: =IF('General Assumptions'!$R58=P$49,'General Assumptions'!$T58*(1+'General Assumptions'!$V58),IF(P$49>'General Assumptions'!$R58,O67*(1+'General Assumptions'!$U58),0))*('General Assumptions'!$S58>=P$49) -> 0 | Q67: =IF('General Assumptions'!$R58=Q$49,'General Assumptions'!$T58*(1+'General Assumptions'!$V58),IF(Q$49>'General Assumptions'!$R58,P67*(1+'General Assumptions'!$U58),0))*('General Assumptions'!$S58>=Q$49) -> 0 | R67: =IF('General Assumptions'!$R58=R$49,'General Assumptions'!$T58*(1+'General Assumptions'!$V58),IF(R$49>'General Assumptions'!$R58,Q67*(1+'General Assumptions'!$U58),0))*('General Assumptions'!$S58>=R$49) -> 0 | S67: 0
B68: =IF('General Assumptions'!P59=0,"",'General Assumptions'!P59) ->  | D68: =IF('General Assumptions'!$R59=D$49,'General Assumptions'!$T59*(1+'General Assumptions'!$V59),IF(D$49>'General Assumptions'!$R59,'General Assumptions'!V59*(1+'General Assumptions'!$U59),0))*('General Assumptions'!$S59>=D$49) -> 0 | E68: =IF('General Assumptions'!$R59=E$49,'General Assumptions'!$T59*(1+'General Assumptions'!$V59),IF(E$49>'General Assumptions'!$R59,D68*(1+'General Assumptions'!$U59),0))*('General Assumptions'!$S59>=E$49) -> 0 | F68: =IF('General Assumptions'!$R59=F$49,'General Assumptions'!$T59*(1+'General Assumptions'!$V59),IF(F$49>'General Assumptions'!$R59,E68*(1+'General Assumptions'!$U59),0))*('General Assumptions'!$S59>=F$49) -> 0 | G68: =IF('General Assumptions'!$R59=G$49,'General Assumptions'!$T59*(1+'General Assumptions'!$V59),IF(G$49>'General Assumptions'!$R59,F68*(1+'General Assumptions'!$U59),0))*('General Assumptions'!$S59>=G$49) -> 0 | H68: =IF('General Assumptions'!$R59=H$49,'General Assumptions'!$T59*(1+'General Assumptions'!$V59),IF(H$49>'General Assumptions'!$R59,G68*(1+'General Assumptions'!$U59),0))*('General Assumptions'!$S59>=H$49) -> 0 | I68: =IF('General Assumptions'!$R59=I$49,'General Assumptions'!$T59*(1+'General Assumptions'!$V59),IF(I$49>'General Assumptions'!$R59,H68*(1+'General Assumptions'!$U59),0))*('General Assumptions'!$S59>=I$49) -> 0 | J68: =IF('General Assumptions'!$R59=J$49,'General Assumptions'!$T59*(1+'General Assumptions'!$V59),IF(J$49>'General Assumptions'!$R59,I68*(1+'General Assumptions'!$U59),0))*('General Assumptions'!$S59>=J$49) -> 0 | K68: =IF('General Assumptions'!$R59=K$49,'General Assumptions'!$T59*(1+'General Assumptions'!$V59),IF(K$49>'General Assumptions'!$R59,J68*(1+'General Assumptions'!$U59),0))*('General Assumptions'!$S59>=K$49) -> 0 | L68: =IF('General Assumptions'!$R59=L$49,'General Assumptions'!$T59*(1+'General Assumptions'!$V59),IF(L$49>'General Assumptions'!$R59,K68*(1+'General Assumptions'!$U59),0))*('General Assumptions'!$S59>=L$49) -> 0 | M68: =IF('General Assumptions'!$R59=M$49,'General Assumptions'!$T59*(1+'General Assumptions'!$V59),IF(M$49>'General Assumptions'!$R59,L68*(1+'General Assumptions'!$U59),0))*('General Assumptions'!$S59>=M$49) -> 0 | N68: =IF('General Assumptions'!$R59=N$49,'General Assumptions'!$T59*(1+'General Assumptions'!$V59),IF(N$49>'General Assumptions'!$R59,M68*(1+'General Assumptions'!$U59),0))*('General Assumptions'!$S59>=N$49) -> 0 | O68: =IF('General Assumptions'!$R59=O$49,'General Assumptions'!$T59*(1+'General Assumptions'!$V59),IF(O$49>'General Assumptions'!$R59,N68*(1+'General Assumptions'!$U59),0))*('General Assumptions'!$S59>=O$49) -> 0 | P68: =IF('General Assumptions'!$R59=P$49,'General Assumptions'!$T59*(1+'General Assumptions'!$V59),IF(P$49>'General Assumptions'!$R59,O68*(1+'General Assumptions'!$U59),0))*('General Assumptions'!$S59>=P$49) -> 0 | Q68: =IF('General Assumptions'!$R59=Q$49,'General Assumptions'!$T59*(1+'General Assumptions'!$V59),IF(Q$49>'General Assumptions'!$R59,P68*(1+'General Assumptions'!$U59),0))*('General Assumptions'!$S59>=Q$49) -> 0 | R68: =IF('General Assumptions'!$R59=R$49,'General Assumptions'!$T59*(1+'General Assumptions'!$V59),IF(R$49>'General Assumptions'!$R59,Q68*(1+'General Assumptions'!$U59),0))*('General Assumptions'!$S59>=R$49) -> 0 | S68: 0
B69: =IF('General Assumptions'!P60=0,"",'General Assumptions'!P60) ->  | D69: =IF('General Assumptions'!$R60=D$49,'General Assumptions'!$T60*(1+'General Assumptions'!$V60),IF(D$49>'General Assumptions'!$R60,'General Assumptions'!V60*(1+'General Assumptions'!$U60),0))*('General Assumptions'!$S60>=D$49) -> 0 | E69: =IF('General Assumptions'!$R60=E$49,'General Assumptions'!$T60*(1+'General Assumptions'!$V60),IF(E$49>'General Assumptions'!$R60,D69*(1+'General Assumptions'!$U60),0))*('General Assumptions'!$S60>=E$49) -> 0 | F69: =IF('General Assumptions'!$R60=F$49,'General Assumptions'!$T60*(1+'General Assumptions'!$V60),IF(F$49>'General Assumptions'!$R60,E69*(1+'General Assumptions'!$U60),0))*('General Assumptions'!$S60>=F$49) -> 0 | G69: =IF('General Assumptions'!$R60=G$49,'General Assumptions'!$T60*(1+'General Assumptions'!$V60),IF(G$49>'General Assumptions'!$R60,F69*(1+'General Assumptions'!$U60),0))*('General Assumptions'!$S60>=G$49) -> 0 | H69: =IF('General Assumptions'!$R60=H$49,'General Assumptions'!$T60*(1+'General Assumptions'!$V60),IF(H$49>'General Assumptions'!$R60,G69*(1+'General Assumptions'!$U60),0))*('General Assumptions'!$S60>=H$49) -> 0 | I69: =IF('General Assumptions'!$R60=I$49,'General Assumptions'!$T60*(1+'General Assumptions'!$V60),IF(I$49>'General Assumptions'!$R60,H69*(1+'General Assumptions'!$U60),0))*('General Assumptions'!$S60>=I$49) -> 0 | J69: =IF('General Assumptions'!$R60=J$49,'General Assumptions'!$T60*(1+'General Assumptions'!$V60),IF(J$49>'General Assumptions'!$R60,I69*(1+'General Assumptions'!$U60),0))*('General Assumptions'!$S60>=J$49) -> 0 | K69: =IF('General Assumptions'!$R60=K$49,'General Assumptions'!$T60*(1+'General Assumptions'!$V60),IF(K$49>'General Assumptions'!$R60,J69*(1+'General Assumptions'!$U60),0))*('General Assumptions'!$S60>=K$49) -> 0 | L69: =IF('General Assumptions'!$R60=L$49,'General Assumptions'!$T60*(1+'General Assumptions'!$V60),IF(L$49>'General Assumptions'!$R60,K69*(1+'General Assumptions'!$U60),0))*('General Assumptions'!$S60>=L$49) -> 0 | M69: =IF('General Assumptions'!$R60=M$49,'General Assumptions'!$T60*(1+'General Assumptions'!$V60),IF(M$49>'General Assumptions'!$R60,L69*(1+'General Assumptions'!$U60),0))*('General Assumptions'!$S60>=M$49) -> 0 | N69: =IF('General Assumptions'!$R60=N$49,'General Assumptions'!$T60*(1+'General Assumptions'!$V60),IF(N$49>'General Assumptions'!$R60,M69*(1+'General Assumptions'!$U60),0))*('General Assumptions'!$S60>=N$49) -> 0 | O69: =IF('General Assumptions'!$R60=O$49,'General Assumptions'!$T60*(1+'General Assumptions'!$V60),IF(O$49>'General Assumptions'!$R60,N69*(1+'General Assumptions'!$U60),0))*('General Assumptions'!$S60>=O$49) -> 0 | P69: =IF('General Assumptions'!$R60=P$49,'General Assumptions'!$T60*(1+'General Assumptions'!$V60),IF(P$49>'General Assumptions'!$R60,O69*(1+'General Assumptions'!$U60),0))*('General Assumptions'!$S60>=P$49) -> 0 | Q69: =IF('General Assumptions'!$R60=Q$49,'General Assumptions'!$T60*(1+'General Assumptions'!$V60),IF(Q$49>'General Assumptions'!$R60,P69*(1+'General Assumptions'!$U60),0))*('General Assumptions'!$S60>=Q$49) -> 0 | R69: =IF('General Assumptions'!$R60=R$49,'General Assumptions'!$T60*(1+'General Assumptions'!$V60),IF(R$49>'General Assumptions'!$R60,Q69*(1+'General Assumptions'!$U60),0))*('General Assumptions'!$S60>=R$49) -> 0 | S69: 0
B71: Total | D71: =SUM(D50:D69) -> 40000 | E71: =SUM(E50:E69) -> 63275 | F71: 83379.625 | G71: 84953.34312 | H71: 86561.29648 | I71: 88204.28986 | J71: 89883.14769 | K71: 91598.71447 | L71: 93351.8553 | M71: 95143.45638 | N71: 96974.42554 | O71: 98845.69275 | P71: 100758.2107 | Q71: 102712.9554 | R71: 104710.9265 | S71: 1320352.939

Sheet S&U Summary
B1: ='General Assumptions'!D7 -> Country Y LPG Project
B2: Summary of Investment Sources & Uses
B3: Annual Calculation
B4: All numbers based on USD
G5: Year
A6: Line | F6: 0 | G6: =F6+1 -> 1 | H6: =G6+1 -> 2 | I6: 3 | J6: 4 | K6: 5 | L6: 6 | M6: 7 | N6: 8 | O6: 9 | P6: 10 | Q6: 11 | R6: 12 | S6: 13 | T6: 14 | U6: 15 | V6: Total
A8: 1 | B8: INVESTMENT SOURCES & USES SUMMARY
A9: =A8+1 -> 2 | C9: Sources
A10: =#REF!+1 ->  | C10: Equity Investment | F10: =Cashflows!F79 -> 50000 | G10: =Cashflows!G79 -> 0 | H10: =Cashflows!H79 -> 0 | I10: =Cashflows!I79 -> 0 | J10: =Cashflows!J79 -> 0 | K10: =Cashflows!K79 -> 0 | L10: =Cashflows!L79 -> 0 | M10: =Cashflows!M79 -> 0 | N10: =Cashflows!N79 -> 0 | O10: =Cashflows!O79 -> 0 | P10: =Cashflows!P79 -> 0 | Q10: =Cashflows!Q79 -> 0 | R10: =Cashflows!R79 -> 0 | S10: =Cashflows!S79 -> 0 | T10: =Cashflows!T79 -> 0 | U10: =Cashflows!U79 -> 0 | V10: =SUM(F10:U10) -> 50000
A11: =#REF!+1 ->  | C11: Debt
C12: Term Loan | F12: =Cashflows!F83 -> 38000 | G12: =Cashflows!G83 -> 0 | H12: =Cashflows!H83 -> 0 | I12: =Cashflows!I83 -> 0 | J12: =Cashflows!J83 -> 0 | K12: =Cashflows!K83 -> 0 | L12: =Cashflows!L83 -> 0 | M12: =Cashflows!M83 -> 0 | N12: =Cashflows!N83 -> 0 | O12: =Cashflows!O83 -> 0 | P12: =Cashflows!P83 -> 0 | Q12: =Cashflows!Q83 -> 0 | R12: =Cashflows!R83 -> 0 | S12: =Cashflows!S83 -> 0 | T12: =Cashflows!T83 -> 0 | U12: =Cashflows!U83 -> 0 | V12: 38000
C13: Revolving Line of Credit
C14: CapEx Draw | F14: =-(F10+F12+SUM(F22:F31)) -> 0 | G14: 43000 | H14: 0 | I14: 12789.17188 | J14: 27168.81152 | K14: 13188.90778 | L14: 0 | M14: 0 | N14: 24428.77487 | O14: 10990.78752 | P14: 0 | Q14: 22786.76657 | R14: 0 | S14: 0 | T14: 24066.31222 | U14: 0 | V14: 178419.5324
C15: Cashflow Deficit Draw | F15: =-F36 -> 0 | G15: =-G36 -> 0 | H15: 0 | I15: 0 | J15: 0 | K15: 0 | L15: 0 | M15: 0 | N15: 0 | O15: 0 | P15: 0 | Q15: 0 | R15: 0 | S15: 0 | T15: 0 | U15: 0 | V15: 0
A16: =#REF!+1 ->  | C16: sub-total | F16: =SUM(F12:F15) -> 38000 | G16: =SUM(G12:G15) -> 43000 | H16: 0 | I16: 12789.17188 | J16: 27168.81152 | K16: 13188.90778 | L16: 0 | M16: 0 | N16: 24428.77487 | O16: 10990.78752 | P16: 0 | Q16: 22786.76657 | R16: 0 | S16: 0 | T16: 24066.31222 | U16: 0 | V16: 216419.5324
C18: Total Sources | F18: =F16+F10 -> 88000 | G18: 43000 | H18: 0 | I18: 12789.17188 | J18: 27168.81152 | K18: 13188.90778 | L18: 0 | M18: 0 | N18: 24428.77487 | O18: 10990.78752 | P18: 0 | Q18: 22786.76657 | R18: 0 | S18: 0 | T18: 24066.31222 | U18: 0 | V18: 266419.5324
C20: Uses
C21: CapEx
A22: =A20+1 ->  | C22: ='General Assumptions'!J18 -> Office (capitalized portion) | F22: =Cashflows!F10 -> -7000 | G22: =Cashflows!G10 -> 0 | H22: =Cashflows!H10 -> 0 | I22: =Cashflows!I10 -> 0 | J22: =Cashflows!J10 -> 0 | K22: =Cashflows!K10 -> 0 | L22: =Cashflows!L10 -> 0 | M22: =Cashflows!M10 -> 0 | N22: =Cashflows!N10 -> 0 | O22: =Cashflows!O10 -> 0 | P22: =Cashflows!P10 -> 0 | Q22: =Cashflows!Q10 -> 0 | R22: =Cashflows!R10 -> 0 | S22: =Cashflows!S10 -> 0 | T22: =Cashflows!T10 -> 0 | U22: =Cashflows!U10 -> 0 | V22: =SUM(F22:U22) -> -7000
C23: ='General Assumptions'!J14 -> Storage | F23: =Cashflows!F11 -> -10000 | G23: =Cashflows!G11 -> -10000 | H23: =Cashflows!H11 -> 0 | I23: =Cashflows!I11 -> 0 | J23: =Cashflows!J11 -> 0 | K23: =Cashflows!K11 -> -5306.817753 | L23: =Cashflows!L11 -> 0 | M23: =Cashflows!M11 -> 0 | N23: =Cashflows!N11 -> -5549.224565 | O23: =Cashflows!O11 -> 0 | P23: =Cashflows!P11 -> 0 | Q23: =Cashflows!Q11 -> -5802.704125 | R23: =Cashflows!R11 -> 0 | S23: =Cashflows!S11 -> 0 | T23: =Cashflows!T11 -> 0 | U23: =Cashflows!U11 -> 0 | V23: -36658.74644
C24: ='General Assumptions'!J15 -> Refueling Stations | F24: =Cashflows!F12 -> -15000 | G24: =Cashflows!G12 -> -15000 | H24: =Cashflows!H12 -> 0 | I24: =Cashflows!I12 -> -7688.671875 | J24: =Cashflows!J12 -> -7784.780273 | K24: =Cashflows!K12 -> -7882.090027 | L24: =Cashflows!L12 -> 0 | M24: =Cashflows!M12 -> 0 | N24: =Cashflows!N12 -> -8181.378527 | O24: =Cashflows!O12 -> -8283.645759 | P24: =Cashflows!P12 -> 0 | Q24: =Cashflows!Q12 -> -16984.06244 | R24: =Cashflows!R12 -> 0 | S24: =Cashflows!S12 -> 0 | T24: =Cashflows!T12 -> -8814.479619 | U24: =Cashflows!U12 -> 0 | V24: -95619.10853
C25: ='General Assumptions'!J16 -> Transportation | F25: =Cashflows!F13 -> -18000 | G25: =Cashflows!G13 -> -18000 | H25: =Cashflows!H13 -> 0 | I25: =Cashflows!I13 -> 0 | J25: =Cashflows!J13 -> -19384.03125 | K25: =Cashflows!K13 -> 0 | L25: =Cashflows!L13 -> 0 | M25: =Cashflows!M13 -> 0 | N25: =Cashflows!N13 -> -10698.17178 | O25: =Cashflows!O13 -> 0 | P25: =Cashflows!P13 -> 0 | Q25: =Cashflows!Q13 -> 0 | R25: =Cashflows!R13 -> 0 | S25: =Cashflows!S13 -> 0 | T25: =Cashflows!T13 -> -12406.5994 | U25: =Cashflows!U13 -> 0 | V25: -78488.80244
C26: ='General Assumptions'!J17 -> Misc. Infrastructure | F26: =Cashflows!F14 -> -5000 | G26: =Cashflows!G14 -> 0 | H26: =Cashflows!H14 -> 0 | I26: =Cashflows!I14 -> -5100.5 | J26: =Cashflows!J14 -> 0 | K26: =Cashflows!K14 -> 0 | L26: =Cashflows!L14 -> 0 | M26: =Cashflows!M14 -> 0 | N26: =Cashflows!N14 -> 0 | O26: =Cashflows!O14 -> -2707.141764 | P26: =Cashflows!P14 -> 0 | Q26: =Cashflows!Q14 -> 0 | R26: =Cashflows!R14 -> 0 | S26: =Cashflows!S14 -> 0 | T26: =Cashflows!T14 -> -2845.233201 | U26: =Cashflows!U14 -> 0 | V26: -15652.87497
C27: ='General Assumptions'!J19 -> Office Equip | F27: =Cashflows!F15 -> -3500 | G27: =Cashflows!G15 -> 0 | H27: =Cashflows!H15 -> 0 | I27: =Cashflows!I15 -> 0 | J27: =Cashflows!J15 -> 0 | K27: =Cashflows!K15 -> 0 | L27: =Cashflows!L15 -> 0 | M27: =Cashflows!M15 -> 0 | N27: =Cashflows!N15 -> 0 | O27: =Cashflows!O15 -> 0 | P27: =Cashflows!P15 -> 0 | Q27: =Cashflows!Q15 -> 0 | R27: =Cashflows!R15 -> 0 | S27: =Cashflows!S15 -> 0 | T27: =Cashflows!T15 -> 0 | U27: =Cashflows!U15 -> 0 | V27: -3500
C28: ='General Assumptions'!J20 -> Licences | F28: =Cashflows!F16 -> -12000 | G28: =Cashflows!G16 -> 0 | H28: =Cashflows!H16 -> 0 | I28: =Cashflows!I16 -> 0 | J28: =Cashflows!J16 -> 0 | K28: =Cashflows!K16 -> 0 | L28: =Cashflows!L16 -> 0 | M28: =Cashflows!M16 -> 0 | N28: =Cashflows!N16 -> 0 | O28: =Cashflows!O16 -> 0 | P28: =Cashflows!P16 -> 0 | Q28: =Cashflows!Q16 -> 0 | R28: =Cashflows!R16 -> 0 | S28: =Cashflows!S16 -> 0 | T28: =Cashflows!T16 -> 0 | U28: =Cashflows!U16 -> 0 | V28: -12000
C29: ='General Assumptions'!J21 -> Legal | F29: =Cashflows!F17 -> -5000 | G29: =Cashflows!G17 -> 0 | H29: =Cashflows!H17 -> 0 | I29: =Cashflows!I17 -> 0 | J29: =Cashflows!J17 -> 0 | K29: =Cashflows!K17 -> 0 | L29: =Cashflows!L17 -> 0 | M29: =Cashflows!M17 -> 0 | N29: =Cashflows!N17 -> 0 | O29: =Cashflows!O17 -> 0 | P29: =Cashflows!P17 -> 0 | Q29: =Cashflows!Q17 -> 0 | R29: =Cashflows!R17 -> 0 | S29: =Cashflows!S17 -> 0 | T29: =Cashflows!T17 -> 0 | U29: =Cashflows!U17 -> 0 | V29: -5000
C30: ='General Assumptions'!J22 -> Accounting | F30: =Cashflows!F18 -> -2500 | G30: =Cashflows!G18 -> 0 | H30: =Cashflows!H18 -> 0 | I30: =Cashflows!I18 -> 0 | J30: =Cashflows!J18 -> 0 | K30: =Cashflows!K18 -> 0 | L30: =Cashflows!L18 -> 0 | M30: =Cashflows!M18 -> 0 | N30: =Cashflows!N18 -> 0 | O30: =Cashflows!O18 -> 0 | P30: =Cashflows!P18 -> 0 | Q30: =Cashflows!Q18 -> 0 | R30: =Cashflows!R18 -> 0 | S30: =Cashflows!S18 -> 0 | T30: =Cashflows!T18 -> 0 | U30: =Cashflows!U18 -> 0 | V30: -2500
C31: ='General Assumptions'!J23 -> Other (corporate start up) | F31: =Cashflows!F19 -> -10000 | G31: =Cashflows!G19 -> 0 | H31: =Cashflows!H19 -> 0 | I31: =Cashflows!I19 -> 0 | J31: =Cashflows!J19 -> 0 | K31: =Cashflows!K19 -> 0 | L31: =Cashflows!L19 -> 0 | M31: =Cashflows!M19 -> 0 | N31: =Cashflows!N19 -> 0 | O31: =Cashflows!O19 -> 0 | P31: =Cashflows!P19 -> 0 | Q31: =Cashflows!Q19 -> 0 | R31: =Cashflows!R19 -> 0 | S31: =Cashflows!S19 -> 0 | T31: =Cashflows!T19 -> 0 | U31: =Cashflows!U19 -> 0 | V31: -10000
C32: ='General Assumptions'!J24 -> ADD | F32: =Cashflows!F20 -> 0 | G32: =Cashflows!G20 -> 0 | H32: =Cashflows!H20 -> 0 | I32: =Cashflows!I20 -> 0 | J32: =Cashflows!J20 -> 0 | K32: =Cashflows!K20 -> 0 | L32: =Cashflows!L20 -> 0 | M32: =Cashflows!M20 -> 0 | N32: =Cashflows!N20 -> 0 | O32: =Cashflows!O20 -> 0 | P32: =Cashflows!P20 -> 0 | Q32: =Cashflows!Q20 -> 0 | R32: =Cashflows!R20 -> 0 | S32: =Cashflows!S20 -> 0 | T32: =Cashflows!T20 -> 0 | U32: =Cashflows!U20 -> 0 | V32: 0
C33: ='General Assumptions'!J25 -> ADD | F33: =Cashflows!F21 -> 0 | G33: =Cashflows!G21 -> 0 | H33: =Cashflows!H21 -> 0 | I33: =Cashflows!I21 -> 0 | J33: =Cashflows!J21 -> 0 | K33: =Cashflows!K21 -> 0 | L33: =Cashflows!L21 -> 0 | M33: =Cashflows!M21 -> 0 | N33: =Cashflows!N21 -> 0 | O33: =Cashflows!O21 -> 0 | P33: =Cashflows!P21 -> 0 | Q33: =Cashflows!Q21 -> 0 | R33: =Cashflows!R21 -> 0 | S33: =Cashflows!S21 -> 0 | T33: =Cashflows!T21 -> 0 | U33: =Cashflows!U21 -> 0 | V33: 0
C34: ='General Assumptions'!J26 -> ADD | F34: =Cashflows!F22 -> 0 | G34: =Cashflows!G22 -> 0 | H34: =Cashflows!H22 -> 0 | I34: =Cashflows!I22 -> 0 | J34: =Cashflows!J22 -> 0 | K34: =Cashflows!K22 -> 0 | L34: =Cashflows!L22 -> 0 | M34: =Cashflows!M22 -> 0 | N34: =Cashflows!N22 -> 0 | O34: =Cashflows!O22 -> 0 | P34: =Cashflows!P22 -> 0 | Q34: =Cashflows!Q22 -> 0 | R34: =Cashflows!R22 -> 0 | S34: =Cashflows!S22 -> 0 | T34: =Cashflows!T22 -> 0 | U34: =Cashflows!U22 -> 0 | V34: 0
C35: ='General Assumptions'!J27 -> ADD | F35: =Cashflows!F23 -> 0 | G35: =Cashflows!G23 -> 0 | H35: =Cashflows!H23 -> 0 | I35: =Cashflows!I23 -> 0 | J35: =Cashflows!J23 -> 0 | K35: =Cashflows!K23 -> 0 | L35: =Cashflows!L23 -> 0 | M35: =Cashflows!M23 -> 0 | N35: =Cashflows!N23 -> 0 | O35: =Cashflows!O23 -> 0 | P35: =Cashflows!P23 -> 0 | Q35: =Cashflows!Q23 -> 0 | R35: =Cashflows!R23 -> 0 | S35: =Cashflows!S23 -> 0 | T35: =Cashflows!T23 -> 0 | U35: =Cashflows!U23 -> 0 | V35: 0
A36: =A31+1 ->  | C36: Cashflow Deficit | F36: =Cashflows!F24 -> 0 | G36: =Cashflows!G24 -> 0 | H36: =Cashflows!H24 -> 0 | I36: =Cashflows!I24 -> 0 | J36: =Cashflows!J24 -> 0 | K36: =Cashflows!K24 -> 0 | L36: =Cashflows!L24 -> 0 | M36: =Cashflows!M24 -> 0 | N36: =Cashflows!N24 -> 0 | O36: =Cashflows!O24 -> 0 | P36: =Cashflows!P24 -> 0 | Q36: =Cashflows!Q24 -> 0 | R36: =Cashflows!R24 -> 0 | S36: =Cashflows!S24 -> 0 | T36: =Cashflows!T24 -> 0 | U36: =Cashflows!U24 -> 0 | V36: 0
A38: =A36+1 ->  | C38: Total Uses | F38: =SUM(F22:F36) -> -88000 | G38: =SUM(G22:G36) -> -43000 | H38: 0 | I38: -12789.17188 | J38: -27168.81152 | K38: -13188.90778 | L38: 0 | M38: 0 | N38: -24428.77487 | O38: -10990.78752 | P38: 0 | Q38: -22786.76657 | R38: 0 | S38: 0 | T38: -24066.31222 | U38: 0 | V38: =SUM(F38:U38) -> -266419.5324
C40: Net Sources & Uses | F40: =F38+F18 -> 0 | G40: 0 | H40: 0 | I40: 0 | J40: 0 | K40: 0 | L40: 0 | M40: 0 | N40: 0 | O40: 0 | P40: 0 | Q40: 0 | R40: 0 | S40: 0 | T40: 0 | U40: 0 | V40: 0
A41: =#REF!+1 -> 
A42: =A41+1 -> 

Sheet Line of Credit
B1: ='General Assumptions'!D7 -> Country Y LPG Project
B2: Line of Credit Calculation Summary
B3: Annual Calculation
B4: All numbers based on USD
G5: Year
A6: Line | F6: 0 | G6: =F6+1 -> 1 | H6: =G6+1 -> 2 | I6: 3 | J6: 4 | K6: 5 | L6: 6 | M6: 7 | N6: 8 | O6: 9 | P6: 10 | Q6: 11 | R6: 12 | S6: 13 | T6: 14 | U6: 15 | V6: Total
A8: 1 | B8: LINE OF CREDIT
A9: =#REF!+1 ->  | C9: Line of Credit (revolving loan)
C10: Sizing
C11: net before line of credit | F11: =Cashflows!F88 -> 0 | G11: =Cashflows!G88 -> -136317.3453 | H11: =Cashflows!H88 -> -88896.59527 | I11: =Cashflows!I88 -> -67913.43209 | J11: =Cashflows!J88 -> -28738.11794 | K11: =Cashflows!K88 -> 41903.60513 | L11: =Cashflows!L88 -> 125150.43 | M11: =Cashflows!M88 -> 173041.3633 | N11: =Cashflows!N88 -> 188317.4539 | O11: =Cashflows!O88 -> 234485.582 | P11: =Cashflows!P88 -> 241698.72 | Q11: =Cashflows!Q88 -> 204059.6729 | R11: =Cashflows!R88 -> 221203.5958 | S11: =Cashflows!S88 -> 213541.3391 | T11: =Cashflows!T88 -> 178502.3079 | U11: =Cashflows!U88 -> 196602.9772 | V11: =SUM(F11:U11) -> 1696641.557
C12: cumultive | F12: =Cashflows!F89 -> 0 | G12: =Cashflows!G89 -> -136317.3453 | H12: =Cashflows!H89 -> -225213.9405 | I12: =Cashflows!I89 -> -293127.3726 | J12: =Cashflows!J89 -> -321865.4906 | K12: =Cashflows!K89 -> -279961.8854 | L12: =Cashflows!L89 -> -154811.4554 | M12: =Cashflows!M89 -> 18229.90791 | N12: =Cashflows!N89 -> 206547.3618 | O12: =Cashflows!O89 -> 441032.9438 | P12: =Cashflows!P89 -> 682731.6638 | Q12: =Cashflows!Q89 -> 886791.3366 | R12: =Cashflows!R89 -> 1107994.932 | S12: =Cashflows!S89 -> 1321536.272 | T12: =Cashflows!T89 -> 1500038.579 | U12: =Cashflows!U89 -> 1696641.557
A14: =A9+1 ->  | C14: Revolving Loan Amount | F14: ='General Assumptions'!L47 -> 321865.4906 | G14: =F14 -> 321865.4906 | H14: =G14 -> 321865.4906 | I14: 321865.4906 | J14: 321865.4906 | K14: 321865.4906 | L14: 321865.4906 | M14: 321865.4906 | N14: 321865.4906 | O14: 321865.4906 | P14: 321865.4906 | Q14: 321865.4906 | R14: 321865.4906 | S14: 321865.4906 | T14: 321865.4906 | U14: 321865.4906
A15: =A14+1 ->  | C15: Drawdown | F15: =Cashflows!F92 -> 0 | G15: =Cashflows!G92 -> -136317.3453 | H15: =Cashflows!H92 -> -88896.59527 | I15: =Cashflows!I92 -> -67913.43209 | J15: =Cashflows!J92 -> -28738.11794 | K15: =Cashflows!K92 -> 0 | L15: =Cashflows!L92 -> 0 | M15: =Cashflows!M92 -> 0 | N15: =Cashflows!N92 -> 0 | O15: =Cashflows!O92 -> 0 | P15: =Cashflows!P92 -> 0 | Q15: =Cashflows!Q92 -> 0 | R15: =Cashflows!R92 -> 0 | S15: =Cashflows!S92 -> 0 | T15: =Cashflows!T92 -> 0 | U15: =Cashflows!U92 -> 0 | V15: =SUM(F15:U15) -> -321865.4906
C16: Cumulative Drawdown | F16: =F15+E16+E29 -> 0 | G16: -136317.3453 | H16: -225213.9405 | I16: -293127.3726 | J16: -321865.4906 | K16: -321865.4906 | L16: -321865.4906 | M16: -255190.7798 | N16: -104680.0008 | O16: 0 | P16: 0 | Q16: 0 | R16: 0 | S16: 0 | T16: 0 | U16: 0
C17: Unused Principal | F17: =F14+F16 -> 321865.4906 | G17: =G14+G16 -> 185548.1453 | H17: 96651.55002 | I17: 28738.11794 | J17: 0 | K17: 0 | L17: 0 | M17: 66674.71082 | N17: 217185.4898 | O17: 321865.4906 | P17: 321865.4906 | Q17: 321865.4906 | R17: 321865.4906 | S17: 321865.4906 | T17: 321865.4906 | U17: 321865.4906
C18: Current Interest on Unused Principal | F18: =-E17*'General Assumptions'!$L$49 -> 0 | G18: =-F17*'General Assumptions'!$L$49 -> -4827.982359 | H18: =-G17*'General Assumptions'!$L$49 -> -2783.222179 | I18: =-H17*'General Assumptions'!$L$49 -> -1449.77325 | J18: =-I17*'General Assumptions'!$L$49 -> -431.0717691 | K18: =-J17*'General Assumptions'!$L$49 -> 0 | L18: =-K17*'General Assumptions'!$L$49 -> 0 | M18: =-L17*'General Assumptions'!$L$49 -> 0 | N18: =-M17*'General Assumptions'!$L$49 -> -1000.120662 | O18: =-N17*'General Assumptions'!$L$49 -> -3257.782347 | P18: =-O17*'General Assumptions'!$L$49 -> -4827.982359 | Q18: =-P17*'General Assumptions'!$L$49 -> -4827.982359 | R18: =-Q17*'General Assumptions'!$L$49 -> -4827.982359 | S18: =-R17*'General Assumptions'!$L$49 -> -4827.982359 | T18: =-S17*'General Assumptions'!$L$49 -> -4827.982359 | U18: =-T17*'General Assumptions'!$L$49 -> -4827.982359 | V18: -42717.84672
C19: Current Interest on Drawdown | F19: =E16*'General Assumptions'!$L$50 -> 0 | G19: =F16*'General Assumptions'!$L$50 -> 0 | H19: =G16*'General Assumptions'!$L$50 -> -9542.214169 | I19: =H16*'General Assumptions'!$L$50 -> -15764.97584 | J19: =I16*'General Assumptions'!$L$50 -> -20518.91608 | K19: =J16*'General Assumptions'!$L$50 -> -22530.58434 | L19: =K16*'General Assumptions'!$L$50 -> -22530.58434 | M19: =L16*'General Assumptions'!$L$50 -> -22530.58434 | N19: =M16*'General Assumptions'!$L$50 -> -17863.35458 | O19: =N16*'General Assumptions'!$L$50 -> -7327.600053 | P19: =O16*'General Assumptions'!$L$50 -> 0 | Q19: =P16*'General Assumptions'!$L$50 -> 0 | R19: =Q16*'General Assumptions'!$L$50 -> 0 | S19: =R16*'General Assumptions'!$L$50 -> 0 | T19: =S16*'General Assumptions'!$L$50 -> 0 | U19: =T16*'General Assumptions'!$L$50 -> 0 | V19: -138608.8137
C20: Total Current Interest | F20: =SUM(F18:F19) -> 0 | G20: -4827.982359 | H20: -12325.43635 | I20: -17214.74909 | J20: -20949.98785 | K20: -22530.58434 | L20: -22530.58434 | M20: -22530.58434 | N20: -18863.47525 | O20: -10585.3824 | P20: -4827.982359 | Q20: -4827.982359 | R20: -4827.982359 | S20: -4827.982359 | T20: -4827.982359 | U20: -4827.982359 | V20: -181326.6605
C21: Cashflow available for Interest | F21: =Cashflows!F98 -> 0 | G21: =Cashflows!G98 -> -1.818989404e-11 | H21: =Cashflows!H98 -> 0 | I21: =Cashflows!I98 -> 0 | J21: =Cashflows!J98 -> 0 | K21: =Cashflows!K98 -> 41903.60513 | L21: =Cashflows!L98 -> 125150.43 | M21: =Cashflows!M98 -> 173041.3633 | N21: =Cashflows!N98 -> 188317.4539 | O21: =Cashflows!O98 -> 234485.582 | P21: =Cashflows!P98 -> 241698.72 | Q21: =Cashflows!Q98 -> 204059.6729 | R21: =Cashflows!R98 -> 221203.5958 | S21: =Cashflows!S98 -> 213541.3391 | T21: =Cashflows!T98 -> 178502.3079 | U21: =Cashflows!U98 -> 196602.9772 | V21: 2018507.047
C22: Current Interest Paid | F22: =IF(F21>0,MIN(-F20,F21),0) -> 0 | G22: 0 | H22: 0 | I22: 0 | J22: =IF(J21>0,MIN(-J20,J21),0) -> 0 | K22: =IF(K21>0,MIN(-K20,K21),0) -> 22530.58434 | L22: 22530.58434 | M22: 22530.58434 | N22: 18863.47525 | O22: 10585.3824 | P22: 4827.982359 | Q22: 4827.982359 | R22: 4827.982359 | S22: 4827.982359 | T22: 4827.982359 | U22: 4827.982359 | V22: 126008.5048
C23: Unpaid interest | F23: =F22+F20 -> 0 | G23: -4827.982359 | H23: -12325.43635 | I23: -17214.74909 | J23: =J22+J20 -> -20949.98785 | K23: =K22+K20 -> 0 | L23: 0 | M23: 0 | N23: 0 | O23: 0 | P23: 0 | Q23: 0 | R23: 0 | S23: 0 | T23: 0 | U23: 0 | V23: -55318.15565
C24: Accrued Interest | F24: =E24+F23+E26 -> 0 | G24: =F24+G23+F26 -> -4827.982359 | H24: -17153.41871 | I24: -34368.1678 | J24: -55318.15565 | K24: -55318.15565 | L24: -35945.13486 | M24: 0 | N24: 0 | O24: 0 | P24: 0 | Q24: 0 | R24: =Q24+R23+Q26 -> 0 | S24: =R24+S23+R26 -> 0 | T24: 0 | U24: 0
C25: Cashflow available for Accrued Interest Paydown | F25: =F21-F22 -> 0 | G25: -1.818989404e-11 | H25: 0 | I25: 0 | J25: =J21-J22 -> 0 | K25: =K21-K22 -> 19373.02079 | L25: 102619.8457 | M25: 150510.779 | N25: 169453.9786 | O25: 223900.1996 | P25: 236870.7376 | Q25: 199231.6905 | R25: 216375.6135 | S25: 208713.3568 | T25: 173674.3255 | U25: 191774.9949 | V25: 1892498.542
C26: Accrued Interest Paid | F26: =MIN(F25,-F24) -> 0 | G26: -1.818989404e-11 | H26: 0 | I26: 0 | J26: 0 | K26: =MIN(K25,-K24) -> 19373.02079 | L26: =MIN(L25,-L24) -> 35945.13486 | M26: 0 | N26: 0 | O26: 0 | P26: 0 | Q26: =MIN(Q25,-Q24) -> 0 | R26: =MIN(R25,-R24) -> 0 | S26: 0 | T26: 0 | U26: 0 | V26: 55318.15565
C27: Net Accrued Interest | F27: =F24+F26 -> 0 | G27: =G24+G26 -> -4827.982359 | H27: -17153.41871 | I27: -34368.1678 | J27: -55318.15565 | K27: -35945.13486 | L27: 0 | M27: 0 | N27: 0 | O27: 0 | P27: =P24+P26 -> 0 | Q27: =Q24+Q26 -> 0 | R27: 0 | S27: 0 | T27: 0 | U27: 0
C28: Cashflow available for Principal Payback | F28: =F25-F26 -> 0 | G28: =G25-G26 -> 0 | H28: 0 | I28: 0 | J28: 0 | K28: 0 | L28: 66674.71082 | M28: 150510.779 | N28: 169453.9786 | O28: 223900.1996 | P28: 236870.7376 | Q28: 199231.6905 | R28: 216375.6135 | S28: 208713.3568 | T28: 173674.3255 | U28: 191774.9949 | V28: 1837180.387
A29: =A25+1 ->  | C29: Principal Paid | F29: =IF(F28>0,MIN(-F16,F28),0) -> 0 | G29: =IF(G28>0,MIN(-G16,G28),0) -> 0 | H29: 0 | I29: 0 | J29: 0 | K29: 0 | L29: 66674.71082 | M29: 150510.779 | N29: 104680.0008 | O29: 0 | P29: 0 | Q29: 0 | R29: 0 | S29: 0 | T29: 0 | U29: 0 | V29: 321865.4906
A31: =#REF!+1 ->  | C31: Net Line of Credit | F31: =-F15-F22-F26-F29 -> 0 | G31: 136317.3453 | H31: 88896.59527 | I31: 67913.43209 | J31: 28738.11794 | K31: -41903.60513 | L31: -125150.43 | M31: -173041.3633 | N31: -123543.476 | O31: -10585.3824 | P31: -4827.982359 | Q31: -4827.982359 | R31: -4827.982359 | S31: -4827.982359 | T31: -4827.982359 | U31: -4827.982359 | V31: =SUM(F31:U31) -> -181326.6605
A32: =#REF!+1 -> 

Sheet Term Loan
A1: ='General Assumptions'!D6&" Term Loan Table" -> Project LPG Term Loan Table
A4: Term Loan Tables
A7: Term Loan Debt Service - Mortgage Style | I7: Term Loan Debt Service - Straight-Line Principal
A8: Year | B8: Begin | C8: Principal | D8: Interest | E8: Debt Service | F8: End | I8: Year | J8: Begin | K8: Principal | L8: Interest | M8: Debt Service | N8: End
A9: 0 | F9: =loan_amount_A*IF(loan_amort_A="Mortgage",1,0) -> 38000 | I9: 0 | N9: =loan_amount_A*IF(loan_amort_A="Mortgage",0,1) -> 0
A10: 1 | B10: =F9 -> 38000 | C10: =E10-D10 -> 6477.345274 | D10: =B10*loan_rate_A -> 3040 | E10: =-PMT(loan_rate_A,loan_term_A,loan_amount_A)*IF(A10>loan_term_A,0,1)*IF(loan_amort_A="Mortgage",1,0) -> 9517.345274 | F10: =B10-C10 -> 31522.65473 | I10: 1 | J10: =N9 -> 0 | K10: =(loan_amount_A/loan_term_A)*IF(A10>loan_term_A,0,1)*IF(loan_amort_A="Mortgage",0,1) -> 0 | L10: =J10*loan_rate_A -> 0 | M10: =K10+L10 -> 0 | N10: =J10-K10 -> 0
A11: =A10+1 -> 2 | B11: =F10 -> 31522.65473 | C11: =E11-D11 -> 6995.532895 | D11: 2521.812378 | E11: 9517.345274 | F11: =B11-C11 -> 24527.12183 | I11: =I10+1 -> 2 | J11: =N10 -> 0 | K11: 0 | L11: 0 | M11: =K11+L11 -> 0 | N11: =J11-K11 -> 0
A12: =A11+1 -> 3 | B12: 24527.12183 | C12: 7555.175527 | D12: 1962.169746 | E12: 9517.345274 | F12: 16971.9463 | I12: =I11+1 -> 3 | J12: 0 | K12: 0 | L12: 0 | M12: 0 | N12: 0
A13: 4 | B13: 16971.9463 | C13: 8159.589569 | D13: 1357.755704 | E13: 9517.345274 | F13: 8812.356735 | I13: 4 | J13: 0 | K13: 0 | L13: 0 | M13: 0 | N13: 0
A14: 5 | B14: 8812.356735 | C14: 8812.356735 | D14: 704.9885388 | E14: 9517.345274 | F14: 0 | I14: 5 | J14: 0 | K14: 0 | L14: 0 | M14: 0 | N14: 0
A15: 6 | B15: 0 | C15: 0 | D15: 0 | E15: 0 | F15: 0 | I15: 6 | J15: 0 | K15: 0 | L15: 0 | M15: 0 | N15: 0
A16: 7 | B16: 0 | C16: 0 | D16: 0 | E16: 0 | F16: 0 | I16: 7 | J16: 0 | K16: 0 | L16: 0 | M16: 0 | N16: 0
A17: 8 | B17: 0 | C17: 0 | D17: 0 | E17: 0 | F17: 0 | I17: 8 | J17: 0 | K17: 0 | L17: 0 | M17: 0 | N17: 0
A18: 9 | B18: 0 | C18: 0 | D18: 0 | E18: 0 | F18: 0 | I18: 9 | J18: 0 | K18: 0 | L18: 0 | M18: 0 | N18: 0
A19: 10 | B19: 0 | C19: 0 | D19: 0 | E19: 0 | F19: 0 | I19: 10 | J19: 0 | K19: 0 | L19: 0 | M19: 0 | N19: 0
A20: 11 | B20: 0 | C20: 0 | D20: 0 | E20: 0 | F20: 0 | I20: 11 | J20: 0 | K20: 0 | L20: 0 | M20: 0 | N20: 0
A21: 12 | B21: 0 | C21: 0 | D21: 0 | E21: 0 | F21: 0 | I21: 12 | J21: 0 | K21: 0 | L21: 0 | M21: 0 | N21: 0
A22: 13 | B22: 0 | C22: 0 | D22: 0 | E22: 0 | F22: 0 | I22: 13 | J22: 0 | K22: 0 | L22: 0 | M22: 0 | N22: 0
A23: 14 | B23: 0 | C23: 0 | D23: 0 | E23: 0 | F23: 0 | I23: 14 | J23: 0 | K23: 0 | L23: 0 | M23: 0 | N23: 0
A24: 15 | B24: 0 | C24: 0 | D24: 0 | E24: 0 | F24: 0 | I24: 15 | J24: 0 | K24: 0 | L24: 0 | M24: 0 | N24: 0
A25: 16 | B25: 0 | C25: 0 | D25: 0 | E25: 0 | F25: 0 | I25: 16 | J25: 0 | K25: 0 | L25: 0 | M25: 0 | N25: 0
A26: 17 | B26: 0 | C26: 0 | D26: 0 | E26: 0 | F26: 0 | I26: 17 | J26: 0 | K26: 0 | L26: 0 | M26: 0 | N26: 0
A27: 18 | B27: 0 | C27: 0 | D27: 0 | E27: 0 | F27: 0 | I27: 18 | J27: 0 | K27: 0 | L27: 0 | M27: 0 | N27: 0
A28: 19 | B28: 0 | C28: 0 | D28: 0 | E28: 0 | F28: 0 | I28: 19 | J28: 0 | K28: 0 | L28: 0 | M28: 0 | N28: 0
A29: 20 | B29: 0 | C29: 0 | D29: 0 | E29: 0 | F29: 0 | I29: 20 | J29: 0 | K29: 0 | L29: 0 | M29: 0 | N29: 0
A30: 21 | B30: 0 | C30: 0 | D30: 0 | E30: 0 | F30: 0 | I30: 21 | J30: 0 | K30: 0 | L30: 0 | M30: 0 | N30: 0
A31: 22 | B31: 0 | C31: 0 | D31: 0 | E31: 0 | F31: 0 | I31: 22 | J31: 0 | K31: 0 | L31: 0 | M31: 0 | N31: 0
A32: 23 | B32: 0 | C32: 0 | D32: 0 | E32: 0 | F32: 0 | I32: 23 | J32: 0 | K32: 0 | L32: 0 | M32: 0 | N32: 0
A33: 24 | B33: 0 | C33: 0 | D33: 0 | E33: 0 | F33: 0 | I33: 24 | J33: 0 | K33: 0 | L33: 0 | M33: 0 | N33: 0
A34: 25 | B34: 0 | C34: 0 | D34: 0 | E34: 0 | F34: 0 | I34: 25 | J34: 0 | K34: 0 | L34: 0 | M34: 0 | N34: 0
A35: 26 | B35: 0 | C35: 0 | D35: 0 | E35: 0 | F35: 0 | I35: 26 | J35: 0 | K35: 0 | L35: 0 | M35: 0 | N35: 0
A36: 27 | B36: 0 | C36: 0 | D36: 0 | E36: 0 | F36: 0 | I36: 27 | J36: 0 | K36: 0 | L36: 0 | M36: 0 | N36: 0
A37: 28 | B37: 0 | C37: 0 | D37: 0 | E37: 0 | F37: 0 | I37: 28 | J37: 0 | K37: 0 | L37: 0 | M37: 0 | N37: 0
A38: 29 | B38: 0 | C38: 0 | D38: 0 | E38: 0 | F38: 0 | I38: 29 | J38: 0 | K38: 0 | L38: 0 | M38: 0 | N38: 0
A39: 30 | B39: 0 | C39: 0 | D39: 0 | E39: 0 | F39: 0 | I39: 30 | J39: 0 | K39: 0 | L39: 0 | M39: 0 | N39: 0
A41: Total | C41: =SUM(C10:C39) -> 38000 | D41: =SUM(D10:D39) -> 9586.726368 | E41: 47586.72637 | I41: Total | K41: =SUM(K10:K39) -> 0 | L41: =SUM(L10:L39) -> 0 | M41: 0

Sheet Term Loan (2) (hidden)
A1: ='General Assumptions'!D6&" Term Loan Table" -> Project LPG Term Loan Table
A4: Loan A | J4: Loan B | S4: Loan C | AB4: Loan D | AK4: Loan E
B7: Term Loan Debt Service | L7: Loan B Debt Service | U7: Loan C Debt Service | AD7: Loan D Debt Service | AM7: Loan E Debt Service
A8: Year | B8: Begin | C8: Principal | D8: Interest | E8: Debt Service | F8: End | J8: Year | K8: =B8 -> Begin | L8: =C8 -> Principal | M8: Interest | N8: Debt Service | O8: End | S8: Year | T8: =K8 -> Begin | U8: =L8 -> Principal | V8: Interest | W8: Debt Service | X8: End | AB8: Year | AC8: =T8 -> Begin | AD8: =U8 -> Principal | AE8: Interest | AF8: Debt Service | AG8: End | AK8: Year | AL8: =AC8 -> Begin | AM8: =AD8 -> Principal | AN8: Interest | AO8: Debt Service | AP8: End
F9: =loan_amount_A -> 38000 | O9: =loan_amount_B ->  | X9: =loan_amount_C ->  | AG9: =loan_amount_D ->  | AP9: =loan_amount_E -> 
A10: 1 | B10: =F9 -> 38000 | C10: =IF(AND((A10>=loan_year_A),(A10<=(loan_year_A+loan_term_A)),loan_switch_A>0),IF(loan_amort_A=0,(loan_amount_A/loan_term_A),PPMT(loan_rate_A,(A10-loan_year_A+1),loan_term_A,-loan_amount_A)),0) ->  | D10: =(D11+(C10*loan_rate_A))*($A10>=loan_year_A)*($A10<=(loan_year_A+loan_term_A)) ->  | E10: =D10+C10 ->  | F10: =B10-C10 ->  | J10: 1 | K10: =O9 ->  | L10: =IF(AND((J10>=loan_year_B),(J10<(loan_year_B+loan_term_B)),loan_switch_B>0),IF(loan_amort_B=0,(loan_amount_B/loan_term_B),PPMT(loan_rate_B,(J10-loan_year_B+1),loan_term_B,-loan_amount_B)),0) ->  | M10: =(M11+(L10*loan_rate_B))*(J10>=loan_year_B)*(J10<(loan_year_B+loan_term_B)) ->  | N10: =M10+L10 ->  | O10: =K10-L10 ->  | S10: 1 | T10: =X9 ->  | U10: =IF(AND((S10>=loan_year_C),(S10<(loan_year_C+loan_term_C)),loan_switch_C>0),IF(loan_amort_C=0,(loan_amount_C/loan_term_C),PPMT(loan_rate_C,(S10-loan_year_C+1),loan_term_C,-loan_amount_C)),0) ->  | V10: =(V11+(U10*loan_rate_C))*(S10>=loan_year_C)*(S10<(loan_year_C+loan_term_C)) ->  | W10: =V10+U10 ->  | X10: =T10-U10 ->  | AB10: 1 | AC10: =AG9 ->  | AD10: =IF(AND((AB10>=loan_year_D),(AB10<(loan_year_D+loan_term_D)),loan_switch_D>0),IF(loan_amort_D=0,(loan_amount_D/loan_term_D),PPMT(loan_rate_D,(AB10-loan_year_D+1),loan_term_D,-loan_amount_D)),0) ->  | AE10: =(AE11+(AD10*loan_rate_D))*(AB10>=loan_year_D)*(AB10<(loan_year_D+loan_term_D)) ->  | AF10: =AE10+AD10 ->  | AG10: =AC10-AD10 ->  | AK10: 1 | AL10: =AP9 ->  | AM10: =IF(AND((AK10>=loan_year_E),(AK10<(loan_year_E+loan_term_E)),loan_switch_E>0),IF(loan_amort_E=0,(loan_amount_E/loan_term_E),PPMT(loan_rate_E,(AK10-loan_year_E+1),loan_term_E,-loan_amount_E)),0) ->  | AN10: =(AN11+(AM10*loan_rate_E))*(AK10>=loan_year_E)*(AK10<(loan_year_E+loan_term_E)) ->  | AO10: =AN10+AM10 ->  | AP10: =AL10-AM10 -> 
A11: =A10+1 -> 2 | B11: =F10 ->  | F11: =B11-C11 ->  | J11: =J10+1 -> 2 | K11: =O10 ->  | O11: =K11-L11 ->  | S11: =S10+1 -> 2 | T11: =X10 ->  | X11: =T11-U11 ->  | AB11: =AB10+1 -> 2 | AC11: =AG10 ->  | AG11: =AC11-AD11 ->  | AK11: =AK10+1 -> 2 | AL11: =AP10 ->  | AP11: =AL11-AM11 -> 
A12: =A11+1 -> 3 | J12: =J11+1 -> 3 | K12: =O11 ->  | S12: =S11+1 -> 3 | AB12: =AB11+1 -> 3 | AK12: =AK11+1 -> 3
A13: 4 | J13: 4 | S13: 4 | AB13: 4 | AK13: 4
A14: 5 | J14: 5 | S14: 5 | AB14: 5 | AK14: 5
A15: 6 | J15: 6 | S15: 6 | AB15: 6 | AK15: 6
A16: 7 | J16: 7 | S16: 7 | AB16: 7 | AK16: 7
A17: 8 | J17: 8 | S17: 8 | AB17: 8 | AK17: 8
A18: 9 | J18: 9 | S18: 9 | AB18: 9 | AK18: 9
A19: 10 | J19: 10 | S19: 10 | AB19: 10 | AK19: 10
A20: 11 | J20: 11 | S20: 11 | AB20: 11 | AK20: 11
A21: 12 | J21: 12 | S21: 12 | AB21: 12 | AK21: 12
A22: 13 | J22: 13 | S22: 13 | AB22: 13 | AK22: 13
A23: 14 | J23: 14 | S23: 14 | AB23: 14 | AK23: 14
A24: 15 | J24: 15 | S24: 15 | AB24: 15 | AK24: 15
A25: 16 | J25: 16 | S25: 16 | AB25: 16 | AK25: 16
A26: 17 | J26: 17 | S26: 17 | AB26: 17 | AK26: 17
A27: 18 | J27: 18 | S27: 18 | AB27: 18 | AK27: 18
A28: 19 | J28: 19 | S28: 19 | AB28: 19 | AK28: 19
A29: 20 | J29: 20 | S29: 20 | AB29: 20 | AK29: 20
A30: 21 | J30: 21 | S30: 21 | AB30: 21 | AK30: 21
A31: 22 | J31: 22 | S31: 22 | AB31: 22 | AK31: 22
A32: 23 | J32: 23 | S32: 23 | AB32: 23 | AK32: 23
A33: 24 | J33: 24 | S33: 24 | AB33: 24 | AK33: 24
A34: 25 | J34: 25 | S34: 25 | AB34: 25 | AK34: 25
A35: 26 | J35: 26 | S35: 26 | AB35: 26 | AK35: 26
A36: 27 | J36: 27 | S36: 27 | AB36: 27 | AK36: 27
A37: 28 | J37: 28 | S37: 28 | AB37: 28 | AK37: 28
A38: 29 | J38: 29 | S38: 29 | AB38: 29 | AK38: 29
A39: 30 | J39: 30 | S39: 30 | W39: =V39+U39 ->  | AB39: 30 | AK39: 30 | AO39: =AN39+AM39 -> 
A41: Total | C41: =SUM(C10:C39) ->  | D41: =SUM(D10:D39) ->  | J41: Total | L41: =SUM(L10:L39) ->  | M41: =SUM(M10:M39) ->  | S41: Total | U41: =SUM(U10:U39) ->  | V41: =SUM(V10:V39) ->  | AB41: Total | AD41: =SUM(AD10:AD39) ->  | AE41: =SUM(AE10:AE39) ->  | AK41: Total | AM41: =SUM(AM10:AM39) ->  | AN41: =SUM(AN10:AN39) -> 

Sheet Sheet1 (hidden)
